Workbook

Sheet Input (hidden)
C1: Seis | D1: Mõõde | E1: Sihid | F1: Sektor | G1: Eesmärgid | H1: Õigusakt | I1: Uuendus | J1: Asutus
A2: Section of NECP template | B2: Programmi või meetme tüüp | C2: Programmi või meetme rakendamise seis | D2: Seonduv EL energialiidu mõõde või mõõtmed | E2: Asjakohased eesmärgid, sihid või panused, millele poliitikasuund või meede kaasa aitab (märgi asjakohased nt "X"-ga) | F2: Sektor | G2: Programmi või meetme eesmärk | H2: Programmi või meetme aluseks olevad Euroopa Liidu õigusaktid | I2: Ajakohastus pärast eelmist esitamist | J2: Programmi või meetme rakendamise eest vastutavad isikute või asutuste tüüp
A3: 3.1.1.i | B3: Majanduslikud stiimulid (Economic) | C3: Kavandatavad (Planned) | D3: CO2 heite vähendamise mõõde | E3: CO2 heite vähendamise mõõde | F3: energiavarustus (sh kütuste ammutamine/kaevandamine, edastamine, jaotamine ja säilitamine ning energia muundamine kütteks ja jahutuseks ning elektri tootmiseks) | G3: ENERGIAVARUSTUS | H3: Governance Regulation | I3: uue meetme vastuvõtmine, kokkuleppe sõlmimine, õigusaktide avaldamine | J3: riigi valitsus
A4: 3.1.1.ii | B4: Haridus (Education) | C4: Vastuvõetud (Adopted) | D4: CO2 heite vähendamise mõõde: taastuvenergia | E4: kasvuhoonegaaside heide ja nende sidumine – liikmesriigi siduv riiklik kasvuhoonegaaside heitega seotud eesmärk ja iga-aastased siduvad riiklikud piirnormid vastavalt määrusele (EL) 2018/842 | F4: energiatarbimine (sh kütuste ja elektri tarbimine lõpptarbijate, näiteks kodumajapidamiste ja ametiasutuste, teenindus-, tööstus- ja põllumajandussektori poolt) | G4: taastuvate energiaallikate osakaalu suurendamine elektrisektoris (energiavarustus) | H4: Effort Sharing Regulation | I4: meetme/programmi käivitamine/jõustamine | J4: piirkondlikud üksused
A5: 3.1.1.iii | B5: Maksundus (Fiscal) | C5: Rakendatud (Implemented) | D5: Energiatõhususe mõõde | E5: liikmesriigi kohustused vastavalt määrusele (EL) 2018/841 | F5: transport | G5: taastuvenergia osakaalu suurendamine kütte- ja jahutussektoris (energiavarustus) | H5: ETS Directive | I5: meetme tühistamine/lõpetamine/lõpuleviimine | J5: kohalik omavalitsus
A6: 3.1.2.i | B6: Teavitamine (Information) | C6: Aegunud (Expired) | D6: Energiajulgeoleku mõõde | E6: muud eesmärgid, sh sektoripõhised ja kohanemiseesmärgid | F6: tööstusprotsessid (sh tööstusharud, kus muundatakse materjale keemiliselt või füüsikaliselt, kus tekitatakse sellega kasvuhoonegaaside heidet või kasutatakse toodetes kasvuhoonegaase ja fossiilkütustest pärinevat süsinikdioksiidi mitteenergeetilisel eesmärgil) | G6: üleminek vähem CO2 heidet tekitavatele kütustele (energiavarustus) | H6: Effort Sharing Decision | I6: kehtiva meetme muutmine, muudatused rakendamises või ülesehituses ja pikendamine; seireteave, ajakohased andmed edusammude kohta või mõjuhindamise tulemused | J6: ettevõtjad/tööstusühendused
A7: 3.1.2.ii | B7: Planeerimine (Planning) | D7: Energia siseturu mõõde | E7: CO2 heite vähendamise mõõde: taastuvenergia | F7: põllumajandus | G7: vähese CO2 heitega energia tõhusam tootmine taastumatutest allikatest (tuumaenergia) (energiavarustus) | H7: European Structural and Investment Funds | I7: olemasolevate meetmete jätkamine / oluliste ajakohastuste puudumine | J7: teadusasutused
A8: 3.1.2.iii | B8: Seadusandlus (Regulatory) | D8: Teadusuuringute, innovatsiooni ja konkurentsivõime mõõde | E8: panus liidu siduvasse eesmärki saavutada 2030. aastal taastuvenergia vähemalt 32 % osakaal, nagu on osutatud direktiivi (EL) 2018/2001 artiklis 3 | F8: LULUCF | G8: kadude vähendamine (energiavarustus) | H8: Energy Efficency Directive | I8: eelnõud, teadaanded, kohustused, kavandatavad meetmed, arutelud uue meetme kohta | J8: muud loetlemata üksused
A9: 3.1.2.iv | B9: Teadusuuringud (Research) | E9: eeldatavad trajektoorid, mis näitavad ajavahemikul 2021–2030 elektri-, kütte- ja jahutus- ning transpordisektoris tarbitava taastuvenergia osakaalu lõppenergia tarbimises | F9: jäätmekäitlus/jäätmed | G9: tõhususe suurendamine energeetikasektoris ja energia muundamise sektoris (energiavarustus) | H9: Energy Performance of Buildings Directive | I9: muu
A10: 3.1.2.v | B10: Vabatahtlikud/läbiräägitud kokkulepped (Voluntary) | E10: eeldatavad trajektoorid taastuvenergiatehnoloogia lahenduste kaupa | F10: muud sektorid | G10: CO2 kogumine ja säilitamine või CO2 kogumine ja kasutamine (energiavarustus) | H10: Eco-desgin Framework Directive
A11: 3.1.2.vi | B11: Muu (Other) | E11: eeldatavad trajektoorid, mis näitavad nõudlust bioenergia järele, liigitatuna kütte-, elektri- ja transpordisektori kaupa, ning bioenergia pakkumist lähtematerjalide ja päritolu kaupa | G11: energiatootmise hajusheite piiramine (energiavarustus) | H11: xOBSOLETE Directive on end-use energy efficency and energy services
A12: 3.1.3.i | E12: muud riiklikud trajektoorid ja eesmärgid, sh pikaajalised või sektoripõhised trajektoorid ja eesmärgid (nt taastuvenergia osakaal kaugküttes, taastuvenergia kasutus hoonetes, linnade, taastuvenergiakogukondade ja oma tarbeks toodetud taastuvenergia tarbijate toodetav taastuvenergia, reovee töötlemisel settest saadud energia) | G12: primaarenergia tootmisel kasutatavate allikate arvu suurendamine (energiavarustus) | H12: xOBSOLETE Energy Star Program
A13: 3.1.3.ii | E13: Energiatõhususe mõõde | G13: kolmandatest riikidest pärinevast impordist sõltumise vähendamine (energiavarustus) | H13: Union renewable energy financing mechanism
A14: 3.1.3.iii | E14: seoses liidu 2030. aasta vähemalt 32,5 % energiatõhususeesmärgiga kindlaks määratud soovituslik riiklik energiatõhususpanus, millele on osutatud direktiivi 2012/27/EL artikli 1 lõikes 1 ja artikli 3 lõikes 5 | G14: energiavarustustaristu vastupanuvõime suurendamine, sealhulgas energiavarustuse tagamine suuremate võrguhäirete korral (energiavarustus) | H14: Electricity Market Directive
A15: 3.1.3.iv | E15: ajavahemikul 2021–2030 saavutatav kumulatiivne lõpptarbimise energiasääst kooskõlas direktiivi 2012/27/EL artikli 7 lõike 1 punktiga b energiasäästukohustuste kohta | G15: elektrivõrgus suuremal määral taastuvenergia vastuvõtmise võime parandamine (energiavarustus) | H15: Renewable Energy Directive
A16: 3.2.i | E16: riigi elu- ja mitteeluhoonete pikaajalise renoveerimisstrateegia soovituslikud vahe-eesmärgid | G16: elektrivõrkude omavaheliste ühenduste suurendamine (energiavarustus) | H16: CCS Directive
A17: 3.2.ii | E17: ajavahemikul 2021–2030 renoveeritav üldpõrandapind või võrdväärne iga-aastane energiasääst vastavalt direktiivi 2012/27/EL artiklile 5, mis käsitleb avaliku sektori asutuste hoonete eeskuju | G17: hindade suurem lähendamine elektrienergiaturgudel (energiavarustus) | H17: xOBSOLETE Geological storage of CO2 Directive
A18: 3.2.iii | E18: muud riiklikud eesmärgid, sh pikaajalised eesmärgid või strateegiad ja sektoripõhised eesmärgid, ning riiklikud eesmärgid sellistes valdkondades nagu energiatõhusus transpordisektoris ning seoses kütmise ja jahutamisega | G18: tarbijate energiaturgudel osalemise suurendamine (energiavarustus) | H18: Energy Taxation Directive
A19: 3.2.iv | E19: Energiajulgeoleku mõõde | G19: elektrisüsteemi paindlikkuse ja piisavuse suurendamine (energiavarustus) | H19: xOBSOLETE Completion of the internal energy market
A20: 3.2.v | E20: riiklikud eesmärgid seoses energiaallikate mitmekesistamise ja kolmandatest riikidest pärit energiatarnete suurendamisega, mille eesmärk võib olla vähendada sõltumist imporditavast energiast | G20: energiavarustusega seotud teadusuuringud ja innovatsioon (energiavarustus) | H20: Regulation on CO2 standards for cars and vans
A21: 3.2.vi | E21: kolmandatest riikidest imporditavast energiast sõltumise vähendamise riiklikud eesmärgid, et suurendada piirkondade ja riikide energiasüsteemide vastupanuvõimet | G21: muu energiavarustus | H21: Regulation on CO2 standards for heavy duty vehicles
A22: 3.2.vii | E22: riiklikud eesmärgid, mis on seotud riigi energiasüsteemi paindlikkuse suurendamisega, eelkõige omamaiste energiaallikate kasutuselevõtu, tarbimiskaja ja energia salvestamise abil | G22: ENERGIATARBIMINE | H22: Alternative Fuels Infrastructure Directive
A23: 3.3.i | E23: riiklikud eesmärgid, et tulla toime olukorraga, kus energiaallikast pärit tarned on napid või katkenud, et tõsta piirkondade ja riigi energiasüsteemide vastupanuvõimet | G23: hoonete energiatõhususe suurendamine (energiatarbimine) | H23: Eurovignette Directive
A24: 3.3.ii | E24: Energia siseturu mõõde | G24: seadmete energiatõhususe suurendamine (energiatarbimine) | H24: Fuel Quality Directive
A25: 3.3.iii | E25: elektrivõrkude omavahelise ühendatuse määr, mille liikmesriik on 2030. aastaks eesmärgiks seadnud, võttes arvesse elektrivõrkude omavahelise ühendatuse 2030. aasta eesmärki, mis on vähemalt 15 % | G25: Energiatõhususe suurendamine teenuste-/teenindussektoris (energiatarbimine) | H25: Clean Vehicles Directive
A26: 3.4.1.i | E26: elektrienergia ja gaasi ülekande taristu põhiprojektid ja asjakohasel juhul moderniseerimisprojektid, mis on vajalikud energialiidu viie mõõtmega seotud eesmärkide saavutamiseks; muud kavandatud peamised taristuprojektid kui ühishuviprojektid: energia siseturu muude aspektide, nt süsteemi paindlikkuse suurendamise (eelkõige seoses konkurentsipõhiste elektrihindade edendamisega vastavalt valdkondlikule õigusele), turgude lõimimise ja liitmisega (mille eesmärk on suurendada olemasolevate ühenduste kaubeldavat võimsust), arukate võrkude, koondamise, tarbimiskaja, salvestamise, hajatootmise, jaotamise, ümberjaotamise ja piiramise mehhanismide ning reaalajas edastatavate hinnasignaalidega seotud riiklikud eesmärgid | G26: energiatõhususe suurendamine teenuste-/teenindussektoris (energiatarbimine) | H26: Euro VI regulation
A27: 3.4.1.ii | E27: riiklikud eesmärgid, mis on seotud taastuvenergia mittediskrimineeriva osaluse, tarbimiskaja ja salvestamisega, sh koondamise abil, kõigil energiaturgudel | G27: energiatõhususe suurendamine tööstusliku lõppkasutuse sektorites (energiatarbimine) | H27: Euro 5/6 Regulation
A28: 3.4.1.iii | E28: riiklikud eesmärgid seoses tagamisega, et tarbijad osalevad energiasüsteemis ning saavad kasu omatootmisest ja uutest tehnoloogialahendustest, sh arukatest arvestitest | G28: nõudluse juhtimine/vähendamine (energiatarbimine) | H28: xOBOSLETE Biofuels directive
A29: 3.4.2.i | E29: riiklikud eesmärgid, millega tagada elektrisüsteemi piisavus ja energiasüsteemi paindlikkus taastuvenergia tootmiseks | G29: tehnoloogia-, protsesside- ja materjalidealased teadusuuringud ja innovatsioon, mis aitavad vähendada energiatarbimist (energiatarbimine) | H29: F-gas Regulation
A30: 3.4.2.ii | E30: riiklikud eesmärgid, millega tagatakse energiatarbijate kaitse ja energia jaemüügisektori konkurentsivõime suurendamine | G30: muu energiatarbimine (energiatarbimine) | H30: Mobile Air-conditioning system Directive
A31: 3.4.2.iii | E31: energiaostuvõimetusega seotud riiklikud eesmärgid | G31: TRANSPORT | H31: xOBSOLETE F-gas regulation
A32: 3.4.3.i | E32: Teadusuuringute, innovatsiooni ja konkurentsivõime mõõde | G32: sõidukite energiatõhususe suurendamine (transport) | H32: Common Agricultural Policy
A33: 3.4.3.ii | E33: energialiiduga seotud avaliku sektori teadusuuringuid ja innovatsiooni ning asjakohasel juhul ka erasektori teadusuuringuid ja innovatsiooni käsitlevad riiklikud rahastamis- ja muud eesmärgid | G33: ühistranspordile või mootorita transpordivahenditele ülemineku edendamine (transport) | H33: Nitrate Directive
A34: 3.4.3.iii | E34: puhta energia tehnoloogia edendamisega seotud riiklikud 2050. aasta eesmärgid ning vajaduse korral riiklikud eesmärgid, sh pikaajalised (2050), mis on seotud vähese CO2 heitega tehnoloogia kasutuselevõtuga, sh suure energiakasutusega ja rohkesti CO2 heidet tekitavate tööstussektorite CO2 heite vähendamise ning vajaduse korral seonduva CO2 transpordi ja säilitamise taristu tehnoloogia | G34: vähese CO2 heitega kütused (transport) | H34: Waste Management Framework Directive
A35: 3.4.3.iv | E35: riiklikud konkurentsivõimeeesmärgid | G35: elektriline maanteetransport (transport) | H35: xOBSOLETE Waste Directive
A36: 3.4.3.v | G36: nõudluse juhtimine/vähendamine (transport) | H36: xOBOSOLETE Waste Incineration Directive
A37: 3.4.4.i | G37: käitumise parandamine (transport) | H37: Landfill Directive
A38: 3.5.i | G38: transporditaristu tõhustamine (transport) | H38: LULUCF Regulation
A39: 3.5.ii | G39: rahvusvahelise õhu- või meretranspordist pärit heite vähendamine (transport) | H39: LULUCF Decision
A40: 3.5.iii | G40: teadusuuringud ja innovatsioon transpordisektorist pärit heite vähendamiseks (transport) | H40: Indurstrial Emission Directive
G41: innovatsioon transpordi digipöörde valdkonnas (transport) | H41: NEC Directive
G42: muu transport (transport) | H42: Water Framework Directive
G43: TÖÖSTUSPROTSESSID | H43: Medium Combustion Plant Directive
G44: heite vähendamise tehnoloogia kasutamine (tööstusprotsessid) | H44: Euoropean Climate Law
G45: tööstusprotsesside hajusheite tõhusam piiramine (tööstusprotsessid) | H45: Labelling Regulation
G46: fluoritud gaaside tootmisega seotud heite, kontrollimatu heite ja kõrvaldamisega seotud heite tõhusam piiramine (tööstusprotsessid) | H46: Regulation on coordinated demand-reduction measures for gas
G47: fluoritud gaaside asendamine väiksema globaalse soojendamise potentsiaaliga gaasidega (tööstusprotsessid) | H47: Electricity Market Regulation
G48: teadusuuringud ja innovatsioon ELi tööstuse energiamahukuse vähendamise valdkonnas (tööstusprotsessid) | H48: Gas Storage Regulation
G49: muud tööstusprotsessid (tööstusprotsessid) | H49: Regulation on risk-preparedness in the electicity sector
G50: JÄÄTMEKÄITLUS/JÄÄTMED | H50: Just Transition Fund Regulation
G51: nõudluse juhtimine/vähendamine (jäätmekäitlus/jäätmed) | H51: Recovery and Resielience Facility Rregulation
G52: tõhusam ringlussevõtt (jäätmekäitlus/jäätmed) | H52: Security of gas supply Regulation
G53: tõhusam CH4 kogumine ja kasutamine (jäätmekäitlus/jäätmed) | H53: Network code on electricity emergency and restoration
G54: tõhusam jäätmekäitlustehnoloogia (jäätmekäitlus/jäätmed) | H54: Oil Stocks Directive
G55: prügilate tõhusam haldamine (jäätmekäitlus/jäätmed) | H55: Directive on safety of offshore oil and gas operations
G56: jäätmete põletamine koos energia kasutamisega (jäätmekäitlus/jäätmed) | H56: NIS Directice
G57: reoveejuhtimissüsteemide tõhustamine (jäätmekäitlus/jäätmed) | H57: Directive on European Critical Infrastructures
G58: prügilasse ladestamise vähendamine (jäätmekäitlus/jäätmed) | H58: Urban Waste water directive
G59: muud jäätmed (jäätmekäitlus/jäätmed) | H59: Commission Reccomendaton permit-granting procedures Power Purchase Agreements
G60: PÕLLUMAJANDUS
G61: väetiste/sõnniku kasutamise vähendamine põllumaal (põllumajandus)
G62: muud põllumaa parema majandamise meetmed (põllumajandus)
G63: tõhusam loomakasvatus (põllumajandus)
G64: tõhusamad süsteemid loomse päritoluga jäätmete käitlemiseks (põllumajandus)
G65: karja- või rohumaade parema majandamise meetmed (põllumajandus)
G66: orgaaniliste muldade parem majandamine (põllumajandus)
G67: muu põllumajandus (põllumajandus)
G68: LULUCF
G69: metsastamine ja taasmetsastamine (LULUCF)
G70: süsiniku säilitamine olemasolevates metsades (LULUCF)
G71: olemasolevate metsade tootmisvõime suurendamine (LULUCF)
G72: puittoodete süsiniku talletaja suurendamine (LULUCF)
G73: metsade tõhusam majandamine (LULUCF)
G74: raadamise ärahoidmine (LULUCF)
G75: tugevam kaitse looduslike häiringute eest (LULUCF)
G76: suure kasvuhoonegaaside heitemahukusega lähteainete ja materjalide asendamine puittoodetega (LULUCF)
G77: sookuivendamise ärahoidmine või taassoostamine (LULUCF)
G78: degradeerunud maa taastamine; muu LULUCFi sektoriga seotud eesmärk (LULUCF)
G79: MUU
G80: liikmesriigid esitavad eesmärgi lühikirjelduse

Sheet Mõisted (hidden)
A2: Stsenaarium, mille juures programmi või meedet on arvestatud
A3: WEM | B3: With existing measures - olemasolevate meetmetega stsenaarium | C3: Kasvuhoonegaaside inimtekkelistest allikatest pärineva heite ja nende neeldajates sidumise prognoos, mille puhul võetakse seoses kasvuhoonegaaside heitkoguste vähendamise või energiasüsteemi arenguga arvesse vastuvõetud ja rakendatud poliitikasuundade ja meetmete mõju.
A4: WAM | B4: With additional measures - lisameetmetega stsenaarium | C4: Kasvuhoonegaaside inimtekkelistest allikatest pärineva heite ja nende neeldajates sidumise või energiasüsteemi arengu prognoos, mille puhul võetakse seoses kasvuhoonegaaside heitkoguste vähendamisega arvesse kliimamuutuste mõju leevendamiseks või energiaeesmärkide saavutamiseks vastu võetud ja rakendatud, samuti sel eesmärgil kavandatud poliitikasuundade ja meetmete mõju.
A5: NIP | B5: Not included in projections - ei kajastu prognooside | C5: Poliitika ja/või meetme mõju ei avaldu kasvuhoonegaaside inimtekkelistest allikatest pärineva heite ja nende neeldajates sidumise prognoos
A9: Rakendamise definitsioonid
A10: Rakendamise seis | B10: Definitsioon | C10: Kommentaar
A11: Vastuvõetud | B11: Vastavalt Energialiidu juhtimismäärusele (EL) 2018/1999) on vastuvõetud poliitikasuunad ja meetmed , mille kohta on lõimitud riikliku energia- ja kliimakava või lõimitud riikliku energia- ja kliimaalase eduaruande esitamise kuupäevaks tehtud valitsuse ametlik otsus ning mis on rakendamiseks üheselt kohustuslikud.
A12: Rakendatud | B12: Vastavalt Energialiidu juhtimismäärusele (EL) 2018/1999) on rakendatud poliitikasuunad ja meetmed, mis vastavad lõimitud riikliku energia- ja kliimakava või lõimitud riikliku energia- ja kliimaalase eduaruande esitamise kuupäeval ühele või mitmele järgmisele tingimusele: jõus on vahetult kohaldatav liidu või liikmesriigi õigus, sõlmitud on üks või mitu vabatahtlikku kokkulepet, eraldatud on rahalised vahendid, kaasatud on inimressursid.
A13: Kavandatavad | B13: Kavandatavad poliitikasuunad ja meetmed on arutlusel olevad variandid, mille vastuvõtmine ja rakendamine pärast lõimitud riikliku energia- ja kliimakava või lõimitud riikliku energia- ja kliimaalase eduaruande esitamise kuupäeva on reaalselt võimalik.
A14: Aegunud | B14: Aegunud poliitikasuunad ja meetmed esitatakse vormil ainult juhul, kui neil on mõju või kui on oodata nende mõju jätkumist kasvuhoonegaaside heitele.

Sheet Meetmed
A1: PaM ID (REKK eduaruanne 2025) | B1: Meetme kood (REKK ajakohastamine 2025) | C1: Meetme nimi (eesti keeles) | D1: Meetme nimi (inglise keeles) | E1: Stsenaarium (2025 kasvuhoonegaaside prognoosid) | F1: Viide allikale | G1: Meetme rakendamise algus-lõpp
H2: 2025 | I2: 2026 | J2: 2027 | K2: 2028 | L2: 2029 | M2: 2030 | N2: 2031 | O2: 2032 | P2: 2033 | Q2: 2034 | R2: 2035 | S2: 2036 | T2: 2037 | U2: 2038 | V2: 2039 | W2: 2040 | X2: 2041 | Y2: 2042 | Z2: 2043 | AA2: 2044 | AB2: 2045 | AC2: 2046 | AD2: 2047 | AE2: 2048 | AF2: 2049 | AG2: 2050 | AH2: 2051 | AI2: 2052 | AJ2: 2053 | AK2: 2054 | AL2: 2055
A4: ENERGEETIKA
A5: Elektrimajandus
A6: 9 | B6: EN5 | C6: ='EN5'!$B$5 -> Taastuvenergia toetus läbi vähempakkumiste oksjoni (tehnoloogia neutraalne) | D6: ='EN5'!$B$6 -> Renewable energy support through underbidding auctions (technology neutral) | E6: ='EN5'!$B$21 -> WEM | F6: Elektrituruseadus | G6: ='EN5'!$B$20 -> 2019-2024 | H6: 108.1286935 | I6: 108.1286935 | J6: 108.1286935 | K6: 108.1286935 | L6: 108.1286935 | M6: 108.1286935 | N6: 108.1286935 | O6: 108.1286935 | P6: 108.1286935 | Q6: 108.1286935 | R6: 108.1286935 | S6: 108.1286935 | T6: 108.1286935 | U6: 108.1286935 | V6: 108.1286935 | W6: 108.1286935 | X6: 108.1286935 | Y6: 108.1286935 | Z6: 108.1286935 | AA6: 108.1286935 | AB6: 108.1286935 | AC6: 108.1286935 | AD6: 108.1286935 | AE6: 108.1286935 | AF6: 108.1286935 | AG6: 108.1286935 | AH6: 108.1286935 | AI6: 108.1286935 | AJ6: 108.1286935 | AK6: 108.1286935 | AL6: 108.1286935
A7: 10 | B7: EN6 | C7: ='EN6'!$B$5 -> Taastuvenergia toetus läbi vähempakkumiste oksjoni (tehnoloogia spetsiifiline) | D7: ='EN6'!$B$6 -> Renewable energy support through underbidding auctions (technology specific) | E7: ='EN6'!$B$20 -> WEM | F7: Elektrituruseadus | G7: ='EN6'!$B$19 -> 2023-2028 | H7: 56.29667181 | I7: =(K7-H7)/3+H7 -> 107.689127 | J7: =(K7-H7)/3+I7 -> 159.0815822 | K7: 210.4740375 | L7: 210.4740375 | M7: 210.4740375 | N7: 210.4740375 | O7: 210.4740375 | P7: 210.4740375 | Q7: 210.4740375 | R7: 210.4740375 | S7: 210.4740375 | T7: 210.4740375 | U7: 210.4740375 | V7: 210.4740375 | W7: 210.4740375 | X7: 210.4740375 | Y7: 210.4740375 | Z7: 210.4740375 | AA7: 210.4740375 | AB7: 210.4740375 | AC7: 210.4740375 | AD7: 210.4740375 | AE7: 210.4740375 | AF7: 210.4740375 | AG7: 210.4740375 | AH7: 210.4740375 | AI7: 210.4740375 | AJ7: 210.4740375 | AK7: 210.4740375 | AL7: 210.4740375
A8: 6 | B8: EN4 | C8: ='EN4'!$B$5 -> Investeering kompensatsiooni meetmesse, võimaldamaks Kirde Eestis tuuleenergia tootmisvõimsuste rajamist | D8: ='EN4'!$B$6 -> Investment in a compensation measure to enable the construction of wind energy production capacities in Northeast Estonia | E8: ='EN4'!$B$21 -> NIP | F8: 2021-2030 perioodi EL sisese kasvuhoonegaaside lubatud heitkoguse ühikutega kauplemise vahendid | G8: ='EN4'!$B$20 -> 2021-2024 | H8: NE | I8: - | J8: - | K8: - | L8: - | M8: NE | N8: NE | O8: NE | P8: NE | Q8: NE | R8: NE | S8: NE | T8: NE | U8: NE | V8: NE | W8: NE | X8: NE | Y8: NE | Z8: NE | AA8: NE | AB8: NE | AC8: NE | AD8: NE | AE8: NE | AF8: NE | AG8: NE | AH8: NE | AI8: NE | AJ8: NE | AK8: NE | AL8: NE
A9: 7 | B9: EN7 | C9: ='EN7'!$B$5 -> Rohehange | D9: ='EN7'!$B$6 -> Green procurement | E9: ='EN7'!$B$21 -> NIP | F9: RKAS | G9: ='EN7'!$B$20 -> 2021- | H9: NE | I9: NE | J9: NE | K9: NE | L9: NE | M9: NE | N9: NE | O9: NE | P9: NE | Q9: NE | R9: NE | S9: NE | T9: NE | U9: NE | V9: NE | W9: NE | X9: NE | Y9: NE | Z9: NE | AA9: NE | AB9: NE | AC9: NE | AD9: NE | AE9: NE | AF9: NE | AG9: NE | AH9: NE | AI9: NE | AJ9: NE | AK9: NE | AL9: NE
A10: 20 | B10: EN23 | C10: ='EN23'!$B$5 -> Elektrivõrgu tugevdamise programm taastuvenergia tootmisvõimekuse tõstmiseks ning kliimamuutustega kohanemiseks | D10: ='EN23'!$B$6 -> Electricity grid reinforcement program to increase renewable energy production capacity and adaptation to climate change | E10: ='EN23'!$B$21 -> WEM | F10: Eesti taaste- ja vastupidavuskava | G10: ='EN23'!$B$20 -> 2021-2027 | H10: NE | I10: NE | J10: NE | K10: NE | L10: NE | M10: NE | N10: NE | O10: NE | P10: NE | Q10: NE | R10: NE | S10: NE | T10: NE | U10: NE | V10: NE | W10: NE | X10: NE | Y10: NE | Z10: NE | AA10: NE | AB10: NE | AC10: NE | AD10: NE | AE10: NE | AF10: NE | AG10: NE | AH10: NE | AI10: NE | AJ10: NE | AK10: NE | AL10: NE
A11: 8 | B11: EN9 | C11: ='EN9'!$B$5 -> Ilmastikukindla võrgu osakaalu suurendamine | D11: ='EN9'!$B$6 -> Increasing the share of the weatherproof network | E11: ='EN9'!$B$21 -> NIP | F11: Energiamajanduse arengukava aastani 2030 | G11: ='EN9'!$B$20 -> 2017-2030 | H11: NE | I11: NE | J11: NE | K11: NE | L11: NE | M11: NE | N11: NE | O11: NE | P11: NE | Q11: NE | R11: NE | S11: NE | T11: NE | U11: NE | V11: NE | W11: NE | X11: NE | Y11: NE | Z11: NE | AA11: NE | AB11: NE | AC11: NE | AD11: NE | AE11: NE | AF11: NE | AG11: NE | AH11: NE | AI11: NE | AJ11: NE | AK11: NE | AL11: NE
A12: 122 | B12: EN10 | C12: ='EN10'!$B$5 -> Kauglugemissüsteemile üleminek | D12: ='EN10'!$B$6 -> Switching to a remote reading system | E12: ='EN10'!$B$21 -> NIP | F12: Energiamajanduse arengukava aastani 2030 | G12: ='EN10'!$B$20 -> 2027-2030 | H12: NE | I12: NE | J12: NE | K12: NE | L12: NE | M12: NE | N12: NE | O12: NE | P12: NE | Q12: NE | R12: NE | S12: NE | T12: NE | U12: NE | V12: NE | W12: NE | X12: NE | Y12: NE | Z12: NE | AA12: NE | AB12: NE | AC12: NE | AD12: NE | AE12: NE | AF12: NE | AG12: NE | AH12: NE | AI12: NE | AJ12: NE | AK12: NE | AL12: NE
A13: 23 | B13: EN11 | C13: ='EN11'!$B$5 -> Balti riikide elektrisüsteemi sünkroniseerimine mandri-Euroopa sünkroonalaga | D13: ='EN11'!$B$6 -> Synchronization of the electricity system of the Baltic countries with the synchronous area of continental Europe | E13: ='EN11'!$B$21 -> NIP | F13: Energiamajanduse arengukava aastani 2030 | G13: ='EN11'!$B$20 -> 2018-2025 | H13: - | I13: - | J13: - | K13: - | L13: - | M13: - | N13: - | O13: - | P13: - | Q13: - | R13: - | S13: - | T13: - | U13: - | V13: - | W13: - | X13: - | Y13: - | Z13: - | AA13: - | AB13: - | AC13: - | AD13: - | AE13: - | AF13: - | AG13: - | AH13: - | AI13: - | AJ13: - | AK13: - | AL13: -
A14: 22 | B14: EN12 | C14: ='EN12'!$B$5 -> Õhuseireradarite soetamine tuuleparkide arendamiseks | D14: ='EN12'!$B$6 -> The acquisition of air surveillance radars for the development of wind farms | E14: ='EN12'!$B$21 -> NIP | F14: Energiamajanduse arengukava aastani 2030 | G14: ='EN12'!$B$20 -> 2019-2025 | H14: NE | I14: NE | J14: NE | K14: NE | L14: NE | M14: NE | N14: NE | O14: NE | P14: NE | Q14: NE | R14: NE | S14: NE | T14: NE | U14: NE | V14: NE | W14: NE | X14: NE | Y14: NE | Z14: NE | AA14: NE | AB14: NE | AC14: NE | AD14: NE | AE14: NE | AF14: NE | AG14: NE | AH14: NE | AI14: NE | AJ14: NE | AK14: NE | AL14: NE
A15: 26 | B15: EN13 | C15: ='EN13'!$B$5 -> Meretuuleparkide eelarendus (liitumised, planeeringud), ühisprojekt | D15: ='EN13'!$B$6 -> Preliminary development of offshore wind farms (joinings, plans), joint project | E15: ='EN13'!$B$21 -> NIP | F15: Energiamajanduse arengukava aastani 2030 | G15: ='EN13'!$B$20 -> 2020-2029 | H15: NE | I15: NE | J15: NE | K15: NE | L15: NE | M15: NE | N15: NE | O15: NE | P15: NE | Q15: NE | R15: NE | S15: NE | T15: NE | U15: NE | V15: NE | W15: NE | X15: NE | Y15: NE | Z15: NE | AA15: NE | AB15: NE | AC15: NE | AD15: NE | AE15: NE | AF15: NE | AG15: NE | AH15: NE | AI15: NE | AJ15: NE | AK15: NE | AL15: NE
A16: 33 | B16: EN8 | C16: ='EN8'!$B$5 -> Võrguteenuste kvaliteedi tõstmine | D16: ='EN8'!$B$6 -> Improving the quality of network services | E16: ='EN8'!$B$21 -> NIP | F16: Energiamajanduse arengukava aastani 2030 | G16: ='EN8'!$B$20 -> 2017-2030 | H16: NE | I16: NE | J16: NE | K16: NE | L16: NE | M16: NE | N16: NE | O16: NE | P16: NE | Q16: NE | R16: NE | S16: NE | T16: NE | U16: NE | V16: NE | W16: NE | X16: NE | Y16: NE | Z16: NE | AA16: NE | AB16: NE | AC16: NE | AD16: NE | AE16: NE | AF16: NE | AG16: NE | AH16: NE | AI16: NE | AJ16: NE | AK16: NE | AL16: NE
A17: Soojusmajandus
A18: 4 | B18: EN3b | C18: =EN3b!$B$5 -> Amortiseerunud ja ebaefektiivse soojustorustiku renoveerimine | D18: =EN3b!$B$6 -> Renovation of depreciated and inefficient heat pipelines | E18: =EN3b!$B$21 -> WEM | F18: Määrus: Kaugküttesüsteemide investeeringute toetamise tingimused | G18: =EN3b!$B$20 -> 2016-2027 | H18: 13.57503202 | I18: =(M18-H18)/5+H18 -> 14.25378362 | J18: =(M18-H18)/5+I18 -> 14.93253522 | K18: =(M18-H18)/5+J18 -> 15.61128682 | L18: =(M18-H18)/5+K18 -> 16.29003842 | M18: 16.96879002 | N18: 16.96879002 | O18: 16.96879002 | P18: 16.96879002 | Q18: 16.96879002 | R18: 16.96879002 | S18: 16.96879002 | T18: 16.96879002 | U18: 16.96879002 | V18: 16.96879002 | W18: 16.96879002 | X18: 16.96879002 | Y18: 16.96879002 | Z18: 16.96879002 | AA18: 16.96879002 | AB18: 16.96879002 | AC18: 16.96879002 | AD18: 16.96879002 | AE18: 16.96879002 | AF18: 16.96879002 | AG18: 16.96879002 | AH18: 16.96879002 | AI18: 16.96879002 | AJ18: 16.96879002 | AK18: 16.96879002 | AL18: 16.96879002
A19: 5 | B19: EN3c | C19: =EN3c!$B$5 -> Kaugküttekatelde renoveerimine ja kütuse vahetus | D19: =EN3c!$B$6 -> Renovation of district heating boilers and fuel change | E19: =EN3c!$B$21 -> WEM | F19: Määrus: Kaugküttesüsteemide investeeringute toetamise tingimused | G19: =EN3c!$B$20 -> 2016-2027 | H19: 37.09194586 | I19: =(M19-H19)/5+H19 -> 38.94654316 | J19: =(M19-H19)/5+I19 -> 40.80114045 | K19: =(M19-H19)/5+J19 -> 42.65573774 | L19: =(M19-H19)/5+K19 -> 44.51033504 | M19: 46.36493233 | N19: 46.36493233 | O19: 46.36493233 | P19: 46.36493233 | Q19: 46.36493233 | R19: 46.36493233 | S19: 46.36493233 | T19: 46.36493233 | U19: 46.36493233 | V19: 46.36493233 | W19: 46.36493233 | X19: 46.36493233 | Y19: 46.36493233 | Z19: 46.36493233 | AA19: 46.36493233 | AB19: 46.36493233 | AC19: 46.36493233 | AD19: 46.36493233 | AE19: 46.36493233 | AF19: 46.36493233 | AG19: 46.36493233 | AH19: 46.36493233 | AI19: 46.36493233 | AJ19: 46.36493233 | AK19: 46.36493233 | AL19: 46.36493233
A20: 15 | B20: EN18 | C20: ='EN18'!$B$5 -> Väikeelamute taastuvenergia kasutuselevõtu ja küttesüsteemide uuendamise toetus | D20: ='EN18'!$B$6 -> Oil boiler replacement programme | E20: ='EN18'!$B$21 -> WEM | F20: Määrus: Väikeelamute taastuvenergia kasutuselevõtu ja küttesüsteemide uuendamise toetuse kasutamise tingimused ja kord (EL HKS 2013-2020) | G20: ='EN18'!$B$20 -> 2014- | H20: 0.3 | I20: 0.3 | J20: 0.3 | K20: 0.3 | L20: 0.3 | M20: 0.3 | N20: 0.3 | O20: 0.3 | P20: 0.3 | Q20: 0.3 | R20: 0.3 | S20: 0.3 | T20: 0.3 | U20: 0.3 | V20: 0.3 | W20: 0.3 | X20: 0.3 | Y20: 0.3 | Z20: 0.3 | AA20: 0.3 | AB20: 0.3 | AC20: 0.3 | AD20: 0.3 | AE20: 0.3 | AF20: 0.3 | AG20: 0.3 | AH20: 0.3 | AI20: 0.3 | AJ20: 0.3 | AK20: 0.3 | AL20: 0.3
A21: 11 | B21: EN14 | C21: ='EN14'!$B$5 -> Keskkonnasäästlikud energialahendused väikesaartel | D21: ='EN14'!$B$6 -> Introduction of renewable energy in maritime surveillance radar stations on small islands | E21: ='EN14'!$B$21 -> WEM | F21: RES 2021-2024, Lisa 5 | G21: ='EN14'!$B$20 -> 2021- | H21: 0.18 | I21: 0.18 | J21: 0.18 | K21: 0.18 | L21: 0.18 | M21: 0.18 | N21: 0.18 | O21: 0.18 | P21: 0.18 | Q21: 0.18 | R21: 0.18 | S21: 0.18 | T21: 0.18 | U21: 0.18 | V21: 0.18 | W21: 0.18 | X21: 0.18 | Y21: 0.18 | Z21: 0.18 | AA21: 0.18 | AB21: 0.18 | AC21: 0.18 | AD21: 0.18 | AE21: 0.18 | AF21: 0.18 | AG21: 0.18 | AH21: 0.18 | AI21: 0.18 | AJ21: 0.18 | AK21: 0.18 | AL21: 0.18
A22: Energiatõhusus
A23: 16 | B23: EN19 | C23: ='EN19'!$B$5 -> Energia- ja ressursiauditite toetamine tööstusettevõtetes | D23: ='EN19'!$B$6 -> Support for energy- and resource audits in industries | E23: ='EN19'!$B$21 -> WEM | F23: Energiasäästu direktiiv/Energiamajanduse korralduse seadus | G23: ='EN19'!$B$20 -> 2021-2029 | H23: NE | I23: NE | J23: NE | K23: NE | L23: NE | M23: NE | N23: NE | O23: NE | P23: NE | Q23: NE | R23: NE | S23: NE | T23: NE | U23: NE | V23: NE | W23: NE | X23: NE | Y23: NE | Z23: NE | AA23: NE | AB23: NE | AC23: NE | AD23: NE | AE23: NE | AF23: NE | AG23: NE | AH23: NE | AI23: NE | AJ23: NE | AK23: NE | AL23: NE
A24: 17 | B24: EN20 | C24: ='EN20'!$B$5 -> Energia- ja ressursitõhusus ettevõtetes | D24: ='EN20'!$B$6 -> Energy and resource efficiency in industries | E24: ='EN20'!$B$21 -> WEM | F24: Määrus: Toetuse andmise tingimused meetme „Ettevõtete ressursitõhusus” tegevuse „Energia- ja ressursiauditite läbiviimine” jaoks avatud taotlemise korral | G24: ='EN20'!$B$20 -> 2016-, (ÜF periood 2014-2020), RRF kuni 2026 ja ÜF periood 2021-2027 | H24: NE | I24: - | J24: - | K24: - | L24: - | M24: 6.419886065 | N24: 6.419886065 | O24: 6.419886065 | P24: 6.419886065 | Q24: 6.419886065 | R24: 6.419886065 | S24: 6.419886065 | T24: 6.419886065 | U24: 6.419886065 | V24: 6.419886065 | W24: 6.419886065 | X24: 6.419886065 | Y24: 6.419886065 | Z24: 6.419886065 | AA24: 6.419886065 | AB24: 6.419886065 | AC24: 6.419886065 | AD24: 6.419886065 | AE24: 6.419886065 | AF24: 6.419886065 | AG24: 6.419886065 | AH24: 6.419886065 | AI24: 6.419886065 | AJ24: 6.419886065 | AK24: 6.419886065 | AL24: 6.419886065
A25: 58 | B25: HF4 | C25: ='HF4'!$B$5 -> Investeeringud tänavavalgustuse rekonstrueerimisprogrammi | D25: ='HF4'!$B$6 -> Street lighting reconstruction programme investments | E25: ='HF4'!$B$20 -> WEM | F25: Ühtekuuluvusfond | G25: ='HF4'!$B$19 -> 2007-2024 | H25: 72.93304745 | I25: 72.93304745 | J25: 72.93304745 | K25: 72.93304745 | L25: 72.93304745 | M25: 72.93304745 | N25: 72.93304745 | O25: 72.93304745 | P25: 72.93304745 | Q25: 72.93304745 | R25: 72.93304745 | S25: 72.93304745 | T25: 72.93304745 | U25: 72.93304745 | V25: 72.93304745 | W25: 72.93304745 | X25: 72.93304745 | Y25: 72.93304745 | Z25: 72.93304745 | AA25: 72.93304745 | AB25: 72.93304745 | AC25: 72.93304745 | AD25: 72.93304745 | AE25: 72.93304745 | AF25: 72.93304745 | AG25: 72.93304745 | AH25: 72.93304745 | AI25: 72.93304745 | AJ25: 72.93304745 | AK25: 72.93304745 | AL25: 72.93304745
A26: 35 | B26: HF5 | C26: ='HF5'!$B$5 -> Energiasäästlikud valgustuslahendused (sh alameede: energiasäästlikud valgustuslahendused kultuuriasutustele) | D26: ='HF5'!$B$6 -> Energy-saving lighting solutions (energy-efficient lighting solutions for cultural institutions) | E26: ='HF5'!$B$20 -> WEM | F26: 2021-2030 perioodi EL sisese kasvuhoonegaaside lubatud heitkoguse ühikutega kauplemise vahendid | G26: ='HF5'!$B$19 -> 2023-2025 | H26: NE | I26: - | J26: - | K26: - | L26: - | M26: 2.156785434 | N26: 2.156785434 | O26: 2.156785434 | P26: 2.156785434 | Q26: 2.156785434 | R26: 2.156785434 | S26: 2.156785434 | T26: 2.156785434 | U26: 2.156785434 | V26: 2.156785434 | W26: 2.156785434 | X26: 2.156785434 | Y26: 2.156785434 | Z26: 2.156785434 | AA26: 2.156785434 | AB26: 2.156785434 | AC26: 2.156785434 | AD26: 2.156785434 | AE26: 2.156785434 | AF26: 2.156785434 | AG26: 2.156785434 | AH26: 2.156785434 | AI26: 2.156785434 | AJ26: 2.156785434 | AK26: 2.156785434 | AL26: 2.156785434
A27: 21 | B27: EN24 | C27: ='EN24 '!$B$5 -> Energia salvestuse pilootprogramm | D27: ='EN24 '!$B$6 -> Energy storage pilot program | E27: ='EN24 '!$B$21 -> WEM | F27: Eesti taaste- ja vastupidavuskava | G27: ='EN24 '!$B$20 -> 2021-2027 | H27: NE | I27: NE | J27: NE | K27: NE | L27: NE | M27: NE | N27: NE | O27: NE | P27: NE | Q27: NE | R27: NE | S27: NE | T27: NE | U27: NE | V27: NE | W27: NE | X27: NE | Y27: NE | Z27: NE | AA27: NE | AB27: NE | AC27: NE | AD27: NE | AE27: NE | AF27: NE | AG27: NE | AH27: NE | AI27: NE | AJ27: NE | AK27: NE | AL27: NE
A28: 36 | B28: EN28 | C28: ='EN28'!$B$5 -> Ressursitõhusate rohetehnoloogiate kasutuselevõtt | D28: ='EN28'!$B$6 -> Adoption of resource-efficient green technologies | E28: ='EN28'!$B$21 -> WEM | F28: Eesti taaste- ja vastupidavuskava | G28: ='EN28'!$B$20 -> (2021-2027), RRF 2021 - kuni 04.2026 k.a | H28: NE | I28: NE | J28: NE | K28: NE | L28: NE | M28: NE | N28: NE | O28: NE | P28: NE | Q28: NE | R28: NE | S28: NE | T28: NE | U28: NE | V28: NE | W28: NE | X28: NE | Y28: NE | Z28: NE | AA28: NE | AB28: NE | AC28: NE | AD28: NE | AE28: NE | AF28: NE | AG28: NE | AH28: NE | AI28: NE | AJ28: NE | AK28: NE | AL28: NE
A29: 121 | B29: EN25 | C29: ='EN25'!$B$5 -> Energia maksumeetmed | D29: ='EN25'!$B$6 -> Energy tax measures | E29: ='EN25'!$B$21 -> WEM | F29: Maksuseadused | G29: ='EN25'!$B$20 -> 1993- | H29: NE | I29: NE | J29: NE | K29: NE | L29: NE | M29: NE | N29: NE | O29: NE | P29: NE | Q29: NE | R29: NE | S29: NE | T29: NE | U29: NE | V29: NE | W29: NE | X29: NE | Y29: NE | Z29: NE | AA29: NE | AB29: NE | AC29: NE | AD29: NE | AE29: NE | AF29: NE | AG29: NE | AH29: NE | AI29: NE | AJ29: NE | AK29: NE | AL29: NE
A30: 46 | B30: EN26 | C30: ='EN26'!$B$5 -> Tootmisettevõtete ärimudeli muutus | D30: ='EN26'!$B$6 -> A change in the business model of manufacturing companies | E30: ='EN26'!$B$21 -> WEM | F30: Eesti taaste- ja vastupidavuskava | G30: ='EN26'!$B$20 -> 2022-2027 | H30: NE | I30: NE | J30: NE | K30: NE | L30: NE | M30: NE | N30: NE | O30: NE | P30: NE | Q30: NE | R30: NE | S30: NE | T30: NE | U30: NE | V30: NE | W30: NE | X30: NE | Y30: NE | Z30: NE | AA30: NE | AB30: NE | AC30: NE | AD30: NE | AE30: NE | AF30: NE | AG30: NE | AH30: NE | AI30: NE | AJ30: NE | AK30: NE | AL30: NE
A31: 13 | B31: EN16 | C31: ='EN16'!$B$5 -> Kalalaeva energiatõhususe parendamise ja kliimamuutuste leevendamise toetus | D31: ='EN16'!$B$6 -> Support for making the processing of fishery and aquaculture products more energy and resource efficient | E31: ='EN16'!$B$21 -> WEM | F31: Määrus: Kalapüügi- ja vesiviljelustoodete töötlemise energia- ja ressursisäästlikumaks muutmise toetus | G31: ='EN16'!$B$20 -> 2017- | H31: 3.454039799 | I31: 3.454039799 | J31: 3.454039799 | K31: 3.454039799 | L31: 3.454039799 | M31: 3.454039799 | N31: 3.454039799 | O31: 3.454039799 | P31: 3.454039799 | Q31: 3.454039799 | R31: 3.454039799 | S31: 3.454039799 | T31: 3.454039799 | U31: 3.454039799 | V31: 3.454039799 | W31: 3.454039799 | X31: 3.454039799 | Y31: 3.454039799 | Z31: 3.454039799 | AA31: 3.454039799 | AB31: 3.454039799 | AC31: 3.454039799 | AD31: 3.454039799 | AE31: 3.454039799 | AF31: 3.454039799 | AG31: 3.454039799 | AH31: 3.454039799 | AI31: 3.454039799 | AJ31: 3.454039799 | AK31: 3.454039799 | AL31: 3.454039799
A32: 14 | B32: EN17 | C32: ='EN17'!$B$5 -> Kalapüügi- ja vesiviljelustoodete käitlemisettevõtete energia- ja ressursiauditi tegemise toetus | D32: ='EN17'!$B$6 -> Support for energy and resource audits of fishery and aquaculture products establishments | E32: ='EN17'!$B$21 -> NIP | F32: Euroopa Merendus-ja Kalandusfond 2014-2020 | G32: ='EN17'!$B$20 -> 2017- | H32: NE | I32: NE | J32: NE | K32: NE | L32: NE | M32: NE | N32: NE | O32: NE | P32: NE | Q32: NE | R32: NE | S32: NE | T32: NE | U32: NE | V32: NE | W32: NE | X32: NE | Y32: NE | Z32: NE | AA32: NE | AB32: NE | AC32: NE | AD32: NE | AE32: NE | AF32: NE | AG32: NE | AH32: NE | AI32: NE | AJ32: NE | AK32: NE | AL32: NE
A33: Alternatiivkütused
A34: 18 | B34: EN21 | C34: ='EN21'!$B$5 -> Biometaani kasutuselevõtu soodustamine | D34: ='EN21'!$B$6 -> Encouraging the introduction of biomethane | E34: ='EN21'!$B$21 -> WEM | F34: Eesti taaste- ja vastupidavuskava | G34: ='EN21'!$B$20 -> 2021- | H34: NE | I34: NE | J34: NE | K34: NE | L34: NE | M34: NE | N34: NE | O34: NE | P34: NE | Q34: NE | R34: NE | S34: NE | T34: NE | U34: NE | V34: NE | W34: NE | X34: NE | Y34: NE | Z34: NE | AA34: NE | AB34: NE | AC34: NE | AD34: NE | AE34: NE | AF34: NE | AG34: NE | AH34: NE | AI34: NE | AJ34: NE | AK34: NE | AL34: NE
A35: 19 | B35: EN22 | C35: ='EN22'!$B$5 -> Vesiniku terviktehnoloogiate kasutuselevõtu edendamine | D35: ='EN22'!$B$6 -> Promoting the deployment of complete hydrogen technologies | E35: ='EN22'!$B$21 -> WEM | F35: Eesti taaste- ja vastupidavuskava | G35: ='EN22'!$B$20 -> 2021- | H35: NE | I35: NE | J35: NE | K35: NE | L35: NE | M35: NE | N35: NE | O35: NE | P35: NE | Q35: NE | R35: NE | S35: NE | T35: NE | U35: NE | V35: NE | W35: NE | X35: NE | Y35: NE | Z35: NE | AA35: NE | AB35: NE | AC35: NE | AD35: NE | AE35: NE | AF35: NE | AG35: NE | AH35: NE | AI35: NE | AJ35: NE | AK35: NE | AL35: NE
A36: 59 | B36: EN29 | C36: ='EN29'!$B$5 -> Rohefond | D36: ='EN29'!$B$6 -> Green fond | E36: ='EN29'!$B$21 -> WEM | F36: Eesti taaste- ja vastupidavuskava | G36: ='EN29'!$B$20 -> 2021-2027 | H36: NE | I36: NE | J36: NE | K36: NE | L36: NE | M36: NE | N36: NE | O36: NE | P36: NE | Q36: NE | R36: NE | S36: NE | T36: NE | U36: NE | V36: NE | W36: NE | X36: NE | Y36: NE | Z36: NE | AA36: NE | AB36: NE | AC36: NE | AD36: NE | AE36: NE | AF36: NE | AG36: NE | AH36: NE | AI36: NE | AJ36: NE | AK36: NE | AL36: NE
A37: 60 | B37: EN30 | C37: ='EN30'!$B$5 -> Tööstusalades taastuvelektri tootmisseadmete kasutuselevõtu hoogustamise programm | D37: ='EN30'!$B$6 -> Program for accelerating the introduction of renewable electricity production equipment in industries | E37: ='EN30'!$B$21 -> WEM | F37: Eesti taaste- ja vastupidavuskava | G37: ='EN30'!$B$20 -> 2021-2027 | H37: NE | I37: NE | J37: NE | K37: NE | L37: NE | M37: NE | N37: NE | O37: NE | P37: NE | Q37: NE | R37: NE | S37: NE | T37: NE | U37: NE | V37: NE | W37: NE | X37: NE | Y37: NE | Z37: NE | AA37: NE | AB37: NE | AC37: NE | AD37: NE | AE37: NE | AF37: NE | AG37: NE | AH37: NE | AI37: NE | AJ37: NE | AK37: NE | AL37: NE
A38: HOONED
A39: Äri/avalik hoonete renoveerimine
A40: 47 | B40: HF1 | C40: ='HF1'!$B$5 -> Kohalike omavalitsuste hoonete renoveerimine | D40: ='HF1'!$B$6 -> Energy efficiency in local government buildings | E40: ='HF1'!$B$21 -> WEM | G40: ='HF1'!$B$20 -> 2021-2027 | H40: 4.262941271 | I40: 4.761101241 | J40: 6.871671878 | K40: 9.686956343 | L40: 13.38402638 | M40: 15.46362828 | N40: 18.34681348 | O40: 18.34681348 | P40: 18.34681348 | Q40: 18.34681348 | R40: 18.34681348 | S40: 18.34681348 | T40: 18.34681348 | U40: 18.34681348 | V40: 18.34681348 | W40: 18.34681348 | X40: 18.34681348 | Y40: 18.34681348 | Z40: 18.34681348 | AA40: 18.34681348 | AB40: 18.34681348 | AC40: 18.34681348 | AD40: 18.34681348 | AE40: 18.34681348 | AF40: 18.34681348 | AG40: 18.34681348 | AH40: 18.34681348 | AI40: 18.34681348 | AJ40: 18.34681348 | AK40: 18.34681348 | AL40: 18.34681348
A41: 48 | B41: HF2 | C41: ='HF2'!$B$5 -> Keskvalitsuse hoonete rekonstrueerimine | D41: ='HF2'!$B$6 -> Energy efficiency in central government buildings | E41: ='HF2'!$B$21 -> WEM | G41: ='HF2'!$B$20 -> 2021-2027 | H41: 0.7543582586 | I41: 1.245635324 | J41: 1.668178658 | K41: 2.592446168 | L41: 3.747780556 | M41: 4.845348225 | N41: 6.029565972 | O41: 6.029565972 | P41: 6.029565972 | Q41: 6.029565972 | R41: 6.029565972 | S41: 6.029565972 | T41: 6.029565972 | U41: 6.029565972 | V41: 6.029565972 | W41: 6.029565972 | X41: 6.029565972 | Y41: 6.029565972 | Z41: 6.029565972 | AA41: 6.029565972 | AB41: 6.029565972 | AC41: 6.029565972 | AD41: 6.029565972 | AE41: 6.029565972 | AF41: 6.029565972 | AG41: 6.029565972 | AH41: 6.029565972 | AI41: 6.029565972 | AJ41: 6.029565972 | AK41: 6.029565972 | AL41: 6.029565972
A42: Elamumajandus
A43: 61 | B43: HF3 | C43: ='HF3'!$B$5 -> Elamumajanduse hoonete renoveerimine | D43: ='HF3'!$B$6 -> Renovation of residential buildings | E43: ='HF3'!$B$20 -> WEM | F43: Eesti taaste- ja vastupidavuskava | G43: ='HF3'!$B$19 -> 2023-2027 | H43: 9.640350414 | I43: 13.5153516 | J43: 16.25452866 | K43: 18.82930866 | L43: 21.24615643 | M43: 23.32336428 | N43: 23.32336428 | O43: 23.32336428 | P43: 23.32336428 | Q43: 23.32336428 | R43: 23.32336428 | S43: 23.32336428 | T43: 23.32336428 | U43: 23.32336428 | V43: 23.32336428 | W43: 23.32336428 | X43: 23.32336428 | Y43: 23.32336428 | Z43: 23.32336428 | AA43: 23.32336428 | AB43: 23.32336428 | AC43: 23.32336428 | AD43: 23.32336428 | AE43: 23.32336428 | AF43: 23.32336428 | AG43: 23.32336428 | AH43: 23.32336428 | AI43: 23.32336428 | AJ43: 23.32336428 | AK43: 23.32336428 | AL43: 23.32336428
A45: TRANSPORT
A47: 28 | B47: TR4 | C47: ='TR4'!$B$5 -> Keskkonnahoidlikku liikuvust soodustav linnakeskkond | D47: ='TR4'!$B$6 -> An urban environment that promotes environmentally friendly movement | E47: =#REF! ->  | F47: Transpordi ja liikuvuse programm 2024-2027 | G47: ='TR4'!$B$20 -> 2021-2030 | H47: NE | I47: - | J47: - | K47: - | L47: - | M47: 16.79566151 | N47: 16.44690925 | O47: 16.00464471 | P47: 15.46906971 | Q47: 14.8399998 | R47: 14.11691235 | S47: 13.40808564 | T47: 12.71159093 | U47: 12.02566027 | V47: 11.34867303 | W47: 10.67914347 | X47: 10.00276535 | Y47: 9.332951522 | Z47: 8.668538754 | AA47: 8.008463977 | AB47: 7.351755666 | AC47: 6.697525905 | AD47: 6.044963148 | AE47: 5.393325565 | AF47: 4.74193497 | AG47: 4.090171248 | AH47: 3.437467261 | AI47: 2.783304187 | AJ47: 2.12720725 | AK47: 1.468741817 | AL47: 0.8075098269
A48: Säästvate liikumisviiside kättesaadavuse arendamine
A49: 27 | B49: TR3 | C49: ='TR3'!$B$5 -> Säästliku autojuhtimise edendamine | D49: ='TR3'!$B$6 -> Promotion of economical driving | E49: ='TR3'!$B$21 -> WEM | F49: Määrus: Mootorsõidukijuhi ettevalmistamise tingimused ja kord ning mootorsõidukijuhi ettevalmistamise õppekavad | G49: ='TR3'!$B$20 -> 2002- | H49: 13.79462482 | I49: 13.69397585 | J49: 13.60994472 | K49: 13.53960013 | L49: 13.48205223 | M49: 13.43652921 | N49: 13.1575274 | O49: 12.80371576 | P49: 12.37525577 | Q49: 11.87199984 | R49: 11.29352988 | S49: 10.72646851 | T49: 10.16927275 | U49: 9.620528219 | V49: 9.078938424 | W49: 8.543314776 | X49: 8.002212278 | Y49: 7.466361218 | Z49: 6.934831003 | AA49: 6.406771182 | AB49: 5.881404532 | AC49: 5.358020724 | AD49: 4.835970518 | AE49: 4.314660452 | AF49: 3.793547976 | AG49: 3.272136998 | AH49: 2.965246389 | AI49: 2.65766586 | AJ49: 2.349178665 | AK49: 2.039585779 | AL49: 0.6460078615
A50: 30 | B50: TR5 | C50: ='TR5'!$B$5 -> Kestliku ühistranspordi arendamine | D50: ='TR5'!$B$6 -> Development of sustainable public transport | E50: ='TR5'!$B$21 -> NIP | F50: Ühistranspordi programm 2024-2027 | G50: ='TR5'!$B$20 -> 2015- | H50: NE | I50: NE | J50: NE | K50: NE | L50: NE | M50: NE | N50: NE | O50: NE | P50: NE | Q50: NE | R50: NE | S50: NE | T50: NE | U50: NE | V50: NE | W50: NE | X50: NE | Y50: NE | Z50: NE | AA50: NE | AB50: NE | AC50: NE | AD50: NE | AE50: NE | AF50: NE | AG50: NE | AH50: NE | AI50: NE | AJ50: NE | AK50: NE | AL50: NE
A51: 37 | B51: TR13 | C51: ='TR13'!$B$5 -> Kestliku raudteetranspordi arendamine | D51: ='TR13'!$B$6 -> Development of sustainable rail transport | E51: ='TR13'!$B$21 -> WEM | F51: RES 2024-2027, Lisa 5 | G51: ='TR13'!$B$20 -> 2024-2027 | H51: NE | I51: 8.303818171 | J51: 16.60763634 | K51: 24.91145451 | L51: 33.21527268 | M51: 41.51909085 | N51: 62.30017242 | O51: 67.49544281 | P51: 72.6907132 | Q51: 77.88598359 | R51: 83.08125398 | S51: 102.7490633 | T51: 102.7490633 | U51: 102.7490633 | V51: 102.7490633 | W51: 102.7490633 | X51: 102.7490633 | Y51: 102.7490633 | Z51: 102.7490633 | AA51: 102.7490633 | AB51: 102.7490633 | AC51: 102.7490633 | AD51: 102.7490633 | AE51: 102.7490633 | AF51: 102.7490633 | AG51: 102.7490633 | AH51: 102.8232815 | AI51: 102.8974996 | AJ51: 102.9717178 | AK51: 103.0459359 | AL51: 102.7490633
A52: Energiatõhusamate sõidukite osakaalu suurendamine
A53: 31 | B53: TR6 | C53: ='TR6'!$B$5 -> Raskeveokite ajapõhine teekasutustasu | D53: ='TR6'!$B$6 -> Road usage fees for heavy duty vehicles based on time | E53: ='TR6'!$B$20 -> WEM | F53: Raskeveokimaksu seadus | G53: ='TR6'!$B$19 -> 2018- | H53: 14.18380598 | I53: 14.07148808 | J53: 13.96153018 | K53: 13.853846 | L53: 13.74835276 | M53: 13.64497103 | N53: 13.54090282 | O53: 13.43883728 | P53: 13.33870309 | Q53: 13.24043183 | R53: 13.14395785 | S53: 13.04921816 | T53: 12.9561523 | U53: 12.86470228 | V53: 12.77481244 | W53: 12.68642936 | X53: 12.61849601 | Y53: 12.55173956 | Z53: 12.4861184 | AA53: 12.42159258 | AB53: 12.35812372 | AC53: 12.29567494 | AD53: 12.23421083 | AE53: 12.17369736 | AF53: 12.11410186 | AG53: 12.05539293 | AH53: 11.9975404 | AI53: 11.9405153 | AJ53: 11.88428979 | AK53: 11.82883713 | AL53: 11.77413162
A54: 32 | B54: TR7 | C54: ='TR7'!$B$5 -> Nullheitega sõidukite ostutoetus | D54: ='TR7'!$B$6 -> Support for the purchase of zero-emission vehicles | E54: ='TR7'!$B$21 -> WEM | F54: Määrus: Nullheitega sõidukite ostutoetuse andmise tingimused ja kord | G54: ='TR7'!$B$20 -> 2020-2025 | H54: 57.1800443 | I54: 48.60303765 | J54: 40.02603101 | K54: 31.44902436 | L54: 22.87201772 | M54: 14.29501107 | N54: - | O54: - | P54: - | Q54: - | R54: NA | S54: - | T54: - | U54: - | V54: - | W54: NA | X54: NA | Y54: NA | Z54: NA | AA54: NA | AB54: NA | AC54: NA | AD54: NA | AE54: NA | AF54: NA | AG54: NA | AH54: NA | AI54: NA | AJ54: NA | AK54: NA | AL54: NA
A55: 39 | B55: TR15 | C55: ='TR15'!$B$5 -> Siseriikliku parvlaeva muutmine kliimaneutraalseks | D55: ='TR15'!$B$6 -> Making a domestic ferry climate neutral | E55: ='TR15'!$B$21 -> WEM | F55: Kliimaministeerium mereosakond | G55: ='TR15'!$B$20 -> 2027- | H55: NE | I55: - | J55: 8.126166326 | K55: 8.126166326 | L55: 8.126166326 | M55: 8.126166326 | N55: 8.126166326 | O55: 8.126166326 | P55: 8.126166326 | Q55: 8.126166326 | R55: 8.126166326 | S55: 8.126166326 | T55: 8.126166326 | U55: 8.126166326 | V55: 8.126166326 | W55: 8.126166326 | X55: 8.126166326 | Y55: 8.126166326 | Z55: 8.126166326 | AA55: 8.126166326 | AB55: 8.126166326 | AC55: 8.126166326 | AD55: 8.126166326 | AE55: 8.126166326 | AF55: 8.126166326 | AG55: 8.126166326 | AH55: 8.126166326 | AI55: 8.126166326 | AJ55: 8.126166326 | AK55: 8.126166326 | AL55: 8.126166326
A56: 41 | B56: TR16b | C56: =TR16b!$B$5 -> Elektri kasutamise soodustamine bussides | D56: =TR16b!$B$6 -> Promoting the use of electricity in busses | E56: =TR16b!$B$21 -> WEM | F56: Määrus: Elektribusside transpordisektoris kasutuselevõtu toetamise tingimused ja kord | G56: =TR16b!$B$20 -> 2020-… | H56: 13.48353481 | I56: 14.55580999 | J56: 15.62808518 | K56: 16.70036036 | L56: 17.77263554 | M56: 18.84491073 | N56: 19.91718591 | O56: 20.98946109 | P56: 22.06173628 | Q56: 23.13401146 | R56: 24.20628665 | S56: 34.65787753 | T56: 41.77304841 | U56: 48.96100925 | V56: 56.21723508 | W56: 67.92575154 | X56: 76.02046694 | Y56: 84.12712497 | Z56: 92.24502312 | AA56: 100.3735002 | AB56: 108.511934 | AC56: 108.3619985 | AD56: 108.2208828 | AE56: 108.088068 | AF56: 107.9630659 | AG56: 107.8454168 | AH56: 107.7346882 | AI56: 107.6304731 | AJ56: 107.5323883 | AK56: 107.4400732 | AL56: 107.3531884
A57: 42 | B57: TR17 | C57: ='TR17'!$B$5 -> KHS direktiivi ülevõtmine ning riigisektori sõidukipargi keskkonnasõbralikuks muutmine | D57: ='TR17'!$B$6 -> Promotion of clean and energy efficient road transport vehicles in public procurement | E57: ='TR17'!$B$21 -> WEM | F57: Keskkonnasõbralike ja energiatõhusate maanteesõidukite edendamist käsitlev direktiiv | G57: ='TR17'!$B$20 -> 2021-2030 | H57: 14.99480329 | I57: 14.99480329 | J57: 14.99480329 | K57: 14.99480329 | L57: 14.99480329 | M57: 14.99480329 | N57: 14.99480329 | O57: 14.99480329 | P57: 14.99480329 | Q57: 14.99480329 | R57: 14.99480329 | S57: - | T57: - | U57: - | V57: - | W57: NE | X57: NE | Y57: NE | Z57: NE | AA57: NE | AB57: NE | AC57: NE | AD57: NE | AE57: NE | AF57: NE | AG57: NE | AH57: NE | AI57: NE | AJ57: NE | AK57: NE | AL57: NE
A58: 124 | B58: TR21 | C58: ='TR21'!$B$5 -> Mootorsõidukite registreerimis- ja aastamaks | D58: ='TR21'!$B$6 -> Vehicle registration and annual tax | E58: ='TR21'!$B$21 -> WEM | F58: Kliimaministeerium | G58: ='TR21'!$B$20 -> 2025- | H58: NA | I58: 12.81121133 | J58: 25.62242265 | K58: 38.43363398 | L58: 51.2448453 | M58: 64.05605663 | N58: 64.05605663 | O58: 64.05605663 | P58: 64.05605663 | Q58: 64.05605663 | R58: 64.05605663 | S58: 64.05605663 | T58: 64.05605663 | U58: 64.05605663 | V58: 64.05605663 | W58: 64.05605663 | X58: 64.05605663 | Y58: 64.05605663 | Z58: 64.05605663 | AA58: 64.05605663 | AB58: 64.05605663 | AC58: 64.05605663 | AD58: 64.05605663 | AE58: 64.05605663 | AF58: 64.05605663 | AG58: 64.05605663 | AH58: 64.05605663 | AI58: 64.05605663 | AJ58: 64.05605663 | AK58: 64.05605663 | AL58: 64.05605663
A59: Väiksema heitega kütuste osakaalu suurendamine
A60: 24 | B60: TR1 | C60: ='TR1'!$B$5 -> Biokütuste osakaalu suurendamine transpordisektoris | D60: ='TR1'!$B$6 -> Increasing the share of biofuels in transport | E60: ='TR1'!$B$20 -> WEM | F60: Vedelkütuseseadus | G60: ='TR1'!$B$19 -> 2010- | H60: 71.68731156 | I60: 71.41480814 | J60: 71.19212716 | K60: 71.01173753 | L60: 70.87115411 | M60: 70.75361768 | N60: 69.89390366 | O60: 68.84565094 | P60: 67.60902603 | Q60: 66.18343922 | R60: 64.56763649 | S60: 63.00124907 | T60: 61.4646561 | U60: 59.95418613 | V60: 58.46645804 | W60: 56.99835762 | X60: 55.50995563 | Y60: 54.03886771 | Z60: 52.58262144 | AA60: 51.13894545 | AB60: 49.70575282 | AC60: 48.28112573 | AD60: 46.86330146 | AE60: 45.45065944 | AF60: 44.04170942 | AG60: 42.63508059 | AH60: 41.22951155 | AI60: 39.82384115 | AJ60: 38.41700006 | AK60: 37.00800302 | AL60: 35.59594175
A61: 40 | B61: TR16a | C61: =TR16a!$B$5 -> Biometaani kasutamise soodustamine bussides | D61: =TR16a!$B$6 -> Promoting the use of biomethane in busses | E61: =TR16a!$B$21 -> WEM | F61: Määrus: Biometaani transpordisektoris tarbimise toetamise tingimused | G61: =TR16a!$B$20 -> 2014-… | H61: 60.49057052 | I61: 65.8968091 | J61: 71.30304769 | K61: 76.70928627 | L61: 82.11552485 | M61: 87.52176343 | N61: 87.27488213 | O61: 87.02800082 | P61: 86.78111952 | Q61: 86.53423821 | R61: 86.28735691 | S61: 78.03436655 | T61: 69.78137619 | U61: 61.52838583 | V61: 53.27539548 | W61: 45.02240512 | X61: 32.99236473 | Y61: 24.74427355 | Z61: 16.49618237 | AA61: 8.248091184 | AB61: NE | AC61: NE | AD61: NE | AE61: NE | AF61: NE | AG61: NE | AH61: NE | AI61: NE | AJ61: NE | AK61: NE | AL61: NE
A62: 44 | B62: TR19 | C62: ='TR19'!$B$5 -> Vesiniku pilootprojekt | D62: ='TR19'!$B$6 -> Pilot project for hydrogen | E62: ='TR19'!$B$21 -> WEM | F62: Määrus: Toetuse andmise tingimused ja kord rohevesiniku kasutuselevõtuks transpordisektoris ja keemiatööstuse lähteainena | G62: ='TR19'!$B$20 -> 2021-2025 | H62: 0.9119855166 | I62: 0.9119855166 | J62: 0.9119855166 | K62: 0.9119855166 | L62: 0.9119855166 | M62: 0.9119855166 | N62: 0.9119855166 | O62: 0.9119855166 | P62: 0.9119855166 | Q62: 0.9119855166 | R62: 0.9119855166 | S62: 0.9119855166 | T62: 0.9119855166 | U62: 0.9119855166 | V62: 0.9119855166 | W62: 0.9119855166 | X62: 0.9119855166 | Y62: 0.9119855166 | Z62: 0.9119855166 | AA62: 0.9119855166 | AB62: 0.9119855166 | AC62: 0.9119855166 | AD62: 0.9119855166 | AE62: 0.9119855166 | AF62: 0.9119855166 | AG62: 0.9119855166 | AH62: 0.9119855166 | AI62: 0.9119855166 | AJ62: 0.9119855166 | AK62: 0.9119855166 | AL62: 0.9119855166
A63: 63 | B63: TR25 | C63: ='TR25'!$B$5 -> Alternatiivkütustuste taristu arendamine transpordis (elektri- ja vesiniku laadimistaristu loomine) | D63: ='TR25'!$B$6 -> Development of infrastructure for alternative fuels in transport () | E63: ='TR25'!$B$21 -> WEM | F63: RES 2024-2027, Lisa 5 | G63: ='TR25'!$B$20 -> 2024-2027 | H63: NE | I63: NE | J63: NE | K63: NE | L63: NE | M63: NE | N63: NE | O63: NE | P63: NE | Q63: NE | R63: NE | S63: NE | T63: NE | U63: NE | V63: NE | W63: NE | X63: NE | Y63: NE | Z63: NE | AA63: NE | AB63: NE | AC63: NE | AD63: NE | AE63: NE | AF63: NE | AG63: NE | AH63: NE | AI63: NE | AJ63: NE | AK63: NE | AL63: NE
A64: PÕLLUMAJANDUS
A65: 70 | B65: PM4 | C65: ='PM4'!B5 -> Teadmussiire ja teavitus | D65: ='PM4'!B6 -> Knowledge transfer and awareness | E65: ='PM4'!B20 -> WEM | F65: Eesti maaelu arengukava 2014–2020 | G65: ='PM4'!B19 -> 2015-2025 | H65: NE | I65: NE | J65: NE | K65: NE | L65: NE | M65: NE | N65: NE | O65: NE | P65: NE | Q65: NE | R65: NE | S65: NE | T65: NE | U65: NE | V65: NE | W65: NE | X65: NE | Y65: NE | Z65: NE | AA65: NE | AB65: NE | AC65: NE | AD65: NE | AE65: NE | AF65: NE | AG65: NE | AH65: NE | AI65: NE | AJ65: NE | AK65: NE | AL65: NE
A66: 76 | B66: PM7 | C66: ='PM7'!B5 -> Kliima- ja keskkonnakava: mahepõllumajanduse ökokava (ÖK2) | D66: ='PM7'!B6 -> Eco-scheme for organic farming | E66: ='PM7'!B20 -> WEM | F66: Euroopa Liidu ühise põllumajanduspoliitika strateegiakava 2023–2027 | G66: ='PM7'!B19 -> 2023-2027 | H66: 27.1610092 | I66: 26.81641212 | J66: 26.99144287 | K66: 26.98302053 | L66: 27.03093619 | M66: 27.09900966 | N66: 27.13551297 | O66: 27.15449339 | P66: 27.20537066 | Q66: 27.20537066 | R66: 27.20537066 | S66: 27.20537066 | T66: 27.20537066 | U66: 27.20537066 | V66: 27.20537066 | W66: 27.20537066 | X66: 27.20537066 | Y66: 27.20537066 | Z66: 27.20537066 | AA66: 27.20537066 | AB66: 27.20537066 | AC66: 27.20537066 | AD66: 27.20537066 | AE66: 27.20537066 | AF66: 27.20537066 | AG66: 27.20537066 | AH66: 27.20537066 | AI66: 27.20537066 | AJ66: 27.20537066 | AK66: 27.20537066 | AL66: 27.20537066
A67: 78 | B67: PM13 | C67: ='PM13'!B5 -> Kliima- ja keskkonnakava: ökosüsteemiteenuste säilitamine põllumaal (ÖK4) | D67: ='PM13'!B6 -> Support for maintenance of ecosystem services on agricultural land | E67: ='PM13'!B20 -> WEM | F67: Euroopa Liidu ühise põllumajanduspoliitika strateegiakava 2023–2027 | G67: ='PM13'!B19 -> 2023-2027 | H67: NE | I67: NE | J67: NE | K67: NE | L67: NE | M67: NE | N67: NE | O67: NE | P67: NE | Q67: NE | R67: NE | S67: NE | T67: NE | U67: NE | V67: NE | W67: NE | X67: NE | Y67: NE | Z67: NE | AA67: NE | AB67: NE | AC67: NE | AD67: NE | AE67: NE | AF67: NE | AG67: NE | AH67: NE | AI67: NE | AJ67: NE | AK67: NE | AL67: NE
A68: 82 | B68: PM9 | C68: ='PM9'!B5 -> Loomade heaolu toetus | D68: ='PM9'!B6 -> Animal welfare support | E68: ='PM9'!B20 -> WEM | F68: Euroopa Liidu ühise põllumajanduspoliitika strateegiakava 2023–2027 | G68: ='PM9'!B19 -> 2023-2027 | H68: 9.282022928 | I68: 12.370002 | J68: 13.18450989 | K68: 14.56869424 | L68: 15.33366123 | M68: 15.65621563 | N68: 16.06359056 | O68: 16.30820086 | P68: 16.49011717 | Q68: 16.4850514 | R68: 16.48025005 | S68: 16.47458788 | T68: 16.46952065 | U68: 16.46504837 | V68: 16.45998023 | W68: 16.45491166 | X68: 16.45496229 | Y68: 16.45468203 | Z68: 16.45506232 | AA68: 16.45478126 | AB68: 16.4548303 | AC68: 16.45487896 | AD68: 16.45492726 | AE68: 16.4549752 | AF68: 16.4550228 | AG68: 16.45507006 | AH68: 16.45507006 | AI68: 16.45507006 | AJ68: 16.45507006 | AK68: 16.45507006 | AL68: 16.45507006
A69: 84 | B69: PM19 | C69: ='PM19'!B5 -> Teadmussiirde- ja innovatsioonisüsteemi (AKIS) arendamise toetus | D69: ='PM19'!B6 -> Support for the development of knowledge transfer and advisory services (AKIS) | E69: ='PM19'!B20 -> WEM | F69: Euroopa Liidu ühise põllumajanduspoliitika strateegiakava 2023–2027 | G69: ='PM19'!B19 -> 2023-2029 | H69: NE | I69: NE | J69: NE | K69: NE | L69: NE | M69: NE | N69: NE | O69: NE | P69: NE | Q69: NE | R69: NE | S69: NE | T69: NE | U69: NE | V69: NE | W69: NE | X69: NE | Y69: NE | Z69: NE | AA69: NE | AB69: NE | AC69: NE | AD69: NE | AE69: NE | AF69: NE | AG69: NE | AH69: NE | AI69: NE | AJ69: NE | AK69: NE | AL69: NE
A70: 85 | B70: PM23 | C70: ='PM23'!B5 -> Nõuandetoetus | D70: ='PM23'!B6 -> Support for Advisory services | E70: ='PM23'!B20 -> WEM | F70: Euroopa Liidu ühise põllumajanduspoliitika strateegiakava 2023–2027 | G70: ='PM23'!B19 -> 2024-2029 | H70: NE | I70: NE | J70: NE | K70: NE | L70: NE | M70: NE | N70: NE | O70: NE | P70: NE | Q70: NE | R70: NE | S70: NE | T70: NE | U70: NE | V70: NE | W70: NE | X70: NE | Y70: NE | Z70: NE | AA70: NE | AB70: NE | AC70: NE | AD70: NE | AE70: NE | AF70: NE | AG70: NE | AH70: NE | AI70: NE | AJ70: NE | AK70: NE | AL70: NE
A71: 86 | B71: PM11 | C71: ='PM11'!B5 -> Investeeringud bioressursside väärindamisse | D71: ='PM11'!B6 -> Investments in expoitation bioresources | E71: ='PM11'!B20 -> WEM | F71: Euroopa Liidu ühise põllumajanduspoliitika strateegiakava 2023–2027 | G71: ='PM11'!B19 -> 2023-2027 | H71: NE | I71: NE | J71: NE | K71: NE | L71: NE | M71: NE | N71: NE | O71: NE | P71: NE | Q71: NE | R71: NE | S71: NE | T71: NE | U71: NE | V71: NE | W71: NE | X71: NE | Y71: NE | Z71: NE | AA71: NE | AB71: NE | AC71: NE | AD71: NE | AE71: NE | AF71: NE | AG71: NE | AH71: NE | AI71: NE | AJ71: NE | AK71: NE | AL71: NE
A72: 132 | B72: PM24 | C72: ='PM24'!B5 -> Investeering: Biogaasi ja biometaani tootmise ja kasutamise suurendamine | D72: ='PM24'!B6 -> Increasing the production and uptake of biomethane | E72: ='PM24'!B20 -> WEM | F72: Eesti taaste- ja vastupidavuskava | G72: ='PM24'!B19 -> 2023-2026 | H72: NA | I72: − | J72: 3.917693538 | K72: 3.811354088 | L72: 3.712918739 | M72: 3.624663705 | N72: 3.546139891 | O72: 3.472625778 | P72: 3.407840838 | Q72: 3.407840838 | R72: 3.407840838 | S72: 3.407840838 | T72: 3.407840838 | U72: 3.407840838 | V72: 3.407840838 | W72: 3.407840838 | X72: 3.407840838 | Y72: 3.407840838 | Z72: 3.407840838 | AA72: 3.407840838 | AB72: 3.407840838 | AC72: 3.407840838 | AD72: 3.407840838 | AE72: 3.407840838 | AF72: 3.407840838 | AG72: 3.407840838 | AH72: 3.407840838 | AI72: 3.407840838 | AJ72: 3.407840838 | AK72: 3.407840838 | AL72: 3.407840838
A73: TÖÖSTUSLIKUD PROTSESSID JA TOODETE KASUTAMINE
A74: 87 | B74: TÖ1 | C74: Keelud, piirangud ja kohustused, mis tulenevad määrusest (EL) nr 2024/573 fluoritud kasvuhoonegaaside kohta ja direktiivist 2006/40/EC, mis käsitleb mootorsõidukite kliimaseadmetest pärit heitkoguseid | D74: Bans and duties from the Regulation (EU) No 2024/573 on fluorinated greenhouse gases and Directive 2006/40/EC related to emissions from mobile air conditioners (MACs) | E74: WEM | F74: Määrus (EL) nr 2024/573 ja direktiiv 2006/40/EC | G74: 2024-2050 | H74: NE | I74: NE | J74: NE | K74: NE | L74: NE | M74: NE | N74: NE | O74: NE | P74: NE | Q74: NE | R74: NE | S74: NE | T74: NE | U74: NE | V74: NE | W74: NE | X74: NE | Y74: NE | Z74: NE | AA74: NE | AB74: NE | AC74: NE | AD74: NE | AE74: NE | AF74: NE | AG74: NE | AH74: NE | AI74: NE | AJ74: NE | AK74: NE | AL74: NE
A75: 88 | B75: TÖ2 | C75: Parima võimaliku tehnika (PVT) rakendamine | D75: Implement best available technologies (BAT) | E75: WEM | F75: Tööstusheite seadus | G75: 2013-… | H75: NE | I75: NE | J75: NE | K75: NE | L75: NE | M75: NE | N75: NE | O75: NE | P75: NE | Q75: NE | R75: NE | S75: NE | T75: NE | U75: NE | V75: NE | W75: NE | X75: NE | Y75: NE | Z75: NE | AA75: NE | AB75: NE | AC75: NE | AD75: NE | AE75: NE | AF75: NE | AG75: NE | AH75: NE | AI75: NE | AJ75: NE | AK75: NE | AL75: NE
A76: JÄÄTMED
A77: 89 | B77: JM1 | C77: Ladestatavate biolagunevate jäätmete koguse protsendiline piiramine ja jäätmematerjalide korduskasutusse ja ringlusse võtmise mahu suurendamine | D77: Limiting the percentage of biodegradable waste landfilled and increasing the reuse and recycling of waste materials. | E77: WEM | F77: Jäätmekava 2023-2028 | G77: 2014-2023 | H77: NE | I77: NE | J77: NE | K77: NE | L77: NE | M77: NE | N77: NE | O77: NE | P77: NE | Q77: NE | R77: NE | S77: NE | T77: NE | U77: NE | V77: NE | W77: NE | X77: NE | Y77: NE | Z77: NE | AA77: NE | AB77: NE | AC77: NE | AD77: NE | AE77: NE | AF77: NE | AG77: NE | AH77: NE | AI77: NE | AJ77: NE | AK77: NE | AL77: NE
A78: 90 | B78: JM3 | C78: Jäätmetekke ennetamise ja vähendamise propageerimine, sh jäätmete ohtlikkuse vähendamine | D78: Promotion of waste prevention and reduction, including the reduction of hazardous waste. | E78: WEM | F78: Jäätmekava 2023-2028 | G78: 2014- | H78: NE | I78: NE | J78: NE | K78: NE | L78: NE | M78: NE | N78: NE | O78: NE | P78: NE | Q78: NE | R78: NE | S78: NE | T78: NE | U78: NE | V78: NE | W78: NE | X78: NE | Y78: NE | Z78: NE | AA78: NE | AB78: NE | AC78: NE | AD78: NE | AE78: NE | AF78: NE | AG78: NE | AH78: NE | AI78: NE | AJ78: NE | AK78: NE | AL78: NE
A79: 91 | B79: JM4 | C79: Jäätmetest tingitud keskkonnaohtude vähendamine, seire ja järelvalve tõhustamine | D79: Reduction of environmental hazards from waste, improvement of monitoring and surveillance | E79: WEM | F79: Jäätmekava 2023-2028 | G79: 2014- | H79: NE | I79: NE | J79: NE | K79: NE | L79: NE | M79: NE | N79: NE | O79: NE | P79: NE | Q79: NE | R79: NE | S79: NE | T79: NE | U79: NE | V79: NE | W79: NE | X79: NE | Y79: NE | Z79: NE | AA79: NE | AB79: NE | AC79: NE | AD79: NE | AE79: NE | AF79: NE | AG79: NE | AH79: NE | AI79: NE | AJ79: NE | AK79: NE | AL79: NE
A80: 92 | B80: JM2 | C80: Jäätmete prügilasse ladestamise (sh biolagunevate jäätmete) vähendamine | D80: Reducing the landfilling of waste (including biodegradable waste) | E80: WEM | F80: Jäätmekava 2023-2028 | G80: 2021-2035 | H80: NE | I80: NE | J80: NE | K80: NE | L80: NE | M80: NE | N80: NE | O80: NE | P80: NE | Q80: NE | R80: NE | S80: NE | T80: NE | U80: NE | V80: NE | W80: NE | X80: NE | Y80: NE | Z80: NE | AA80: NE | AB80: NE | AC80: NE | AD80: NE | AE80: NE | AF80: NE | AG80: NE | AH80: NE | AI80: NE | AJ80: NE | AK80: NE | AL80: NE
A81: 133 | B81: JM5 | C81: Toidujäätmete tekke vähendamine | D81: Reduction of food waste | E81: WEM | F81: Jäätmekava 2023-2028 | G81: 2021- | H81: NE | I81: NE | J81: NE | K81: NE | L81: NE | M81: NE | N81: NE | O81: NE | P81: NE | Q81: NE | R81: NE | S81: NE | T81: NE | U81: NE | V81: NE | W81: NE | X81: NE | Y81: NE | Z81: NE | AA81: NE | AB81: NE | AC81: NE | AD81: NE | AE81: NE | AF81: NE | AG81: NE | AH81: NE | AI81: NE | AJ81: NE | AK81: NE | AL81: NE
A82: LULUCF
A83: 93 | B83: MM4 | C83: ='MM4'!$B$5 -> Fossiilsete kütuste ja mittetaastuvate loodusvarade kasutamisega seotud keskkonnamõjude vähendamine Eesti puidutootmise ja -kasutamise suurendamise läbi | D83: ='MM4'!$B$6 -> Reduction of environmental impacts related to the use of fossil fuels and non-renewable natural resources by increasing the Estonian timber production and use | E83: ='MM4'!$B$20 -> WEM | F83: Keskkonnakaitse ja -kasutuse programm 2022-2025 | G83: ='MM4'!B19 -> 2012- | H83: NE | I83: NE | J83: NE | K83: NE | L83: NE | M83: NE | N83: NE | O83: NE | P83: NE | Q83: NE | R83: NE | S83: NE | T83: NE | U83: NE | V83: NE | W83: NE | X83: NE | Y83: NE | Z83: NE | AA83: NE | AB83: NE | AC83: NE | AD83: NE | AE83: NE | AF83: NE | AG83: NE | AH83: NE | AI83: NE | AJ83: NE | AK83: NE | AL83: NE
A84: 94 | B84: MM5 | C84: ='MM5'!$B$5 -> Elurikkuse soodustamine Natura 2000 erametsades | D84: ='MM5'!$B$6 -> Promoting biodiversity in Natura 2000 private forests | E84: ='MM5'!$B$20 -> WEM | F84: Euroopa Liidu ühise põllumajanduspoliitika strateegiakava 2023–2027 | G84: ='MM5'!B19 -> 2023-2027 | H84: NE | I84: NE | J84: NE | K84: NE | L84: NE | M84: NE | N84: NE | O84: NE | P84: NE | Q84: NE | R84: NE | S84: NE | T84: NE | U84: NE | V84: NE | W84: NE | X84: NE | Y84: NE | Z84: NE | AA84: NE | AB84: NE | AC84: NE | AD84: NE | AE84: NE | AF84: NE | AG84: NE | AH84: NE | AI84: NE | AJ84: NE | AK84: NE | AL84: NE
A85: 95 | B85: MM2 | C85: ='MM2'!$B$5 -> Erametsade uuendamine võimalikult heade pärilike omaduste ja kasvukohale sobivamate kodumaiste puuliikidega | D85: ='MM2'!$B$6 -> Supporting the reforestation in private forests with native tree species of best possible hereditary characteristics suitable for the site | E85: ='MM2'!$B$20 -> WEM | F85: Keskkonnakaitse ja -kasutuse programm 2022-2025 | G85: ='MM2'!B19 -> 2012- | H85: NE | I85: NE | J85: NE | K85: NE | L85: NE | M85: NE | N85: NE | O85: NE | P85: NE | Q85: NE | R85: NE | S85: NE | T85: NE | U85: NE | V85: NE | W85: NE | X85: NE | Y85: NE | Z85: NE | AA85: NE | AB85: NE | AC85: NE | AD85: NE | AE85: NE | AF85: NE | AG85: NE | AH85: NE | AI85: NE | AJ85: NE | AK85: NE | AL85: NE
A86: 96 | B86: MM1 | C86: ='MM1'!$B$5 -> Väljaspool Natura 2000 võrgustiku ala asuvate erametsaalade looduskaitseliste piirangute hüvitamine | D86: ='MM1'!$B$6 -> Compensation for nature conservation restrictions on private forest areas outside the Natura 2000 network | E86: ='MM1'!$B$21 -> WEM | F86: Keskkonnakaitse ja -kasutuse programm 2022-2025 | G86: ='MM1'!B20 -> 2022- | H86: NE | I86: NE | J86: NE | K86: NE | L86: NE | M86: NE | N86: NE | O86: NE | P86: NE | Q86: NE | R86: NE | S86: NE | T86: NE | U86: NE | V86: NE | W86: NE | X86: NE | Y86: NE | Z86: NE | AA86: NE | AB86: NE | AC86: NE | AD86: NE | AE86: NE | AF86: NE | AG86: NE | AH86: NE | AI86: NE | AJ86: NE | AK86: NE | AL86: NE
A87: 97 | B87: MM3 | C87: ='MM3'!$B$5 -> Elurikkuse kaitse tagamine | D87: ='MM3'!$B$6 -> Ensuring the protection of biodiversity | E87: ='MM3'!$B$20 -> WEM | F87: Keskkonnakaitse ja -kasutuse programm 2022-2025 | G87: ='MM3'!B19 -> 2020- | H87: NE | I87: NE | J87: NE | K87: NE | L87: NE | M87: NE | N87: NE | O87: NE | P87: NE | Q87: NE | R87: NE | S87: NE | T87: NE | U87: NE | V87: NE | W87: NE | X87: NE | Y87: NE | Z87: NE | AA87: NE | AB87: NE | AC87: NE | AD87: NE | AE87: NE | AF87: NE | AG87: NE | AH87: NE | AI87: NE | AJ87: NE | AK87: NE | AL87: NE
A88: 98 | B88: MM6 | C88: ='MM6'!$B$5 -> Investeeringud metsa kliimamuutustega kohanemiseks | D88: ='MM6'!$B$6 -> Investments to support forest adaptation to climate change | E88: ='MM6'!$B$20 -> WEM | F88: Euroopa Liidu ühise põllumajanduspoliitika strateegiakava 2023–2027 | G88: ='MM6'!B19 -> 2023-2027 | H88: NE | I88: NE | J88: NE | K88: NE | L88: NE | M88: NE | N88: NE | O88: NE | P88: NE | Q88: NE | R88: NE | S88: NE | T88: NE | U88: NE | V88: NE | W88: NE | X88: NE | Y88: NE | Z88: NE | AA88: NE | AB88: NE | AC88: NE | AD88: NE | AE88: NE | AF88: NE | AG88: NE | AH88: NE | AI88: NE | AJ88: NE | AK88: NE | AL88: NE
A89: 98 | B89: MM7 | C89: ='MM7'!$B$5 -> Vääriselupaikade kaitse | D89: ='MM7'!$B$6 -> Protection of woodland key habitats | E89: ='MM7'!$B$20 -> WEM | F89: Keskkonnakaitse ja -kasutuse programm 2022-2025 | G89: ='MM7'!B19 -> 2009- | H89: NE | I89: NE | J89: NE | K89: NE | L89: NE | M89: NE | N89: NE | O89: NE | P89: NE | Q89: NE | R89: NE | S89: NE | T89: NE | U89: NE | V89: NE | W89: NE | X89: NE | Y89: NE | Z89: NE | AA89: NE | AB89: NE | AC89: NE | AD89: NE | AE89: NE | AF89: NE | AG89: NE | AH89: NE | AI89: NE | AJ89: NE | AK89: NE | AL89: NE
A90: 99 | B90: MM8 | C90: ='MM8'!$B$5 -> Üraskikahjustuste ennetamise toetamine | D90: ='MM8'!$B$6 -> Prevention of bark beetle damage | E90: ='MM8'!$B$21 -> WEM | F90: Erametsanduse toetuse andmise alused, taotluse kohta esitatavad nõuded, toetuse taotlemise ja taotluse menetlemise kord, taotluse hindamise alused ning toetuse tagasinõudmise kord | G90: ='MM8'!B20 -> 2021 | H90: NE | I90: NE | J90: NE | K90: NE | L90: NE | M90: NE | N90: NE | O90: NE | P90: NE | Q90: NE | R90: NE | S90: NE | T90: NE | U90: NE | V90: NE | W90: NE | X90: NE | Y90: NE | Z90: NE | AA90: NE | AB90: NE | AC90: NE | AD90: NE | AE90: NE | AF90: NE | AG90: NE | AH90: NE | AI90: NE | AJ90: NE | AK90: NE | AL90: NE
A91: 100 | B91: MM9 | C91: ='MM9'!B5 -> Raadamisõiguse tasu | D91: ='MM9'!$B$6 -> Deforestation fee | E91: ='MM9'!$B$20 -> WEM | H91: NE | I91: NE | J91: NE | K91: NE | L91: NE | M91: NE | N91: NE | O91: NE | P91: NE | Q91: NE | R91: NE | S91: NE | T91: NE | U91: NE | V91: NE | W91: NE | X91: NE | Y91: NE | Z91: NE | AA91: NE | AB91: NE | AC91: NE | AD91: NE | AE91: NE | AF91: NE | AG91: NE | AH91: NE | AI91: NE | AJ91: NE | AK91: NE | AL91: NE
A92: Rohetehnoloogiad
A93: 123 | B93: IP1 | C93: Rohetehnoloogia investeerimisprogramm | D93: Green technology investment program | E93: NIP | F93: Eesti taaste- ja vastupidavuskava | G93: 2022- | H93: NE | I93: NE | J93: NE | K93: NE | L93: NE | M93: NE | N93: NE | O93: NE | P93: NE | Q93: NE | R93: NE | S93: NE | T93: NE | U93: NE | V93: NE | W93: NE | X93: NE | Y93: NE | Z93: NE | AA93: NE | AB93: NE | AC93: NE | AD93: NE | AE93: NE | AF93: NE | AG93: NE | AH93: NE | AI93: NE | AJ93: NE | AK93: NE | AL93: NE
A94: Ühismeetmed
A95: 66 | B95: PM-EN1 | C95: ='PM-EN1'!B5 -> Põllumajandustootjate materiaalsed ja immateriaalsed investeeringud (KK1) | D95: ='PM-EN1'!B6 -> Productive tangible and intangible investments of agricultural producers | E95: ='PM-EN1'!B20 -> WEM | F95: Euroopa Liidu ühise põllumajanduspoliitika strateegiakava 2023–2027 | G95: ='PM-EN1'!B19 -> 2025-2027 | H95: NE | I95: NE | J95: NE | K95: NE | L95: NE | M95: NE | N95: NE | O95: NE | P95: NE | Q95: NE | R95: NE | S95: NE | T95: NE | U95: NE | V95: NE | W95: NE | X95: NE | Y95: NE | Z95: NE | AA95: NE | AB95: NE | AC95: NE | AD95: NE | AE95: NE | AF95: NE | AG95: NE | AH95: NE | AI95: NE | AJ95: NE | AK95: NE | AL95: NE
A96: 67 | B96: PM_MM1 | C96: =PM_MM1!B5 -> Kliima- ja keskkonnakava: keskkonnasõbralik majandamine (ÖK1) | D96: =PM_MM1!B6 -> Environmentally friendly management | E96: =PM_MM1!B20 -> WEM | F96: Euroopa Liidu ühise põllumajanduspoliitika strateegiakava 2023–2027 | G96: =PM_MM1!B19 -> 2023-2027 | H96: NE | I96: NE | J96: NE | K96: NE | L96: NE | M96: NE | N96: NE | O96: NE | P96: NE | Q96: NE | R96: NE | S96: NE | T96: NE | U96: NE | V96: NE | W96: NE | X96: NE | Y96: NE | Z96: NE | AA96: NE | AB96: NE | AC96: NE | AD96: NE | AE96: NE | AF96: NE | AG96: NE | AH96: NE | AI96: NE | AJ96: NE | AK96: NE | AL96: NE
A97: 69 | B97: PM_MM2 | C97: =PM_MM2!B5 -> Põllumajanduse keskkonna- ja kliimameede ja selle alameetmed | D97: =PM_MM2!B6 -> Agri-environment-climate measures (including its sub-measures for Agriculture and LULUCF) | E97: =PM_MM2!B20 -> WEM | F97: Eesti maaelu arengukava 2014–2020 | G97: =PM_MM2!B19 -> 2015-2025 | H97: NE | I97: NE | J97: NE | K97: NE | L97: NE | M97: NE | N97: NE | O97: NE | P97: NE | Q97: NE | R97: NE | S97: NE | T97: NE | U97: NE | V97: NE | W97: NE | X97: NE | Y97: NE | Z97: NE | AA97: NE | AB97: NE | AC97: NE | AD97: NE | AE97: NE | AF97: NE | AG97: NE | AH97: NE | AI97: NE | AJ97: NE | AK97: NE | AL97: NE
A98: 77 | B98: PM-MM3 | C98: =PM_MM3!B5 -> Kliima- ja keskkonnakava: ökoalad | D98: =PM_MM3!B6 -> Eco-scheme for ecological focus areas | E98: =PM_MM3!B20 -> WEM | F98: Euroopa Liidu ühise põllumajanduspoliitika strateegiakava 2023–2027 | G98: =PM_MM3!B19 -> 2023-2027 | H98: NE | I98: NE | J98: NE | K98: NE | L98: NE | M98: NE | N98: NE | O98: NE | P98: NE | Q98: NE | R98: NE | S98: NE | T98: NE | U98: NE | V98: NE | W98: NE | X98: NE | Y98: NE | Z98: NE | AA98: NE | AB98: NE | AC98: NE | AD98: NE | AE98: NE | AF98: NE | AG98: NE | AH98: NE | AI98: NE | AJ98: NE | AK98: NE | AL98: NE
A99: 79 | B99: PM_MM4 | C99: =PM_MM4!B5 -> Mulla- ja veekaitsetoetus | D99: =PM_MM4!B6 -> Soil and water protection support | E99: =PM_MM4!B20 -> WEM | F99: Euroopa Liidu ühise põllumajanduspoliitika strateegiakava 2023–2027 | G99: =PM_MM4!B19 -> 2023-2028 | H99: NE | I99: NE | J99: NE | K99: NE | L99: NE | M99: NE | N99: NE | O99: NE | P99: NE | Q99: NE | R99: NE | S99: NE | T99: NE | U99: NE | V99: NE | W99: NE | X99: NE | Y99: NE | Z99: NE | AA99: NE | AB99: NE | AC99: NE | AD99: NE | AE99: NE | AF99: NE | AG99: NE | AH99: NE | AI99: NE | AJ99: NE | AK99: NE | AL99: NE
A100: 80 | B100: PM_MM5 | C100: ='PM-MM5'!B5 -> Väärtusliku püsirohumaa säilitamise toetus | D100: ='PM-MM5'!B6 -> Support for the maintenance of valuable permanent grassland | E100: ='PM-MM5'!B20 -> WEM | F100: Euroopa Liidu ühise põllumajanduspoliitika strateegiakava 2023–2027 | G100: ='PM-MM5'!B19 -> 2024-2028 | H100: NE | I100: NE | J100: NE | K100: NE | L100: NE | M100: NE | N100: NE | O100: NE | P100: NE | Q100: NE | R100: NE | S100: NE | T100: NE | U100: NE | V100: NE | W100: NE | X100: NE | Y100: NE | Z100: NE | AA100: NE | AB100: NE | AC100: NE | AD100: NE | AE100: NE | AF100: NE | AG100: NE | AH100: NE | AI100: NE | AJ100: NE | AK100: NE | AL100: NE
A101: 81 | B101: PM_MM6 | C101: =PM_MM6!B5 -> Pärandniidu hooldamise toetus | D101: =PM_MM6!B6 -> Support for maintaining semi-natural grassland | E101: =PM_MM6!B20 -> WEM | F101: Euroopa Liidu ühise põllumajanduspoliitika strateegiakava 2023–2027 | G101: =PM_MM6!B19 -> 2023-2028 | H101: NE | I101: NE | J101: NE | K101: NE | L101: NE | M101: NE | N101: NE | O101: NE | P101: NE | Q101: NE | R101: NE | S101: NE | T101: NE | U101: NE | V101: NE | W101: NE | X101: NE | Y101: NE | Z101: NE | AA101: NE | AB101: NE | AC101: NE | AD101: NE | AE101: NE | AF101: NE | AG101: NE | AH101: NE | AI101: NE | AJ101: NE | AK101: NE | AL101: NE
I104: 31-40
I105: =AVERAGE(#REF!)*1000 -> 
I106: =AVERAGE(#REF!)*1000 -> 
I107: =AVERAGE(#REF!)*1000 -> 
I108: =AVERAGE(#REF!)*1000+AVERAGE([1]Meetmed_LULUCF!$J$38:$S$38)*1000 -> 

Sheet EN3b
A1: REKK peatükk | B1: 3.1.1.i
A2: Teised seonduvad REKK 2030 peatükid | B2: 3.1.2.i
A3: Poliitikasuuna või meetme number (PaM ID) | B3: 4
A4: Programmi või meetme number REKK2030 | B4: =MID(CELL("filename",A2),FIND("]",CELL("filename",A2))+1,255) -> EN3b
A5: Programmi või meetme nimetus | B5: Amortiseerunud ja ebaefektiivse soojustorustiku renoveerimine
A6: Programmi või meetme nimetus inglise keeles | B6: Renovation of depreciated and inefficient heat pipelines
A7: Lühike kirjeldus | B7: Amortiseerunud ja ebaefektiivsete soojustorustike renoveerimine ja/või uute soojustrasside ehitamine. Meetme tulemusena rekonstrueeritakse 227 km amortiseerunud ebaefektiivseid soojustorustikke.
A8: Seotud Euroopa Liidu energialiidu mõõtmed | B8: CO2 heite vähendamise mõõde; Energiatõhususe mõõde
A9: Asjakohased eesmärgid, sihid või panused, millele poliitikasuund või meede kaasa aitab | B9: kasvuhoonegaaside heide ja nende sidumine – liikmesriigi siduv riiklik kasvuhoonegaaside heitega seotud eesmärk ja iga-aastased siduvad riiklikud piirnormid vastavalt määrusele (EL) 2018/842; seoses liidu 2030. aasta vähemalt 32,5 % energiatõhususeesmärgiga kindlaks määratud soovituslik riiklik energiatõhususpanus, millele on osutatud direktiivi 2012/27/EL artikli 1 lõikes 1 ja artikli 3 lõikes 5; ajavahemikul 2021–2030 saavutatav kumulatiivne lõpptarbimise energiasääst kooskõlas direktiivi 2012/27/EL artikli 7 lõike 1 punktiga b energiasäästukohustuste kohta
A10: Mõjutatud sektorid | B10: energiavarustus (sh kütuste ammutamine/kaevandamine, edastamine, jaotamine ja säilitamine ning energia muundamine kütteks ja jahutuseks ning elektri tootmiseks)
A11: Eesmärk | B11: tõhususe suurendamine energeetikasektoris ja energia muundamise sektoris (energiavarustus); kadude vähendamine (energiavarustus)
A12: Kvantitatiivne eesmärk | B12: Rekonstrueeritakse 227 km amortiseerunud ebaefektiivseid soojustorustikke.
A13: Kasvuhoonegaasid, mille heitmeid otseselt mõjutatakse | B13: CO2; CH4; N2O
A14: Planeeritud eelarve
A15: Oodatav mõju 2025-2030 keskmine | B15: =AVERAGE(Meetmed!H18:M18) -> 15.27191102
A16: Programmi või meetme tüüp | B16: Majanduslikud stiimulid (Economic)
A17: Hinnang sellele, mil määral poliitikasuund või meede aitab saavutada määruse (EL) 2021/1119 artikli 2 lõikes 1 sätestatud liidu kliimaneutraalsusees märki ja täita määruse (EL) 2018/1999 artiklis 15 osutatud pikaajalist strateegiat | B17: This measure contributes to the political guidelines for the economy as a whole set in the General Principles of Climate Policy until 2050. https://kliimaministeerium.ee/sites/default/files/documents/2023-03/310022023003%20%281%29.pdf
A18: Programmi või meetme aluseks olevad Euroopa Liidu õigusaktid | B18: Effort Sharing Regulation; ETS Directive; Effort Sharing Decision; Energy Efficency Directive
A19: Programmi või meetme rakendamise seis | B19: Rakendatud (Implemented)
A20: Programmi või meetme rakendamise periood | B20: 2016-2027
A21: Stsenaarium, mille juures programmi või meedet on arvestatud | B21: WEM
A22: Programmi või meetme rakendamise eest vastutavad isikute või asutuste tüüp | B22: riigi valitsus
A23: Programmi või meetme rakendamise eest vastutavad isikud või asutused | B23: Keskkonnainvesteeringute Keskus, Kliimaministeerium
A24: Viide analüüsidele või tehnilistele aruannetele | B24: https://www.riigiteataja.ee/akt/108012016008?leiaKehtiv
A25: Kommentaar

Sheet EN3c
A1: REKK peatükk | B1: 3.1.1.i
A2: Teised seonduvad REKK 2030 peatükid | B2: 3.1.2.i
A3: Poliitikasuuna või meetme number (PaM ID) | B3: 5
A4: Programmi või meetme number REKK2030 | B4: =MID(CELL("filename",A2),FIND("]",CELL("filename",A2))+1,255) -> EN3c
A5: Programmi või meetme nimetus | B5: Kaugküttekatelde renoveerimine ja kütuse vahetus
A6: Programmi või meetme nimetus inglise keeles | B6: Renovation of district heating boilers and fuel change
A7: Lühike kirjeldus | B7: Kaugküttekatelde renoveerimine ja/või ehitus ning kütusevahetus. Meetme tegevuse tulemusena rekonstrueeritakse vähemalt 157 MW kaugküttekatlaid.
A8: Seotud Euroopa Liidu energialiidu mõõtmed | B8: CO2 heite vähendamise mõõde; CO2 heite vähendamise mõõde: taastuvenergia; Energiatõhususe mõõde
A9: Asjakohased eesmärgid, sihid või panused, millele poliitikasuund või meede kaasa aitab | B9: muud eesmärgid, sh sektoripõhised ja kohanemiseesmärgid; eeldatavad trajektoorid, mis näitavad ajavahemikul 2021–2030 elektri-, kütte- ja jahutus- ning transpordisektoris tarbitava taastuvenergia osakaalu lõppenergia tarbimises; seoses liidu 2030. aasta vähemalt 32,5 % energiatõhususeesmärgiga kindlaks määratud soovituslik riiklik energiatõhususpanus, millele on osutatud direktiivi 2012/27/EL artikli 1 lõikes 1 ja artikli 3 lõikes 5; ajavahemikul 2021–2030 saavutatav kumulatiivne lõpptarbimise energiasääst kooskõlas direktiivi 2012/27/EL artikli 7 lõike 1 punktiga b energiasäästukohustuste kohta
A10: Mõjutatud sektorid | B10: energiavarustus (sh kütuste ammutamine/kaevandamine, edastamine, jaotamine ja säilitamine ning energia muundamine kütteks ja jahutuseks ning elektri tootmiseks)
A11: Eesmärk | B11: taastuvenergia osakaalu suurendamine kütte- ja jahutussektoris (energiavarustus); tõhususe suurendamine energeetikasektoris ja energia muundamise sektoris (energiavarustus); üleminek vähem CO2 heidet tekitavatele kütustele (energiavarustus); kadude vähendamine (energiavarustus)
A12: Kvantitatiivne eesmärk | B12: Rekonstrueeritakse 157 MW kaugküttekatlaid
A13: Kasvuhoonegaasid, mille heitmeid otseselt mõjutatakse | B13: CO2; CH4; N2O
A14: Planeeritud eelarve
A15: Oodatav mõju 2025-2030 keskmine | B15: =AVERAGE(Meetmed!H19:M19) -> 41.7284391
A16: Programmi või meetme tüüp | B16: Majanduslikud stiimulid (Economic)
A17: Hinnang sellele, mil määral poliitikasuund või meede aitab saavutada määruse (EL) 2021/1119 artikli 2 lõikes 1 sätestatud liidu kliimaneutraalsusees märki ja täita määruse (EL) 2018/1999 artiklis 15 osutatud pikaajalist strateegiat | B17: This measure contributes to the political guidelines for the economy as a whole set in the General Principles of Climate Policy until 2050. https://kliimaministeerium.ee/sites/default/files/documents/2023-03/310022023003%20%281%29.pdf
A18: Programmi või meetme aluseks olevad Euroopa Liidu õigusaktid | B18: Effort Sharing Regulation; ETS Directive; Effort Sharing Decision; Energy Efficency Directive
A19: Programmi või meetme rakendamise seis | B19: Rakendatud (Implemented)
A20: Programmi või meetme rakendamise periood | B20: 2016-2027
A21: Stsenaarium, mille juures programmi või meedet on arvestatud | B21: WEM
A22: Programmi või meetme rakendamise eest vastutavad isikute või asutuste tüüp | B22: riigi valitsus
A23: Programmi või meetme rakendamise eest vastutavad isikud või asutused | B23: Keskkonnainvesteeringute Keskus, Kliimaministeerium
A24: Viide analüüsidele või tehnilistele aruannetele | B24: https://www.riigiteataja.ee/akt/108012016008?leiaKehtiv
A25: Kommentaar

Sheet EN4
A1: REKK peatükk | B1: 3.5.i
A2: Teised seonduvad REKK 2030 peatükid | B2: 3.2.1.i
A3: Poliitikasuuna või meetme number (PaM ID) | B3: 6
A4: Programmi või meetme number REKK2030 | B4: =MID(CELL("filename",A2),FIND("]",CELL("filename",A2))+1,255) -> EN4
A5: Programmi või meetme nimetus | B5: Investeering kompensatsiooni meetmesse, võimaldamaks Kirde Eestis tuuleenergia tootmisvõimsuste rajamist
A6: Programmi või meetme nimetus inglise keeles | B6: Investment in a compensation measure to enable the construction of wind energy production capacities in Northeast Estonia
A7: Lühike kirjeldus | B7: Programmi raames viiakse ellu projekte ja tegevusi, mis aitavad kaasa energiamajanduse arengukava rakendamisele. Meetme raames investeeritakse radarite taristu, masinate ja seadmete seotamisse.
A8: Seotud Euroopa Liidu energialiidu mõõtmed | B8: CO2 heite vähendamise mõõde: taastuvenergia; Energiajulgeoleku mõõde; CO2 heite vähendamise mõõde
A9: Asjakohased eesmärgid, sihid või panused, millele poliitikasuund või meede kaasa aitab | B9: muud eesmärgid, sh sektoripõhised ja kohanemiseesmärgid; panus liidu siduvasse eesmärki saavutada 2030. aastal taastuvenergia vähemalt 32 % osakaal, nagu on osutatud direktiivi (EL) 2018/2001 artiklis 3 ; riiklikud eesmärgid seoses energiaallikate mitmekesistamise ja kolmandatest riikidest pärit energiatarnete suurendamisega, mille eesmärk võib olla vähendada sõltumist imporditavast energiast
A10: Mõjutatud sektorid | B10: energiavarustus (sh kütuste ammutamine/kaevandamine, edastamine, jaotamine ja säilitamine ning energia muundamine kütteks ja jahutuseks ning elektri tootmiseks)
A11: Eesmärk | B11: taastuvate energiaallikate osakaalu suurendamine elektrisektoris (energiavarustus)
A12: Kvantitatiivne eesmärk | B12: NA
A13: Kasvuhoonegaasid, mille heitmeid otseselt mõjutatakse | B13: CO2; CH4; N2O
A14: Planeeritud eelarve
A15: Oodatav mõju 2025-2030 keskmine | B15: NE
A16: Programmi või meetme tüüp | B16: Planeerimine (Planning)
A17: Hinnang sellele, mil määral poliitikasuund või meede aitab saavutada määruse (EL) 2021/1119 artikli 2 lõikes 1 sätestatud liidu kliimaneutraalsusees märki ja täita määruse (EL) 2018/1999 artiklis 15 osutatud pikaajalist strateegiat | B17: This measure contributes to the political guidelines for the economy as a whole set in the General Principles of Climate Policy until 2050. https://kliimaministeerium.ee/sites/default/files/documents/2023-03/310022023003%20%281%29.pdf
A18: Programmi või meetme aluseks olevad Euroopa Liidu õigusaktid | B18: Renewable Energy Directive
A19: Programmi või meetme rakendamise seis | B19: Rakendatud (Implemented)
A20: Programmi või meetme rakendamise periood | B20: 2021-2024
A21: Stsenaarium, mille juures programmi või meedet on arvestatud | B21: NIP
A22: Programmi või meetme rakendamise eest vastutavad isikute või asutuste tüüp | B22: riigi valitsus
A23: Programmi või meetme rakendamise eest vastutavad isikud või asutused | B23: Kaitseministeerium
A24: Viide analüüsidele või tehnilistele aruannetele | B24: https://kliimaministeerium.ee/sites/default/files/documents/2023-07/REKK%202030%20kaasamisseminari%20ettekanded.pdf
A25: Kommentaar

Sheet EN5
A1: REKK peatükk | B1: 3.1.1.i
A2: Teised seonduvad REKK 2030 peatükid | B2: 3.1.2.i
A3: Poliitikasuuna või meetme number (PaM ID) | B3: 9
A4: Programmi või meetme number REKK2030 | B4: =MID(CELL("filename",A2),FIND("]",CELL("filename",A2))+1,255) -> EN5
A5: Programmi või meetme nimetus | B5: Taastuvenergia toetus läbi vähempakkumiste oksjoni (tehnoloogia neutraalne)
A6: Programmi või meetme nimetus inglise keeles | B6: Renewable energy support through underbidding auctions (technology neutral)
A7: Lühike kirjeldus | B7: Toetus taastuvenergia tootmiseks tehnoloogianeutraalse enampakkumise kaudu. Eesmärk on suurendada taastuvatest energiaallikatest energiatootmist ja liikuda turupõhise energiamajanduse poole. Enampakkumiste väljakuulutamise ajakava: 2019 kuulutati välja 5 GWh suurune enampakkumine, 2020 kuulutati välja 5 GWh suurune enampakkumine, 2021. aastal kuulutati välja 540 GWh suurune enampakkumine (tehnoloogia neutraalne).
A8: Seotud Euroopa Liidu energialiidu mõõtmed | B8: CO2 heite vähendamise mõõde; CO2 heite vähendamise mõõde: taastuvenergia; Energiajulgeoleku mõõde
A9: Asjakohased eesmärgid, sihid või panused, millele poliitikasuund või meede kaasa aitab | B9: muud eesmärgid, sh sektoripõhised ja kohanemiseesmärgid; panus liidu siduvasse eesmärki saavutada 2030. aastal taastuvenergia vähemalt 32 % osakaal, nagu on osutatud direktiivi (EL) 2018/2001 artiklis 3 ; riiklikud eesmärgid seoses energiaallikate mitmekesistamise ja kolmandatest riikidest pärit energiatarnete suurendamisega, mille eesmärk võib olla vähendada sõltumist imporditavast energiast
A10: Mõjutatud sektorid | B10: energiavarustus (sh kütuste ammutamine/kaevandamine, edastamine, jaotamine ja säilitamine ning energia muundamine kütteks ja jahutuseks ning elektri tootmiseks)
A11: Eesmärk | B11: taastuvate energiaallikate osakaalu suurendamine elektrisektoris (energiavarustus); üleminek vähem CO2 heidet tekitavatele kütustele (energiavarustus); tõhususe suurendamine energeetikasektoris ja energia muundamise sektoris (energiavarustus)
A12: Kvantitatiivne eesmärk | B12: Täiendav taastuvenergia toodang: 2024-2025 - 555 GWh
A13: Kasvuhoonegaasid, mille heitmeid otseselt mõjutatakse | B13: CO2; CH4; N2O
A14: Planeeritud eelarve
A15: Oodatav mõju 2025-2030 keskmine | B15: =AVERAGE(Meetmed!H6:M6) -> 108.1286935
A16: Programmi või meetme tüüp | B16: Majanduslikud stiimulid (Economic); Seadusandlus (Regulatory)
A17: Hinnang sellele, mil määral poliitikasuund või meede aitab saavutada määruse (EL) 2021/1119 artikli 2 lõikes 1 sätestatud liidu kliimaneutraalsusees märki ja täita määruse (EL) 2018/1999 artiklis 15 osutatud pikaajalist strateegiat | B17: This measure contributes to the political guidelines for the economy as a whole set in the General Principles of Climate Policy until 2050. https://kliimaministeerium.ee/sites/default/files/documents/2023-03/310022023003%20%281%29.pdf
A18: Programmi või meetme aluseks olevad Euroopa Liidu õigusaktid | B18: ETS Directive; Renewable Energy Directive
A19: Programmi või meetme rakendamise seis | B19: Rakendatud (Implemented)
A20: Programmi või meetme rakendamise periood | B20: 2019-2024
A21: Stsenaarium, mille juures programmi või meedet on arvestatud | B21: WEM
A22: Programmi või meetme rakendamise eest vastutavad isikute või asutuste tüüp | B22: ettevõtjad/tööstusühendused; riigi valitsus
A23: Programmi või meetme rakendamise eest vastutavad isikud või asutused | B23: Elering, Kliimaministeerium
A24: Viide analüüsidele või tehnilistele aruannetele | B24: https://kliimaministeerium.ee/energeetika-maavarad/taastuvenergia/vahempakkumised
A25: Kommentaar | B25: Oodatav mõju on esitatud aasta kohta perioodi 2021-2030 keskmisena

Sheet EN6
A1: REKK peatükk | B1: 3.1.1.i
A2: Teised seonduvad REKK 2030 peatükid | B2: 3.1.2.i
A3: Poliitikasuuna või meetme number (PaM ID) | B3: 10
A4: Programmi või meetme number REKK2030 | B4: =MID(CELL("filename",A2),FIND("]",CELL("filename",A2))+1,255) -> EN6
A5: Programmi või meetme nimetus | B5: Taastuvenergia toetus läbi vähempakkumiste oksjoni (tehnoloogia spetsiifiline)
A6: Programmi või meetme nimetus inglise keeles | B6: Renewable energy support through underbidding auctions (technology specific)
A7: Lühike kirjeldus | B7: Toetus taastuvenergia tootmiseks tehnoloogia spetsiifilise enampakkumise kaudu. Eesmärk on suurendada taastuvatest energiaallikatest energiatootmist ja liikuda turupõhise energiamajanduse poole. Enampakkumiste väljakuulutamise ajakava: 2023. aastal viidi läbi vähemalt 650 GWh suurune enampakkumine (tehnoloogia spetsiifiline). Uute võimsuste rajamise valmimisaasta on indikatiivne, eelduslikult 4-5 aasta pärast konkursi läbiviimist.
A8: Seotud Euroopa Liidu energialiidu mõõtmed | B8: CO2 heite vähendamise mõõde; CO2 heite vähendamise mõõde: taastuvenergia; Energiajulgeoleku mõõde
A9: Asjakohased eesmärgid, sihid või panused, millele poliitikasuund või meede kaasa aitab | B9: muud eesmärgid, sh sektoripõhised ja kohanemiseesmärgid; panus liidu siduvasse eesmärki saavutada 2030. aastal taastuvenergia vähemalt 32 % osakaal, nagu on osutatud direktiivi (EL) 2018/2001 artiklis 3 ; eeldatavad trajektoorid taastuvenergiatehnoloogia lahenduste kaupa; riiklikud eesmärgid seoses energiaallikate mitmekesistamise ja kolmandatest riikidest pärit energiatarnete suurendamisega, mille eesmärk võib olla vähendada sõltumist imporditavast energiast
A10: Mõjutatud sektorid | B10: energiavarustus (sh kütuste ammutamine/kaevandamine, edastamine, jaotamine ja säilitamine ning energia muundamine kütteks ja jahutuseks ning elektri tootmiseks)
A11: Eesmärk | B11: taastuvate energiaallikate osakaalu suurendamine elektrisektoris (energiavarustus); üleminek vähem CO2 heidet tekitavatele kütustele (energiavarustus); tõhususe suurendamine energeetikasektoris ja energia muundamise sektoris (energiavarustus)
A12: Kvantitatiivne eesmärk | B12: Täiendav taastuvenergia toodang: Alates 2028 - 1070 GWh
A13: Kasvuhoonegaasid, mille heitmeid otseselt mõjutatakse | B13: CO2; CH4; N2O
A14: Oodatav mõju 2025-2030 keskmine | B14: =AVERAGE(Meetmed!H7:M7) -> 159.0815822
A15: Programmi või meetme tüüp | B15: Majanduslikud stiimulid (Economic); Seadusandlus (Regulatory)
A16: Hinnang sellele, mil määral poliitikasuund või meede aitab saavutada määruse (EL) 2021/1119 artikli 2 lõikes 1 sätestatud liidu kliimaneutraalsusees märki ja täita määruse (EL) 2018/1999 artiklis 15 osutatud pikaajalist strateegiat | B16: This measure contributes to the political guidelines for the economy as a whole set in the General Principles of Climate Policy until 2050. https://kliimaministeerium.ee/sites/default/files/documents/2023-03/310022023003%20%281%29.pdf
A17: Programmi või meetme aluseks olevad Euroopa Liidu õigusaktid | B17: ETS Directive; Renewable Energy Directive
A18: Programmi või meetme rakendamise seis | B18: Rakendatud (Implemented)
A19: Programmi või meetme rakendamise periood | B19: 2023-2028
A20: Stsenaarium, mille juures programmi või meedet on arvestatud | B20: WEM
A21: Programmi või meetme rakendamise eest vastutavad isikute või asutuste tüüp | B21: ettevõtjad/tööstusühendused; riigi valitsus
A22: Programmi või meetme rakendamise eest vastutavad isikud või asutused | B22: Elering, Kliimaministeerium
A23: Viide analüüsidele või tehnilistele aruannetele | B23: https://kliimaministeerium.ee/energeetika-maavarad/taastuvenergia/vahempakkumised https://www.riigiteataja.ee/akt/330012024001
A24: Kommentaar | B24: Oodatav mõju on esitatud aasta kohta perioodi 2021-2030 keskmisena

Sheet EN7
A1: REKK peatükk | B1: 3.1.1.i
A2: Teised seonduvad REKK 2030 peatükid | B2: 3.2.1.i
A3: Poliitikasuuna või meetme number (PaM ID) | B3: 7
A4: Programmi või meetme number REKK2030 | B4: =MID(CELL("filename",A2),FIND("]",CELL("filename",A2))+1,255) -> EN7
A5: Programmi või meetme nimetus | B5: Rohehange
A6: Programmi või meetme nimetus inglise keeles | B6: Green procurement
A7: Lühike kirjeldus | B7: Ühishanke eesmärk on sõlmida pikaajalisi fikseeritud hinnaga elektriostu lepinguid otse tootjatega. Hangitav elekter on toetusteta ja toodetud Eesti taastuvatest energiaallikatest.
A8: Seotud Euroopa Liidu energialiidu mõõtmed | B8: CO2 heite vähendamise mõõde; CO2 heite vähendamise mõõde: taastuvenergia
A9: Asjakohased eesmärgid, sihid või panused, millele poliitikasuund või meede kaasa aitab | B9: eeldatavad trajektoorid, mis näitavad ajavahemikul 2021–2030 elektri-, kütte- ja jahutus- ning transpordisektoris tarbitava taastuvenergia osakaalu lõppenergia tarbimises; muud eesmärgid, sh sektoripõhised ja kohanemiseesmärgid
A10: Mõjutatud sektorid | B10: energiatarbimine (sh kütuste ja elektri tarbimine lõpptarbijate, näiteks kodumajapidamiste ja ametiasutuste, teenindus-, tööstus- ja põllumajandussektori poolt)
A11: Eesmärk | B11: taastuvate energiaallikate osakaalu suurendamine elektrisektoris (energiavarustus)
A12: Kvantitatiivne eesmärk | B12: NA
A13: Kasvuhoonegaasid, mille heitmeid otseselt mõjutatakse | B13: CO2; CH4; N2O
A14: Planeeritud eelarve
A15: Oodatav mõju 2025-2030 keskmine | B15: NE
A16: Programmi või meetme tüüp | B16: Planeerimine (Planning)
A17: Hinnang sellele, mil määral poliitikasuund või meede aitab saavutada määruse (EL) 2021/1119 artikli 2 lõikes 1 sätestatud liidu kliimaneutraalsusees märki ja täita määruse (EL) 2018/1999 artiklis 15 osutatud pikaajalist strateegiat | B17: This measure contributes to the political guidelines for the economy as a whole set in the General Principles of Climate Policy until 2050. https://kliimaministeerium.ee/sites/default/files/documents/2023-03/310022023003%20%281%29.pdf
A18: Programmi või meetme aluseks olevad Euroopa Liidu õigusaktid | B18: Renewable Energy Directive
A19: Programmi või meetme rakendamise seis | B19: Rakendatud (Implemented)
A20: Programmi või meetme rakendamise periood | B20: 2021-
A21: Stsenaarium, mille juures programmi või meedet on arvestatud | B21: NIP
A22: Programmi või meetme rakendamise eest vastutavad isikute või asutuste tüüp | B22: riigi valitsus
A23: Programmi või meetme rakendamise eest vastutavad isikud või asutused | B23: Riigi Kinnisvara
A24: Viide analüüsidele või tehnilistele aruannetele
A25: Kommentaar

Sheet EN8
A1: REKK peatükk | B1: 3.2.iv
A2: Teised seonduvad REKK 2030 peatükid
A3: Poliitikasuuna või meetme number (PaM ID) | B3: 33
A4: Programmi või meetme number REKK2030 | B4: =MID(CELL("filename",A2),FIND("]",CELL("filename",A2))+1,255) -> EN8
A5: Programmi või meetme nimetus | B5: Võrguteenuste kvaliteedi tõstmine
A6: Programmi või meetme nimetus inglise keeles | B6: Improving the quality of network services
A7: Lühike kirjeldus | B7: Võrguteenuste kvaliteedi tõstmine (standardite EVSEN 50160, EVS-IEC 61000 nõuete täitmine) ja häiringute põhjustajate vastutuse määratlemine ning meetmete rakendamine häiringute kõrvaldamiseks
A8: Seotud Euroopa Liidu energialiidu mõõtmed | B8: Energiatõhususe mõõde
A9: Asjakohased eesmärgid, sihid või panused, millele poliitikasuund või meede kaasa aitab | B9: seoses liidu 2030. aasta vähemalt 32,5 % energiatõhususeesmärgiga kindlaks määratud soovituslik riiklik energiatõhususpanus, millele on osutatud direktiivi 2012/27/EL artikli 1 lõikes 1 ja artikli 3 lõikes 5
A10: Mõjutatud sektorid | B10: energiatarbimine (sh kütuste ja elektri tarbimine lõpptarbijate, näiteks kodumajapidamiste ja ametiasutuste, teenindus-, tööstus- ja põllumajandussektori poolt)
A11: Eesmärk | B11: hoonete energiatõhususe suurendamine (energiatarbimine); seadmete energiatõhususe suurendamine (energiatarbimine); Energiatõhususe suurendamine teenuste-/teenindussektoris (energiatarbimine); energiatõhususe suurendamine tööstusliku lõppkasutuse sektorites (energiatarbimine)
A12: Kvantitatiivne eesmärk | B12: Jaotusvõrgus katkestuste keskmine kogukestus minutites tarbimiskoha kohta aastas, minutit: ≤90 (2030) Andmata jäänud energia kogus ülekandevõrgus: ≤150 (2030)
A13: Kasvuhoonegaasid, mille heitmeid otseselt mõjutatakse | B13: NA
A14: Planeeritud eelarve
A15: Oodatav mõju 2025-2030 keskmine | B15: NE
A16: Programmi või meetme tüüp | B16: Seadusandlus (Regulatory)
A17: Hinnang sellele, mil määral poliitikasuund või meede aitab saavutada määruse (EL) 2021/1119 artikli 2 lõikes 1 sätestatud liidu kliimaneutraalsusees märki ja täita määruse (EL) 2018/1999 artiklis 15 osutatud pikaajalist strateegiat | B17: This measure contributes to the political guidelines for the economy as a whole set in the General Principles of Climate Policy until 2050. https://kliimaministeerium.ee/sites/default/files/documents/2023-03/310022023003%20%281%29.pdf
A18: Programmi või meetme aluseks olevad Euroopa Liidu õigusaktid | B18: Energy Efficency Directive
A19: Programmi või meetme rakendamise seis | B19: Rakendatud (Implemented)
A20: Programmi või meetme rakendamise periood | B20: 2017-2030
A21: Stsenaarium, mille juures programmi või meedet on arvestatud | B21: NIP
A22: Programmi või meetme rakendamise eest vastutavad isikute või asutuste tüüp | B22: riigi valitsus
A23: Programmi või meetme rakendamise eest vastutavad isikud või asutused | B23: Kliimaministeerium
A24: Viide analüüsidele või tehnilistele aruannetele | B24: https://energiatalgud.ee/img_auth.php/1/12/Eesti_Arengufond._Elektriv%C3%B5rgu_t%C3%A4nane_olukord._V%C3%B5imalikud_arengustsenaariumid.pdf
A25: Kommentaar

Sheet EN9
A1: REKK peatükk | B1: 3.2.vi
A2: Teised seonduvad REKK 2030 peatükid | B2: ="3.3.i" -> 3.3.i
A3: Poliitikasuuna või meetme number (PaM ID) | B3: 8
A4: Programmi või meetme number REKK2030 | B4: =MID(CELL("filename",A2),FIND("]",CELL("filename",A2))+1,255) -> EN9
A5: Programmi või meetme nimetus | B5: Ilmastikukindla võrgu osakaalu suurendamine
A6: Programmi või meetme nimetus inglise keeles | B6: Increasing the share of the weatherproof network
A7: Lühike kirjeldus | B7: Paljasjuhtmeliste õhuliinide asendamine ilmastikukindlate lahendustega jaotusvõrgus
A8: Seotud Euroopa Liidu energialiidu mõõtmed | B8: Energiatõhususe mõõde
A9: Asjakohased eesmärgid, sihid või panused, millele poliitikasuund või meede kaasa aitab | B9: seoses liidu 2030. aasta vähemalt 32,5 % energiatõhususeesmärgiga kindlaks määratud soovituslik riiklik energiatõhususpanus, millele on osutatud direktiivi 2012/27/EL artikli 1 lõikes 1 ja artikli 3 lõikes 5
A10: Mõjutatud sektorid | B10: energiavarustus (sh kütuste ammutamine/kaevandamine, edastamine, jaotamine ja säilitamine ning energia muundamine kütteks ja jahutuseks ning elektri tootmiseks)
A11: Eesmärk | B11: energiavarustustaristu vastupanuvõime suurendamine, sealhulgas energiavarustuse tagamine suuremate võrguhäirete korral (energiavarustus)
A12: Kvantitatiivne eesmärk | B12: Ilmastikukindla võrgu osakaal jaotusvõrgus: 75% (2030) (Elektrilevi arengukava eesmärk)
A13: Kasvuhoonegaasid, mille heitmeid otseselt mõjutatakse | B13: NA
A14: Planeeritud eelarve
A15: Oodatav mõju 2025-2030 keskmine | B15: NE
A16: Programmi või meetme tüüp | B16: Seadusandlus (Regulatory)
A17: Hinnang sellele, mil määral poliitikasuund või meede aitab saavutada määruse (EL) 2021/1119 artikli 2 lõikes 1 sätestatud liidu kliimaneutraalsusees märki ja täita määruse (EL) 2018/1999 artiklis 15 osutatud pikaajalist strateegiat | B17: This measure contributes to the political guidelines for the economy as a whole set in the General Principles of Climate Policy until 2050. https://kliimaministeerium.ee/sites/default/files/documents/2023-03/310022023003%20%281%29.pdf
A18: Programmi või meetme aluseks olevad Euroopa Liidu õigusaktid | B18: Energy Efficency Directive
A19: Programmi või meetme rakendamise seis | B19: Rakendatud (Implemented)
A20: Programmi või meetme rakendamise periood | B20: 2017-2030
A21: Stsenaarium, mille juures programmi või meedet on arvestatud | B21: NIP
A22: Programmi või meetme rakendamise eest vastutavad isikute või asutuste tüüp | B22: riigi valitsus
A23: Programmi või meetme rakendamise eest vastutavad isikud või asutused | B23: Kliimaministeerium
A24: Viide analüüsidele või tehnilistele aruannetele | B24: https://energiatalgud.ee/img_auth.php/1/12/Eesti_Arengufond._Elektriv%C3%B5rgu_t%C3%A4nane_olukord._V%C3%B5imalikud_arengustsenaariumid.pdf
A25: Kommentaar

Sheet EN10
A1: REKK peatükk | B1: 3.2.vi
A2: Teised seonduvad REKK 2030 peatükid
A3: Poliitikasuuna või meetme number (PaM ID) | B3: 122
A4: Programmi või meetme number REKK2030 | B4: =MID(CELL("filename",A1),FIND("]",CELL("filename",A1))+1,255) -> EN10
A5: Programmi või meetme nimetus | B5: Kauglugemissüsteemile üleminek
A6: Programmi või meetme nimetus inglise keeles | B6: Switching to a remote reading system
A7: Lühike kirjeldus | B7: Kaugloetavate arvestite paigaldamine kõigile tarbijatele, kauglugemise juurutamine, 2027. alates järkjärgult üleminek 15 min kauplemisperioodile nõuab uute kaugloetavate arvestite paigaldust seoses andmesidega, aitab arendada elutähtsat teenust, aitab vähendada CO2 tarbimisandmete kättesaadavuse parandamise ja nende andmete alusel tarbimise juhtimisega
A8: Seotud Euroopa Liidu energialiidu mõõtmed | B8: Energiatõhususe mõõde
A9: Asjakohased eesmärgid, sihid või panused, millele poliitikasuund või meede kaasa aitab | B9: ajavahemikul 2021–2030 saavutatav kumulatiivne lõpptarbimise energiasääst kooskõlas direktiivi 2012/27/EL artikli 7 lõike 1 punktiga b energiasäästukohustuste kohta
A10: Mõjutatud sektorid | B10: energiatarbimine (sh kütuste ja elektri tarbimine lõpptarbijate, näiteks kodumajapidamiste ja ametiasutuste, teenindus-, tööstus- ja põllumajandussektori poolt)
A11: Eesmärk | B11: nõudluse juhtimine/vähendamine (energiatarbimine); hoonete energiatõhususe suurendamine (energiatarbimine); seadmete energiatõhususe suurendamine (energiatarbimine); Energiatõhususe suurendamine teenuste-/teenindussektoris (energiatarbimine); energiatõhususe suurendamine tööstusliku lõppkasutuse sektorites (energiatarbimine)
A12: Kvantitatiivne eesmärk | B12: Kõik tarbijad on varustatud kauglugemisseadmetega 01.01.2017
A13: Kasvuhoonegaasid, mille heitmeid otseselt mõjutatakse | B13: NA
A14: Planeeritud eelarve
A15: Oodatav mõju 2025-2030 keskmine | B15: NE
A16: Programmi või meetme tüüp | B16: Seadusandlus (Regulatory)
A17: Hinnang sellele, mil määral poliitikasuund või meede aitab saavutada määruse (EL) 2021/1119 artikli 2 lõikes 1 sätestatud liidu kliimaneutraalsusees märki ja täita määruse (EL) 2018/1999 artiklis 15 osutatud pikaajalist strateegiat | B17: This measure contributes to the political guidelines for the economy as a whole set in the General Principles of Climate Policy until 2050. https://kliimaministeerium.ee/sites/default/files/documents/2023-03/310022023003%20%281%29.pdf
A18: Programmi või meetme aluseks olevad Euroopa Liidu õigusaktid | B18: Energy Efficency Directive
A19: Programmi või meetme rakendamise seis | B19: Vastuvõetud (Adopted)
A20: Programmi või meetme rakendamise periood | B20: 2027-2030
A21: Stsenaarium, mille juures programmi või meedet on arvestatud | B21: NIP
A22: Programmi või meetme rakendamise eest vastutavad isikute või asutuste tüüp | B22: riigi valitsus
A23: Programmi või meetme rakendamise eest vastutavad isikud või asutused | B23: Kliimaministeerium
A24: Viide analüüsidele või tehnilistele aruannetele
A25: Kommentaar

Sheet EN11
A1: REKK peatükk | B1: 3.3.i
A2: Teised seonduvad REKK 2030 peatükid | B2: ="3.4.1, 3.4.2, 3.4.3" -> 3.4.1, 3.4.2, 3.4.3
A3: Poliitikasuuna või meetme number (PaM ID) | B3: 23
A4: Programmi või meetme number REKK2030 | B4: =MID(CELL("filename",A2),FIND("]",CELL("filename",A2))+1,255) -> EN11
A5: Programmi või meetme nimetus | B5: Balti riikide elektrisüsteemi sünkroniseerimine mandri-Euroopa sünkroonalaga
A6: Programmi või meetme nimetus inglise keeles | B6: Synchronization of the electricity system of the Baltic countries with the synchronous area of continental Europe
A7: Lühike kirjeldus | B7: Balti riikide elektrisüsteemi sünkroniseerimine mandri-Euroopa sünkroonalaga
A8: Seotud Euroopa Liidu energialiidu mõõtmed | B8: Energiajulgeoleku mõõde
A9: Asjakohased eesmärgid, sihid või panused, millele poliitikasuund või meede kaasa aitab | B9: kolmandatest riikidest imporditavast energiast sõltumise vähendamise riiklikud eesmärgid, et suurendada piirkondade ja riikide energiasüsteemide vastupanuvõimet
A10: Mõjutatud sektorid | B10: energiavarustus (sh kütuste ammutamine/kaevandamine, edastamine, jaotamine ja säilitamine ning energia muundamine kütteks ja jahutuseks ning elektri tootmiseks)
A11: Eesmärk | B11: MUU
A12: Kvantitatiivne eesmärk | B12: Eesti on ühendatud Euroopa Liidus juhitava sünkroonalaga (2025)
A13: Kasvuhoonegaasid, mille heitmeid otseselt mõjutatakse | B13: NA
A14: Planeeritud eelarve
A15: Oodatav mõju 2025-2030 keskmine | B15: NE
A16: Programmi või meetme tüüp | B16: Muu (Other)
A17: Hinnang sellele, mil määral poliitikasuund või meede aitab saavutada määruse (EL) 2021/1119 artikli 2 lõikes 1 sätestatud liidu kliimaneutraalsusees märki ja täita määruse (EL) 2018/1999 artiklis 15 osutatud pikaajalist strateegiat | B17: This measure contributes to the political guidelines for the economy as a whole set in the General Principles of Climate Policy until 2050. https://kliimaministeerium.ee/sites/default/files/documents/2023-03/310022023003%20%281%29.pdf
A18: Programmi või meetme aluseks olevad Euroopa Liidu õigusaktid | B18: Commission Delegated Regulation (EU) 2018/540 of 23 November 2017 amending Regulation (EU) No 347/2013 of the European Parliament and of the Council as regards the Union list of projects of common interest
A19: Programmi või meetme rakendamise seis | B19: Rakendatud (Implemented)
A20: Programmi või meetme rakendamise periood | B20: 2018-2025
A21: Stsenaarium, mille juures programmi või meedet on arvestatud | B21: NIP
A22: Programmi või meetme rakendamise eest vastutavad isikute või asutuste tüüp | B22: riigi valitsus
A23: Programmi või meetme rakendamise eest vastutavad isikud või asutused | B23: Kliimaministeerium
A24: Viide analüüsidele või tehnilistele aruannetele
A25: Kommentaar

Sheet EN12
A1: REKK peatükk | B1: 3.1.2.ii
A2: Teised seonduvad REKK 2030 peatükid
A3: Poliitikasuuna või meetme number (PaM ID) | B3: 22
A4: Programmi või meetme number REKK2030 | B4: =MID(CELL("filename",A2),FIND("]",CELL("filename",A2))+1,255) -> EN12
A5: Programmi või meetme nimetus | B5: Õhuseireradarite soetamine tuuleparkide arendamiseks
A6: Programmi või meetme nimetus inglise keeles | B6: The acquisition of air surveillance radars for the development of wind farms
A7: Lühike kirjeldus | B7: Soetatakse koostöös Kaitseministeeriumiga Lääne-Eesti meretuulealade vabastamiseks õhuseireradari 66,8 miljoni euro eest. See on vajalik, et saaksime suurendada kodumaist keskkonnasõbralikku energiatootmist kaitsesüsteeme häirimata. 2023. aastal 98 ettevalmistavad tegevused hanked jms. 2024. aastal soetamisega seonduvad tegevused jätkuvad 2025. aastal, 2026. aastal meede lõppeb.
A8: Seotud Euroopa Liidu energialiidu mõõtmed | B8: CO2 heite vähendamise mõõde: taastuvenergia; Energiajulgeoleku mõõde
A9: Asjakohased eesmärgid, sihid või panused, millele poliitikasuund või meede kaasa aitab | B9: panus liidu siduvasse eesmärki saavutada 2030. aastal taastuvenergia vähemalt 32 % osakaal, nagu on osutatud direktiivi (EL) 2018/2001 artiklis 3 ; riiklikud eesmärgid seoses energiaallikate mitmekesistamise ja kolmandatest riikidest pärit energiatarnete suurendamisega, mille eesmärk võib olla vähendada sõltumist imporditavast energiast
A10: Mõjutatud sektorid | B10: energiavarustus (sh kütuste ammutamine/kaevandamine, edastamine, jaotamine ja säilitamine ning energia muundamine kütteks ja jahutuseks ning elektri tootmiseks)
A11: Eesmärk | B11: taastuvate energiaallikate osakaalu suurendamine elektrisektoris (energiavarustus); üleminek vähem CO2 heidet tekitavatele kütustele (energiavarustus)
A12: Kvantitatiivne eesmärk | B12: Vabastada 2024/2025 aastatel mandri-Eesti kõrguspiirangutest. Ligi 70 % Eesti maismaast vabaneb riigikaitselistest piirnagutest tuuleenergia tootmiseks.
A13: Kasvuhoonegaasid, mille heitmeid otseselt mõjutatakse | B13: NA
A14: Planeeritud eelarve
A15: Oodatav mõju 2025-2030 keskmine | B15: NE
A16: Programmi või meetme tüüp | B16: Majanduslikud stiimulid (Economic)
A17: Hinnang sellele, mil määral poliitikasuund või meede aitab saavutada määruse (EL) 2021/1119 artikli 2 lõikes 1 sätestatud liidu kliimaneutraalsusees märki ja täita määruse (EL) 2018/1999 artiklis 15 osutatud pikaajalist strateegiat | B17: This measure contributes to the political guidelines for the economy as a whole set in the General Principles of Climate Policy until 2050. https://kliimaministeerium.ee/sites/default/files/documents/2023-03/310022023003%20%281%29.pdf
A18: Programmi või meetme aluseks olevad Euroopa Liidu õigusaktid | B18: Renewable Energy Directive; ETS Directive; Energy Efficency Directive
A19: Programmi või meetme rakendamise seis | B19: Rakendatud (Implemented)
A20: Programmi või meetme rakendamise periood | B20: 2019-2025
A21: Stsenaarium, mille juures programmi või meedet on arvestatud | B21: NIP
A22: Programmi või meetme rakendamise eest vastutavad isikute või asutuste tüüp | B22: riigi valitsus
A23: Programmi või meetme rakendamise eest vastutavad isikud või asutused | B23: Kliimaministeerium; Kaitseministeerium
A24: Viide analüüsidele või tehnilistele aruannetele
A25: Kommentaar
A27: 66800000

Sheet EN13
A1: REKK peatükk | B1: 3.1.2.iii
A2: Teised seonduvad REKK 2030 peatükid
A3: Poliitikasuuna või meetme number (PaM ID) | B3: 26
A4: Programmi või meetme number REKK2030 | B4: =MID(CELL("filename",A2),FIND("]",CELL("filename",A2))+1,255) -> EN13
A5: Programmi või meetme nimetus | B5: Meretuuleparkide eelarendus (liitumised, planeeringud), ühisprojekt
A6: Programmi või meetme nimetus inglise keeles | B6: Preliminary development of offshore wind farms (joinings, plans), joint project
A7: Lühike kirjeldus | B7: Meretuuleparkide rajamiseks peavad arendajad tegema olulises mahus kulutusi juba enne, kui on selge, kas piirkonnas tuuleparki rajada saab. Näiteks võib selguda, et nimetatud piirkond tuleb looduskaitse alla võtta. Kõrged riskid tõstavad ühiskonna jaoks taastuvelektri hinda ning heidutavad potentsiaalseid arendajaid. Võimalikuks lahenduseks on riigipoolsed tegevused meretuulepargi eelarendamiseks (näiteks vajalike planeerimismenetlustoimingute läbi viimine, elektrivõrguga liitumise rajamine). Eelkõige on sellist eelarendamist mõistlik riigi poolt kaaluda teiste riikidega ühisprojektides.
A8: Seotud Euroopa Liidu energialiidu mõõtmed | B8: CO2 heite vähendamise mõõde: taastuvenergia; Energiajulgeoleku mõõde
A9: Asjakohased eesmärgid, sihid või panused, millele poliitikasuund või meede kaasa aitab | B9: panus liidu siduvasse eesmärki saavutada 2030. aastal taastuvenergia vähemalt 32 % osakaal, nagu on osutatud direktiivi (EL) 2018/2001 artiklis 3 ; eeldatavad trajektoorid, mis näitavad ajavahemikul 2021–2030 elektri-, kütte- ja jahutus- ning transpordisektoris tarbitava taastuvenergia osakaalu lõppenergia tarbimises; riiklikud eesmärgid seoses energiaallikate mitmekesistamise ja kolmandatest riikidest pärit energiatarnete suurendamisega, mille eesmärk võib olla vähendada sõltumist imporditavast energiast
A10: Mõjutatud sektorid | B10: energiavarustus (sh kütuste ammutamine/kaevandamine, edastamine, jaotamine ja säilitamine ning energia muundamine kütteks ja jahutuseks ning elektri tootmiseks)
A11: Eesmärk | B11: taastuvate energiaallikate osakaalu suurendamine elektrisektoris (energiavarustus)
A12: Kvantitatiivne eesmärk | B12: Riigiabi luba olemas vähempakkumise korraldamiseks toetamaks 130 MEUR/a (kokku 2,6 mlrd eurot) 1000 MW meretuulepargi rajamist, 12 arendusala kandideerivad sellele toetusele. Väljaspool toetust on eelarendatav ühisprojekti ELWIND hoonestusloa taotlusega 1000 MW tuulepargi rajamiseks Läti ja Eesti koostöös oksjoniga 2029. aastal.
A13: Kasvuhoonegaasid, mille heitmeid otseselt mõjutatakse | B13: NA
A14: Planeeritud eelarve
A15: Oodatav mõju 2025-2030 keskmine | B15: NE
A16: Programmi või meetme tüüp | B16: Muu (Other)
A17: Hinnang sellele, mil määral poliitikasuund või meede aitab saavutada määruse (EL) 2021/1119 artikli 2 lõikes 1 sätestatud liidu kliimaneutraalsusees märki ja täita määruse (EL) 2018/1999 artiklis 15 osutatud pikaajalist strateegiat | B17: Meretuuleparkide tulek panustab taastuvenergia eesmärki (mis on toodud energiamajanduse korralduse seaduses) ja seega, kliimaneutraalsele energiatootmisele üleminekusse.
A18: Programmi või meetme aluseks olevad Euroopa Liidu õigusaktid | B18: Renewable Energy Directive
A19: Programmi või meetme rakendamise seis | B19: Rakendatud (Implemented)
A20: Programmi või meetme rakendamise periood | B20: 2020-2029
A21: Stsenaarium, mille juures programmi või meedet on arvestatud | B21: NIP
A22: Programmi või meetme rakendamise eest vastutavad isikute või asutuste tüüp | B22: riigi valitsus
A23: Programmi või meetme rakendamise eest vastutavad isikud või asutused | B23: Kliimaministeerium
A24: Viide analüüsidele või tehnilistele aruannetele
A25: Kommentaar

Sheet EN14
A1: REKK peatükk | B1: 3.1.1.i
A2: Teised seonduvad REKK 2030 peatükid
A3: Poliitikasuuna või meetme number (PaM ID) | B3: 11
A4: Programmi või meetme number REKK2030 | B4: =MID(CELL("filename",A2),FIND("]",CELL("filename",A2))+1,255) -> EN14
A5: Programmi või meetme nimetus | B5: Keskkonnasäästlikud energialahendused väikesaartel
A6: Programmi või meetme nimetus inglise keeles | B6: Introduction of renewable energy in maritime surveillance radar stations on small islands
A7: Lühike kirjeldus | B7: Suurendada taastuvatest energiaallikatest toodetud energiat. Ligikaudu 2/3 kavandatava elektrivarustussüsteemi elektrist toodetakse taastuvatel energiaallikatel põhinevatel tootmisseadmetel. Süsteem peab olema täisautomaatne ja töötama ilma katkestusteta, ja seega kasutatakse ka akupangaga diiselgeneraatorit. Taastuvenergia süsteemi kasutuselevõtt vähendaks täna kasutatava diiselgeneraatori töötunde 60–70%, mis vähendab oluliselt CO2 heitkoguseid.
A8: Seotud Euroopa Liidu energialiidu mõõtmed | B8: CO2 heite vähendamise mõõde; CO2 heite vähendamise mõõde: taastuvenergia; Energiajulgeoleku mõõde; Energiatõhususe mõõde
A9: Asjakohased eesmärgid, sihid või panused, millele poliitikasuund või meede kaasa aitab | B9: eeldatavad trajektoorid, mis näitavad ajavahemikul 2021–2030 elektri-, kütte- ja jahutus- ning transpordisektoris tarbitava taastuvenergia osakaalu lõppenergia tarbimises; panus liidu siduvasse eesmärki saavutada 2030. aastal taastuvenergia vähemalt 32 % osakaal, nagu on osutatud direktiivi (EL) 2018/2001 artiklis 3 ; ajavahemikul 2021–2030 saavutatav kumulatiivne lõpptarbimise energiasääst kooskõlas direktiivi 2012/27/EL artikli 7 lõike 1 punktiga b energiasäästukohustuste kohta; riiklikud eesmärgid seoses energiaallikate mitmekesistamise ja kolmandatest riikidest pärit energiatarnete suurendamisega, mille eesmärk võib olla vähendada sõltumist imporditavast energiast; kasvuhoonegaaside heide ja nende sidumine – liikmesriigi siduv riiklik kasvuhoonegaaside heitega seotud eesmärk ja iga-aastased siduvad riiklikud piirnormid vastavalt määrusele (EL) 2018/842
A10: Mõjutatud sektorid | B10: energiavarustus (sh kütuste ammutamine/kaevandamine, edastamine, jaotamine ja säilitamine ning energia muundamine kütteks ja jahutuseks ning elektri tootmiseks)
A11: Eesmärk | B11: taastuvate energiaallikate osakaalu suurendamine elektrisektoris (energiavarustus); tõhususe suurendamine energeetikasektoris ja energia muundamise sektoris (energiavarustus)
A12: Kvantitatiivne eesmärk | B12: Väike saarte energiatootmine taastuvatest energiaallikatest: 2025 - 0.15 GWh
A13: Kasvuhoonegaasid, mille heitmeid otseselt mõjutatakse | B13: CO2; CH4; N2O
A14: Planeeritud eelarve
A15: Oodatav mõju 2025-2030 keskmine | B15: =AVERAGE(Meetmed!H21:M21) -> 0.18
A16: Programmi või meetme tüüp | B16: Majanduslikud stiimulid (Economic)
A17: Hinnang sellele, mil määral poliitikasuund või meede aitab saavutada määruse (EL) 2021/1119 artikli 2 lõikes 1 sätestatud liidu kliimaneutraalsusees märki ja täita määruse (EL) 2018/1999 artiklis 15 osutatud pikaajalist strateegiat | B17: This measure contributes to the political guidelines for the economy as a whole set in the General Principles of Climate Policy until 2050. https://kliimaministeerium.ee/sites/default/files/documents/2023-03/310022023003%20%281%29.pdf
A18: Programmi või meetme aluseks olevad Euroopa Liidu õigusaktid | B18: Union renewable energy financing mechanism; Effort Sharing Regulation; Renewable Energy Directive
A19: Programmi või meetme rakendamise seis | B19: Rakendatud (Implemented)
A20: Programmi või meetme rakendamise periood | B20: 2021-
A21: Stsenaarium, mille juures programmi või meedet on arvestatud | B21: WEM
A22: Programmi või meetme rakendamise eest vastutavad isikute või asutuste tüüp | B22: riigi valitsus
A23: Programmi või meetme rakendamise eest vastutavad isikud või asutused | B23: =AVERAGE(Meetmed!H21:M21) -> 0.18
A24: Viide analüüsidele või tehnilistele aruannetele | B24: https://adr.siseministeerium.ee/sisemin/dokument/1050803
A25: Kommentaar
A103: MEETME seire
A104: Ajakohastus pärast eelmist esitamist | B104: Ajakohastuse selgitused või täiendava /lisadokumendi link | C104: Poliitikaeesmärgi saavutamiseks tehtud edusammud | D104: Üldised märkused | E104: Juhis tätimiseks
A106: kehtiva meetme muutmine, muudatused rakendamises või ülesehituses ja pikendamine; seireteave, ajakohased andmed edusammude kohta või mõjuhindamise tulemused | B106: nimi muutus | E106: Lahtris Poliitikaeesmärgi saavutamiseks tehtud edusammud (tulp C) lisa kvalitatiivne kirjelduse poliitikaeesmärgi saavutamiseks tehtud edusammude kohta. Lisa sellised näitajad (koos ühikuga) ja nende väärtused, mida on kasutatud poliitikasuundade ja meetmete edenemise seireks ja (järel)hindamiseks. Märgi, millis(t)e aasta(te) väärtus(t)ega on tegemist. Esitada võib mitme näitaja ja aasta väärtused. Esitatud tulemusnäitajad peavad olema asjakohased, heakskiidetud, usaldusväärsed, lihtsad ja töökindlad.
A111: MEETME RAHASTUSE seire
A112: Algselt eeldatud investeeringud (eurodes) | C112: Tegelikud investeeringud aastani X–2 (kaasa arvatud) (eurodes) | E112: Veel rakendamata tegelikud investeeringud (eurodes)
A113: Väärtus | B113: Aasta, mille hindu on kasutatud | C113: Riigi avaliku sektori poolne rahastamine | D113: Allika kirjeldus | E113: Väärtus | F113: Aasta, mille hindu on kasutatud
A114: 1800000 | B114: 2024 (RES 2024-2027) | C114: 0 | D114: EL HKS | E114: 0

Sheet EN16
A1: REKK peatükk | B1: 3.3.i
A2: Teised seonduvad REKK 2030 peatükid
A3: Poliitikasuuna või meetme number (PaM ID) | B3: 13
A4: Programmi või meetme number REKK2030 | B4: =MID(CELL("filename",A2),FIND("]",CELL("filename",A2))+1,255) -> EN16
A5: Programmi või meetme nimetus | B5: Kalalaeva energiatõhususe parendamise ja kliimamuutuste leevendamise toetus
A6: Programmi või meetme nimetus inglise keeles | B6: Support for making the processing of fishery and aquaculture products more energy and resource efficient
A7: Lühike kirjeldus | B7: Meetme eesmärk on suurendada ettevõtete energiasäästu ja ressursi tootlikkust säästlikumate tehnoloogiate ja lahenduste kasutuselevõtu kaudu, vähendades samal ajal mõju keskkonnale. Ressursi tootlikkus on materjalide kasutamise efektiivsuse näitaja, mis iseloomustab seda, kui palju lisandväärtust luuakse materjaliühiku kasutamisega. Seega on toetuse eesmärk nii energiasäästu suurendamine kui ka ressursside või materjalide (vesi, tooraine, küte, jäätmed jne) kasutamine. Tõhusam energiakasutus toob kaasa märkimisväärse rahalise kokkuhoiu ja vähenevad KHG heitkogused. Toetatakse energia- või ressursisäästulahenduse elluviimist energia- või ressursiauditi alusel.
A8: Seotud Euroopa Liidu energialiidu mõõtmed | B8: CO2 heite vähendamise mõõde; Energiatõhususe mõõde
A9: Asjakohased eesmärgid, sihid või panused, millele poliitikasuund või meede kaasa aitab | B9: kasvuhoonegaaside heide ja nende sidumine – liikmesriigi siduv riiklik kasvuhoonegaaside heitega seotud eesmärk ja iga-aastased siduvad riiklikud piirnormid vastavalt määrusele (EL) 2018/842; ajavahemikul 2021–2030 saavutatav kumulatiivne lõpptarbimise energiasääst kooskõlas direktiivi 2012/27/EL artikli 7 lõike 1 punktiga b energiasäästukohustuste kohta
A10: Mõjutatud sektorid | B10: energiatarbimine (sh kütuste ja elektri tarbimine lõpptarbijate, näiteks kodumajapidamiste ja ametiasutuste, teenindus-, tööstus- ja põllumajandussektori poolt)
A11: Eesmärk | B11: energiatõhususe suurendamine teenuste-/teenindussektoris (energiatarbimine)
A12: Kvantitatiivne eesmärk | B12: Meetme energisääst 2030.aastaks 27.2 GWh
A13: Kasvuhoonegaasid, mille heitmeid otseselt mõjutatakse | B13: CO2; CH4; N2O
A14: Planeeritud eelarve
A15: Oodatav mõju 2025-2030 keskmine | B15: =AVERAGE(Meetmed!H31:M31) -> 3.454039799
A16: Programmi või meetme tüüp | B16: Majanduslikud stiimulid (Economic)
A17: Hinnang sellele, mil määral poliitikasuund või meede aitab saavutada määruse (EL) 2021/1119 artikli 2 lõikes 1 sätestatud liidu kliimaneutraalsusees märki ja täita määruse (EL) 2018/1999 artiklis 15 osutatud pikaajalist strateegiat | B17: This measure contributes to the political guidelines for the economy as a whole set in the General Principles of Climate Policy until 2050. https://kliimaministeerium.ee/sites/default/files/documents/2023-03/310022023003%20%281%29.pdf
A18: Programmi või meetme aluseks olevad Euroopa Liidu õigusaktid | B18: Effort Sharing Regulation; Energy Efficency Directive
A19: Programmi või meetme rakendamise seis | B19: Rakendatud (Implemented)
A20: Programmi või meetme rakendamise periood | B20: 2017-
A21: Stsenaarium, mille juures programmi või meedet on arvestatud | B21: WEM
A22: Programmi või meetme rakendamise eest vastutavad isikute või asutuste tüüp | B22: riigi valitsus
A23: Programmi või meetme rakendamise eest vastutavad isikud või asutused | B23: Põllumajanduse Registrite ja Informatsiooni Amet, Regionaal- ja Põllumajandusministeerium
A24: Viide analüüsidele või tehnilistele aruannetele | B24: Kalapüügi- ja vesiviljelustoodete töötlemise energia- ja ressursisäästlikumaks muutmise toetus–Riigi Teataja
A25: Kommentaar

Sheet EN17
A1: REKK peatükk | B1: 3.1.1.i
A2: Teised seonduvad REKK 2030 peatükid
A3: Poliitikasuuna või meetme number (PaM ID) | B3: 14
A4: Programmi või meetme number REKK2030 | B4: =MID(CELL("filename",A2),FIND("]",CELL("filename",A2))+1,255) -> EN17
A5: Programmi või meetme nimetus | B5: Kalapüügi- ja vesiviljelustoodete käitlemisettevõtete energia- ja ressursiauditi tegemise toetus
A6: Programmi või meetme nimetus inglise keeles | B6: Support for energy and resource audits of fishery and aquaculture products establishments
A7: Lühike kirjeldus | B7: Meetme eesmärk on toetada energia- ja ressursiauditi läbiviimist. Energia- ja ressursiauditiga määratakse kindlaks need investeeringud kalandus- ja vesiviljelustoodete töötlemises, mis aitavad säästa energiat või vähendada keskkonnamõju, sealhulgas investeeringud jäätmekäitlusesse. Meede suunab ettevõtteid üle minema säästlikumale mõtteviisile ja edendab kulutõhusaid meetmeid.
A8: Seotud Euroopa Liidu energialiidu mõõtmed | B8: CO2 heite vähendamise mõõde; Energiatõhususe mõõde
A9: Asjakohased eesmärgid, sihid või panused, millele poliitikasuund või meede kaasa aitab | B9: kasvuhoonegaaside heide ja nende sidumine – liikmesriigi siduv riiklik kasvuhoonegaaside heitega seotud eesmärk ja iga-aastased siduvad riiklikud piirnormid vastavalt määrusele (EL) 2018/842; ajavahemikul 2021–2030 saavutatav kumulatiivne lõpptarbimise energiasääst kooskõlas direktiivi 2012/27/EL artikli 7 lõike 1 punktiga b energiasäästukohustuste kohta
A10: Mõjutatud sektorid | B10: energiatarbimine (sh kütuste ja elektri tarbimine lõpptarbijate, näiteks kodumajapidamiste ja ametiasutuste, teenindus-, tööstus- ja põllumajandussektori poolt)
A11: Eesmärk | B11: Energiatõhususe suurendamine teenuste-/teenindussektoris (energiatarbimine)
A12: Kvantitatiivne eesmärk | B12: NA
A13: Kasvuhoonegaasid, mille heitmeid otseselt mõjutatakse | B13: CO2; CH4; N2O
A14: Planeeritud eelarve
A15: Oodatav mõju 2025-2030 keskmine | B15: NE
A16: Programmi või meetme tüüp | B16: Majanduslikud stiimulid (Economic)
A17: Hinnang sellele, mil määral poliitikasuund või meede aitab saavutada määruse (EL) 2021/1119 artikli 2 lõikes 1 sätestatud liidu kliimaneutraalsusees märki ja täita määruse (EL) 2018/1999 artiklis 15 osutatud pikaajalist strateegiat | B17: This measure contributes to the political guidelines for the economy as a whole set in the General Principles of Climate Policy until 2050. https://kliimaministeerium.ee/sites/default/files/documents/2023-03/310022023003%20%281%29.pdf
A18: Programmi või meetme aluseks olevad Euroopa Liidu õigusaktid | B18: Effort Sharing Regulation; Energy Efficency Directive
A19: Programmi või meetme rakendamise seis | B19: Rakendatud (Implemented)
A20: Programmi või meetme rakendamise periood | B20: 2017-
A21: Stsenaarium, mille juures programmi või meedet on arvestatud | B21: NIP
A22: Programmi või meetme rakendamise eest vastutavad isikute või asutuste tüüp | B22: riigi valitsus
A23: Programmi või meetme rakendamise eest vastutavad isikud või asutused | B23: Põllumajanduse Registrite ja Informatsiooni Amet, Regionaal- ja Põllumajandusministeerium
A24: Viide analüüsidele või tehnilistele aruannetele | B24: https://www.riigiteataja.ee/akt/117022017001?leiaKehtiv
A25: Kommentaar

Sheet EN18
A1: REKK peatükk | B1: 3.1.1.i
A2: Teised seonduvad REKK 2030 peatükid
A3: Poliitikasuuna või meetme number (PaM ID) | B3: 15
A4: Programmi või meetme number REKK2030 | B4: =MID(CELL("filename",A2),FIND("]",CELL("filename",A2))+1,255) -> EN18
A5: Programmi või meetme nimetus | B5: Väikeelamute taastuvenergia kasutuselevõtu ja küttesüsteemide uuendamise toetus
A6: Programmi või meetme nimetus inglise keeles | B6: Oil boiler replacement programme
A7: Lühike kirjeldus | B7: Meetme raames toetatakse väikeelamule kütteseadme soetamist ja paigaldamist. Tegevuse raames on planeeritud uuendada 1850 hoone küttesüsteeme. Kui eeldada, et tegemist on keskmiselt 150m2 hoonega, mille energiakulu on 16 MWh aastas ning tegemist on amortiseerunud kütteseadme uuendamisega, mistõttu kasutegur paraneb 5% võrra. Rahalist toetust võivad saada järgmised tegevused: 1) väikeelamu vedelküttekatla väljavahetamise kulu, sealhulgas uue kütteseadme ost ja paigaldus ning katlaseadmete tarvikute (sh tsirkulatsioonipump, kompleksautomaatika) ja abiseadmete vahetus, samuti sellega seotud kulu. energia tootmise salvestamiseks vajalike seadmete ostmiseks ja paigaldamiseks 2) vähemalt 3,5 (7 °C / 35 °C EN 14511) kütteteguriga õhk-vesi tüüpi soojuspumpade või süsteemikoefitsiendiga vesi-vesi (maasoojuspump) soojuspumpade paigalduskulu kütte (COP) vähemalt 4 väikese maja puhul 0,0 (0 °C / 35 °C EN 14511) 3)kütteseadme paigalduse projekteerimisega seotud kulu, kui kütteseadme paigaldamine toimub sama meetme raames.
A8: Seotud Euroopa Liidu energialiidu mõõtmed | B8: CO2 heite vähendamise mõõde; CO2 heite vähendamise mõõde: taastuvenergia; Energiatõhususe mõõde
A9: Asjakohased eesmärgid, sihid või panused, millele poliitikasuund või meede kaasa aitab | B9: kasvuhoonegaaside heide ja nende sidumine – liikmesriigi siduv riiklik kasvuhoonegaaside heitega seotud eesmärk ja iga-aastased siduvad riiklikud piirnormid vastavalt määrusele (EL) 2018/842; eeldatavad trajektoorid, mis näitavad ajavahemikul 2021–2030 elektri-, kütte- ja jahutus- ning transpordisektoris tarbitava taastuvenergia osakaalu lõppenergia tarbimises; ajavahemikul 2021–2030 saavutatav kumulatiivne lõpptarbimise energiasääst kooskõlas direktiivi 2012/27/EL artikli 7 lõike 1 punktiga b energiasäästukohustuste kohta
A10: Mõjutatud sektorid | B10: energiatarbimine (sh kütuste ja elektri tarbimine lõpptarbijate, näiteks kodumajapidamiste ja ametiasutuste, teenindus-, tööstus- ja põllumajandussektori poolt)
A11: Eesmärk | B11: üleminek vähem CO2 heidet tekitavatele kütustele (energiavarustus); kadude vähendamine (energiavarustus)
A12: Kvantitatiivne eesmärk | B12: NA
A13: Kasvuhoonegaasid, mille heitmeid otseselt mõjutatakse | B13: CO2; CH4; N2O
A14: Planeeritud eelarve
A15: Oodatav mõju 2025-2030 keskmine | B15: =AVERAGE(Meetmed!H20:M20) -> 0.3
A16: Programmi või meetme tüüp | B16: Majanduslikud stiimulid (Economic)
A17: Hinnang sellele, mil määral poliitikasuund või meede aitab saavutada määruse (EL) 2021/1119 artikli 2 lõikes 1 sätestatud liidu kliimaneutraalsusees märki ja täita määruse (EL) 2018/1999 artiklis 15 osutatud pikaajalist strateegiat | B17: This measure contributes to the political guidelines for the economy as a whole set in the General Principles of Climate Policy until 2050. https://kliimaministeerium.ee/sites/default/files/documents/2023-03/310022023003%20%281%29.pdf
A18: Programmi või meetme aluseks olevad Euroopa Liidu õigusaktid | B18: Effort Sharing Regulation; Energy Efficency Directive
A19: Programmi või meetme rakendamise seis | B19: Rakendatud (Implemented)
A20: Programmi või meetme rakendamise periood | B20: 2014-
A21: Stsenaarium, mille juures programmi või meedet on arvestatud | B21: WEM
A22: Programmi või meetme rakendamise eest vastutavad isikute või asutuste tüüp | B22: riigi valitsus
A23: Programmi või meetme rakendamise eest vastutavad isikud või asutused | B23: Keskkonnainvesteeringute Keskus, Kliimaministeerium
A24: Viide analüüsidele või tehnilistele aruannetele | B24: https://www.riigiteataja.ee/akt/114102016007?leiaKehtiv
A25: Kommentaar | B25: Oodatav mõju on esitatud aasta kohta perioodi 2021-2030 keskmisena.

Sheet EN19
A1: REKK peatükk | B1: 3.1.1.i
A2: Teised seonduvad REKK 2030 peatükid
A3: Poliitikasuuna või meetme number (PaM ID) | B3: 16
A4: Programmi või meetme number REKK2030 | B4: EN19
A5: Programmi või meetme nimetus | B5: Energia- ja ressursiauditite toetamine tööstusettevõtetes
A6: Programmi või meetme nimetus inglise keeles | B6: Support for energy- and resource audits in industries
A7: Lühike kirjeldus | B7: Toetusmeetme eesmärk (Ettevõtete ressursiauditite toetuse andmise tingimused ja kord perioodil 2021–2027 (ametlik nimetus)) on teadlikkuse tõstmine ja investeeringute toetamine energia- ja ressursitõhusatesse tööstusharudesse. Toetuse andmise eesmärk on parandada ettevõtete teadlikkust oma ressursikasutusest ja luua eeldused ettevõtete ressursikasutuse tõhusamaks muutmiseks ressursiauditite tegemise kaudu. Toetuse andmine panustab meetmete nimekirja väljundnäitaja saavutamisse, milleks on ringmajanduses toetatavad ettevõtjad.
A8: Seotud Euroopa Liidu energialiidu mõõtmed | B8: CO2 heite vähendamise mõõde; Energiatõhususe mõõde
A9: Asjakohased eesmärgid, sihid või panused, millele poliitikasuund või meede kaasa aitab | B9: kasvuhoonegaaside heide ja nende sidumine – liikmesriigi siduv riiklik kasvuhoonegaaside heitega seotud eesmärk ja iga-aastased siduvad riiklikud piirnormid vastavalt määrusele (EL) 2018/842; ajavahemikul 2021–2030 saavutatav kumulatiivne lõpptarbimise energiasääst kooskõlas direktiivi 2012/27/EL artikli 7 lõike 1 punktiga b energiasäästukohustuste kohta
A10: Mõjutatud sektorid | B10: energiatarbimine (sh kütuste ja elektri tarbimine lõpptarbijate, näiteks kodumajapidamiste ja ametiasutuste, teenindus-, tööstus- ja põllumajandussektori poolt)
A11: Eesmärk | B11: energiatõhususe suurendamine tööstusliku lõppkasutuse sektorites (energiatarbimine)
A12: Kvantitatiivne eesmärk | B12: Energia- ja ressursiauditi läbiviimine 150 ettevõttes aastaks 2029.
A13: Kasvuhoonegaasid, mille heitmeid otseselt mõjutatakse | B13: CO2; CH4; N2O
A14: Planeeritud eelarve
A15: Oodatav mõju 2025-2030 keskmine | B15: NE
A16: Programmi või meetme tüüp | B16: Majanduslikud stiimulid (Economic)
A17: Hinnang sellele, mil määral poliitikasuund või meede aitab saavutada määruse (EL) 2021/1119 artikli 2 lõikes 1 sätestatud liidu kliimaneutraalsusees märki ja täita määruse (EL) 2018/1999 artiklis 15 osutatud pikaajalist strateegiat | B17: This measure contributes to the political guidelines for the economy as a whole set in the General Principles of Climate Policy until 2050. https://kliimaministeerium.ee/sites/default/files/documents/2023-03/310022023003%20%281%29.pdf
A18: Programmi või meetme aluseks olevad Euroopa Liidu õigusaktid | B18: Effort Sharing Regulation; Energy Efficency Directive
A19: Programmi või meetme rakendamise seis | B19: Rakendatud (Implemented)
A20: Programmi või meetme rakendamise periood | B20: 2021-2029
A21: Stsenaarium, mille juures programmi või meedet on arvestatud | B21: WEM
A22: Programmi või meetme rakendamise eest vastutavad isikute või asutuste tüüp | B22: riigi valitsus
A23: Programmi või meetme rakendamise eest vastutavad isikud või asutused | B23: Keskkonnainvesteeringute Keskus, Kliimaministeerium
A24: Viide analüüsidele või tehnilistele aruannetele | B24: https://www.riigiteataja.ee/akt/101072016008?leiaKehtiv
A25: Kommentaar

Sheet EN20
A1: REKK peatükk | B1: 3.1.1.i
A2: Teised seonduvad REKK 2030 peatükid
A3: Poliitikasuuna või meetme number (PaM ID) | B3: 17
A4: Programmi või meetme number REKK2030 | B4: EN20
A5: Programmi või meetme nimetus | B5: Energia- ja ressursitõhusus ettevõtetes
A6: Programmi või meetme nimetus inglise keeles | B6: Energy and resource efficiency in industries
A7: Lühike kirjeldus | B7: Teadlikkuse tõstmine ja investeeringute toetamine energia- ja ressursitõhususse tööstustes. RRFis ja ÜFis eesmärk - Toetuse andmise eesmärk on suurendada ettevõtete ressursi- ja energiatõhusust ning ressursitootlikkust tööstusettevõtetes innovaatiliste rohetehnoloogiate ja lahenduste kasutuselevõtu kaudu, et aidata kaasa kliimaneutraalsele majandusele ja kliimamuutustega kohanemisele.
A8: Seotud Euroopa Liidu energialiidu mõõtmed | B8: CO2 heite vähendamise mõõde; Energiatõhususe mõõde
A9: Asjakohased eesmärgid, sihid või panused, millele poliitikasuund või meede kaasa aitab | B9: kasvuhoonegaaside heide ja nende sidumine – liikmesriigi siduv riiklik kasvuhoonegaaside heitega seotud eesmärk ja iga-aastased siduvad riiklikud piirnormid vastavalt määrusele (EL) 2018/842; ajavahemikul 2021–2030 saavutatav kumulatiivne lõpptarbimise energiasääst kooskõlas direktiivi 2012/27/EL artikli 7 lõike 1 punktiga b energiasäästukohustuste kohta
A10: Mõjutatud sektorid | B10: energiatarbimine (sh kütuste ja elektri tarbimine lõpptarbijate, näiteks kodumajapidamiste ja ametiasutuste, teenindus-, tööstus- ja põllumajandussektori poolt)
A11: Eesmärk | B11: energiatõhususe suurendamine tööstusliku lõppkasutuse sektorites (energiatarbimine)
A12: kvantitatiivne eesmärk | B12: ÜFis eesmärgid: Toetuse andmine panustab meetmete nimekirja väljundnäitaja saavutamisse, milleks on ringmajanduses toetatavad ettevõtjad (5 sekkumise peale kokku 150 ettevõtjat 2029 aastaks) ja toetuse tulemusena panustatakse meetmete nimekirja tulemusnäitaja saavutamisse, milleks on esmase toorme sääst (5 sekkumise peale kokku 80 000 t 2029 aastaks).RRFis projekti tulemusnäitaja, milleks on ressursitõhusate rohetehnoloogia kasutuselevõtuks toetust saanud projektide arv (sihtmäär 26 projekti 2026 aastaks).
A13: Kasvuhoonegaasid, mille heitmeid otseselt mõjutatakse | B13: CO2; CH4; N2O
A14: Planeeritud eelarve
A15: Oodatav mõju 2025-2030 keskmine | B15: NE
A16: Programmi või meetme tüüp | B16: Majanduslikud stiimulid (Economic)
A17: Hinnang sellele, mil määral poliitikasuund või meede aitab saavutada määruse (EL) 2021/1119 artikli 2 lõikes 1 sätestatud liidu kliimaneutraalsusees märki ja täita määruse (EL) 2018/1999 artiklis 15 osutatud pikaajalist strateegiat | B17: This measure contributes to the political guidelines for the economy as a whole set in the General Principles of Climate Policy until 2050. https://kliimaministeerium.ee/sites/default/files/documents/2023-03/310022023003%20%281%29.pdf
A18: Programmi või meetme aluseks olevad Euroopa Liidu õigusaktid | B18: Effort Sharing Regulation; Energy Efficency Directive
A19: Programmi või meetme rakendamise seis | B19: Rakendatud (Implemented)
A20: Programmi või meetme rakendamise periood | B20: 2016-, (ÜF periood 2014-2020), RRF kuni 2026 ja ÜF periood 2021-2027
A21: Stsenaarium, mille juures programmi või meedet on arvestatud | B21: WEM
A22: Programmi või meetme rakendamise eest vastutavad isikute või asutuste tüüp | B22: riigi valitsus
A23: Programmi või meetme rakendamise eest vastutavad isikud või asutused | B23: Keskkonnainvesteeringute Keskus, Kliimaministeerium
A24: Viide analüüsidele või tehnilistele aruannetele | B24: https://www.kik.ee/et/toetavad-tegevused/ettevotete-ressursitohusus
A25: Kommentaar | B25: Oodatav mõju on esitatud aasta kohta perioodi 2021-2030 keskmisena.

Sheet EN21
A1: REKK peatükk | B1: 3.1.1.i
A2: Teised seonduvad REKK 2030 peatükid
A3: Poliitikasuuna või meetme number (PaM ID) | B3: 18
A4: Programmi või meetme number REKK2030 | B4: =MID(CELL("filename",A2),FIND("]",CELL("filename",A2))+1,255) -> EN21
A5: Programmi või meetme nimetus | B5: Biometaani kasutuselevõtu soodustamine
A6: Programmi või meetme nimetus inglise keeles | B6: Encouraging the introduction of biomethane
A7: Lühike kirjeldus | B7: Toetatakse biometaani kasutamist ühistranspordis struktuurivahendite 2021-27 perioodil “Rohelisem Eesti” poliitika eesmärgi raames, võttes asutusele CNG-ga töötavad bussid ja toetades CNG-tanklate ehitamist, mis soodustaks kodumaise biometaani kasutuselevõttu ja tarbimist. Toetust antakse biometaanil töötavate busside kasutuselevõtuks eriti maapiirkondades.
A8: Seotud Euroopa Liidu energialiidu mõõtmed | B8: CO2 heite vähendamise mõõde; CO2 heite vähendamise mõõde: taastuvenergia
A9: Asjakohased eesmärgid, sihid või panused, millele poliitikasuund või meede kaasa aitab | B9: kasvuhoonegaaside heide ja nende sidumine – liikmesriigi siduv riiklik kasvuhoonegaaside heitega seotud eesmärk ja iga-aastased siduvad riiklikud piirnormid vastavalt määrusele (EL) 2018/842; eeldatavad trajektoorid, mis näitavad ajavahemikul 2021–2030 elektri-, kütte- ja jahutus- ning transpordisektoris tarbitava taastuvenergia osakaalu lõppenergia tarbimises
A10: Mõjutatud sektorid | B10: energiavarustus (sh kütuste ammutamine/kaevandamine, edastamine, jaotamine ja säilitamine ning energia muundamine kütteks ja jahutuseks ning elektri tootmiseks); transport
A11: Eesmärk | B11: üleminek vähem CO2 heidet tekitavatele kütustele (energiavarustus); taastuvate energiaallikate osakaalu suurendamine elektrisektoris (energiavarustus); taastuvenergia osakaalu suurendamine kütte- ja jahutussektoris (energiavarustus); vähese CO2 heitega kütused (transport)
A12: Kvantitatiivne eesmärk | B12: NA
A13: Kasvuhoonegaasid, mille heitmeid otseselt mõjutatakse | B13: CO2; CH4; N2O
A14: Planeeritud eelarve
A15: Oodatav mõju 2025-2030 keskmine | B15: NE
A16: Programmi või meetme tüüp | B16: Majanduslikud stiimulid (Economic)
A17: Hinnang sellele, mil määral poliitikasuund või meede aitab saavutada määruse (EL) 2021/1119 artikli 2 lõikes 1 sätestatud liidu kliimaneutraalsusees märki ja täita määruse (EL) 2018/1999 artiklis 15 osutatud pikaajalist strateegiat | B17: This measure contributes to the political guidelines for the economy as a whole set in the General Principles of Climate Policy until 2050. https://kliimaministeerium.ee/sites/default/files/documents/2023-03/310022023003%20%281%29.pdf
A18: Programmi või meetme aluseks olevad Euroopa Liidu õigusaktid | B18: European Structural and Investment Funds; Renewable Energy Directive
A19: Programmi või meetme rakendamise seis | B19: Rakendatud (Implemented)
A20: Programmi või meetme rakendamise periood | B20: 2021-
A21: Stsenaarium, mille juures programmi või meedet on arvestatud | B21: WEM
A22: Programmi või meetme rakendamise eest vastutavad isikute või asutuste tüüp | B22: riigi valitsus
A23: Programmi või meetme rakendamise eest vastutavad isikud või asutused | B23: Kliimaministeerium
A24: Viide analüüsidele või tehnilistele aruannetele | B24: https://pilv.rtk.ee/s/dYGaDcSyyqj42di
A25: Kommentaar

Sheet EN22
A1: REKK peatükk | B1: 3.1.1.i
A2: Teised seonduvad REKK 2030 peatükid
A3: Poliitikasuuna või meetme number (PaM ID) | B3: 19
A4: Programmi või meetme number REKK2030 | B4: =MID(CELL("filename",A2),FIND("]",CELL("filename",A2))+1,255) -> EN22
A5: Programmi või meetme nimetus | B5: Vesiniku terviktehnoloogiate kasutuselevõtu edendamine
A6: Programmi või meetme nimetus inglise keeles | B6: Promoting the deployment of complete hydrogen technologies
A7: Lühike kirjeldus | B7: Toetuse eesmärk on pilootprojektide raames testida Eesti oludes vesiniku tervikahelaid vesiniku tootmisest lõpptarbimiseni. Meede toetab täielike vesinikutehnoloogiate kasutuselevõtu edendamist. Toetuse tulemusena kiireneb rohelise vesiniku kasutuselevõtt ja tarbimine energiakandjana. Toetuse eesmärk on katseprojektide raames katsetada Eesti tingimustes terviklikke vesinikuahelaid vesiniku tootmisest lõpptarbimiseni. Rohelise vesiniku pilootprojektide elluviimine toetab REKK2030 eesmärkide ning valdkondlikes arengukavades ja arengudokumentides sätestatud eesmärkide saavutamist ning aitab kaasa nii EL-i kui ka Eesti pikaajaliste kliima- ja energiapoliitika eesmärkide saavutamisele. .
A8: Seotud Euroopa Liidu energialiidu mõõtmed | B8: CO2 heite vähendamise mõõde; CO2 heite vähendamise mõõde: taastuvenergia
A9: Asjakohased eesmärgid, sihid või panused, millele poliitikasuund või meede kaasa aitab | B9: muud eesmärgid, sh sektoripõhised ja kohanemiseesmärgid; eeldatavad trajektoorid, mis näitavad ajavahemikul 2021–2030 elektri-, kütte- ja jahutus- ning transpordisektoris tarbitava taastuvenergia osakaalu lõppenergia tarbimises
A10: Mõjutatud sektorid | B10: energiavarustus (sh kütuste ammutamine/kaevandamine, edastamine, jaotamine ja säilitamine ning energia muundamine kütteks ja jahutuseks ning elektri tootmiseks)
A11: Eesmärk | B11: üleminek vähem CO2 heidet tekitavatele kütustele (energiavarustus)
A12: Kvantitatiivne eesmärk | B12: NA
A13: Kasvuhoonegaasid, mille heitmeid otseselt mõjutatakse | B13: CO2; CH4; N2O
A14: Planeeritud eelarve
A15: Oodatav mõju 2025-2030 keskmine | B15: NE
A16: Programmi või meetme tüüp | B16: Majanduslikud stiimulid (Economic)
A17: Hinnang sellele, mil määral poliitikasuund või meede aitab saavutada määruse (EL) 2021/1119 artikli 2 lõikes 1 sätestatud liidu kliimaneutraalsusees märki ja täita määruse (EL) 2018/1999 artiklis 15 osutatud pikaajalist strateegiat | B17: This measure contributes to the political guidelines for the economy as a whole set in the General Principles of Climate Policy until 2050. https://kliimaministeerium.ee/sites/default/files/documents/2023-03/310022023003%20%281%29.pdf
A18: Programmi või meetme aluseks olevad Euroopa Liidu õigusaktid | B18: European Structural and Investment Funds; Energy Efficency Directive
A19: Programmi või meetme rakendamise seis | B19: Rakendatud (Implemented)
A20: Programmi või meetme rakendamise periood | B20: 2021-
A21: Stsenaarium, mille juures programmi või meedet on arvestatud | B21: WEM
A22: Programmi või meetme rakendamise eest vastutavad isikute või asutuste tüüp | B22: riigi valitsus
A23: Programmi või meetme rakendamise eest vastutavad isikud või asutused | B23: Kliimaministeerium, Riigi Tugiteenuste keskus
A24: Viide analüüsidele või tehnilistele aruannetele | B24: https://pilv.rtk.ee/s/dYGaDcSyyqj42di
A25: Kommentaar

Sheet EN23
A1: REKK peatükk | B1: 3.1.1.i
A2: Teised seonduvad REKK 2030 peatükid
A3: Poliitikasuuna või meetme number (PaM ID) | B3: 20
A4: Programmi või meetme number REKK2030 | B4: =MID(CELL("filename",A2),FIND("]",CELL("filename",A2))+1,255) -> EN23
A5: Programmi või meetme nimetus | B5: Elektrivõrgu tugevdamise programm taastuvenergia tootmisvõimekuse tõstmiseks ning kliimamuutustega kohanemiseks
A6: Programmi või meetme nimetus inglise keeles | B6: Electricity grid reinforcement program to increase renewable energy production capacity and adaptation to climate change
A7: Lühike kirjeldus | B7: Meetme eesmärgiks on suurendada taastuvenergia tootmise võrku integreerimise võimekust. Tegevuste tulemusena suureneb võrgu läbilaskevõime, samuti ka vastupidavus kliimamuutusetele (tormikindlus). Toetust on antud Lääne-Eesti võrkude tugevdamiseks, mille tarbeks tööd käivad.
A8: Seotud Euroopa Liidu energialiidu mõõtmed | B8: CO2 heite vähendamise mõõde; CO2 heite vähendamise mõõde: taastuvenergia; Energiajulgeoleku mõõde
A9: Asjakohased eesmärgid, sihid või panused, millele poliitikasuund või meede kaasa aitab | B9: muud eesmärgid, sh sektoripõhised ja kohanemiseesmärgid; panus liidu siduvasse eesmärki saavutada 2030. aastal taastuvenergia vähemalt 32 % osakaal, nagu on osutatud direktiivi (EL) 2018/2001 artiklis 3 ; riiklikud eesmärgid seoses energiaallikate mitmekesistamise ja kolmandatest riikidest pärit energiatarnete suurendamisega, mille eesmärk võib olla vähendada sõltumist imporditavast energiast
A10: Mõjutatud sektorid | B10: energiavarustus (sh kütuste ammutamine/kaevandamine, edastamine, jaotamine ja säilitamine ning energia muundamine kütteks ja jahutuseks ning elektri tootmiseks)
A11: Eesmärk | B11: taastuvate energiaallikate osakaalu suurendamine elektrisektoris (energiavarustus); tõhususe suurendamine energeetikasektoris ja energia muundamise sektoris (energiavarustus)
A12: Kvantitatiivne eesmärk | B12: RES100% (taastuvenergia toodang peab aasta kokkuvõttes olema sama suur kui lõpptarbimine
A13: Kasvuhoonegaasid, mille heitmeid otseselt mõjutatakse | B13: CO2; CH4; N2O
A14: Planeeritud eelarve
A15: Oodatav mõju 2025-2030 keskmine | B15: NE
A16: Programmi või meetme tüüp | B16: Majanduslikud stiimulid (Economic)
A17: Hinnang sellele, mil määral poliitikasuund või meede aitab saavutada määruse (EL) 2021/1119 artikli 2 lõikes 1 sätestatud liidu kliimaneutraalsusees märki ja täita määruse (EL) 2018/1999 artiklis 15 osutatud pikaajalist strateegiat | B17: This measure contributes to the political guidelines for the economy as a whole set in the General Principles of Climate Policy until 2050. https://kliimaministeerium.ee/sites/default/files/documents/2023-03/310022023003%20%281%29.pdf
A18: Programmi või meetme aluseks olevad Euroopa Liidu õigusaktid | B18: European Structural and Investment Funds; Renewable Energy Directive
A19: Programmi või meetme rakendamise seis | B19: Rakendatud (Implemented)
A20: Programmi või meetme rakendamise periood | B20: 2021-2027
A21: Stsenaarium, mille juures programmi või meedet on arvestatud | B21: WEM
A22: Programmi või meetme rakendamise eest vastutavad isikute või asutuste tüüp | B22: riigi valitsus
A23: Programmi või meetme rakendamise eest vastutavad isikud või asutused | B23: Kliimaministeerium; Elektrilevi
A24: Viide analüüsidele või tehnilistele aruannetele | B24: https://pilv.rtk.ee/s/dYGaDcSyyqj42di
A25: Kommentaar | B25: Eesti vastupidavus- ja taastekava meede

Sheet EN24
A1: REKK peatükk | B1: 3.1.1.i
A2: Teised seonduvad REKK 2030 peatükid
A3: Poliitikasuuna või meetme number (PaM ID) | B3: 21
A4: Programmi või meetme number REKK2030 | B4: =MID(CELL("filename",A2),FIND("]",CELL("filename",A2))+1,255) -> EN24
A5: Programmi või meetme nimetus | B5: Energia salvestuse pilootprogramm
A6: Programmi või meetme nimetus inglise keeles | B6: Energy storage pilot program
A7: Lühike kirjeldus | B7: Meetme eesmärgiks on energia salvestuse kasutuselevõtu hoogustamine läbi investeeringutoetuse ning seeläbi suurendada taastuvenergia osatähtsust kaugküttesüsteemides ning vähendada fosiilkütuste kasutust. Väheneb fossiilenergia vajadus tipukoormuse katmiseks, sest kasutatakse taastuvenergiast toodetud salvestatud energiat. Samuti vähenevad kaod taastuvenergia tootmisel (nt suvel kaugküttevõrkudes) – st suureneb kaugküttesüsteemi energiatõhusus. Võimaldab ressursse kasutada suurema efektiivsusega ja madalama KHG heitega.
A8: Seotud Euroopa Liidu energialiidu mõõtmed | B8: CO2 heite vähendamise mõõde; CO2 heite vähendamise mõõde: taastuvenergia; Energiatõhususe mõõde; Teadusuuringute, innovatsiooni ja konkurentsivõime mõõde
A9: Asjakohased eesmärgid, sihid või panused, millele poliitikasuund või meede kaasa aitab | B9: muud eesmärgid, sh sektoripõhised ja kohanemiseesmärgid; panus liidu siduvasse eesmärki saavutada 2030. aastal taastuvenergia vähemalt 32 % osakaal, nagu on osutatud direktiivi (EL) 2018/2001 artiklis 3 ; seoses liidu 2030. aasta vähemalt 32,5 % energiatõhususeesmärgiga kindlaks määratud soovituslik riiklik energiatõhususpanus, millele on osutatud direktiivi 2012/27/EL artikli 1 lõikes 1 ja artikli 3 lõikes 5; energialiiduga seotud avaliku sektori teadusuuringuid ja innovatsiooni ning asjakohasel juhul ka erasektori teadusuuringuid ja innovatsiooni käsitlevad riiklikud rahastamis- ja muud eesmärgid
A10: Mõjutatud sektorid | B10: energiatarbimine (sh kütuste ja elektri tarbimine lõpptarbijate, näiteks kodumajapidamiste ja ametiasutuste, teenindus-, tööstus- ja põllumajandussektori poolt)
A11: Eesmärk | B11: nõudluse juhtimine/vähendamine (energiatarbimine)
A12: Kvantitatiivne eesmärk | B12: NA
A13: Kasvuhoonegaasid, mille heitmeid otseselt mõjutatakse | B13: CO2; CH4; N2O
A14: Planeeritud eelarve
A15: Oodatav mõju 2025-2030 keskmine | B15: NE
A16: Programmi või meetme tüüp | B16: Majanduslikud stiimulid (Economic)
A17: Hinnang sellele, mil määral poliitikasuund või meede aitab saavutada määruse (EL) 2021/1119 artikli 2 lõikes 1 sätestatud liidu kliimaneutraalsusees märki ja täita määruse (EL) 2018/1999 artiklis 15 osutatud pikaajalist strateegiat | B17: This measure contributes to the political guidelines for the economy as a whole set in the General Principles of Climate Policy until 2050. https://kliimaministeerium.ee/sites/default/files/documents/2023-03/310022023003%20%281%29.pdf
A18: Programmi või meetme aluseks olevad Euroopa Liidu õigusaktid | B18: European Structural and Investment Funds; Energy Efficency Directive
A19: Programmi või meetme rakendamise seis | B19: Rakendatud (Implemented)
A20: Programmi või meetme rakendamise periood | B20: 2021-2027
A21: Stsenaarium, mille juures programmi või meedet on arvestatud | B21: WEM
A22: Programmi või meetme rakendamise eest vastutavad isikute või asutuste tüüp | B22: riigi valitsus
A23: Programmi või meetme rakendamise eest vastutavad isikud või asutused | B23: Kliimaministeerium, Keskkonnainvesteeringute Keskus
A24: Viide analüüsidele või tehnilistele aruannetele | B24: https://www.riigiteataja.ee/akt/109122022021?leiaKehtiv=
A25: Kommentaar

Sheet EN25
A1: REKK peatükk | B1: 3.1.3.i
A2: Teised seonduvad REKK 2030 peatükid | B2: 3.1.3.iv, 3.1.3-iv
A3: Poliitikasuuna või meetme number (PaM ID) | B3: 121
A4: Programmi või meetme number REKK2030 | B4: =MID(CELL("filename",A2),FIND("]",CELL("filename",A2))+1,255) -> EN25
A5: Programmi või meetme nimetus | B5: Energia maksumeetmed
A6: Programmi või meetme nimetus inglise keeles | B6: Energy tax measures
A7: Lühike kirjeldus | B7: Energiamaksud (aktsiis ja käibemaks) järgmiselt: - Elekter - Soojus - Maagaas - Bensiin - Diisel - Erimärgistatud diisel - Küttepuud - Puidujäägid - Taastuvenergia tasu Tarbimismaksudena kajastatakse aktsiisi ja käibemaksu teatud kaubagruppidelt. Kuna aktsiis ja käibemaks on oma olemuselt tarbimismaksud, siis kandub selle maksustamise maksukoormus üle lõpptarbijale, kes maksab toote ostmisel hinnas sisalduva aktsiisi ja/või käibemaksu ( sel juhul elekter või teatud kütused). Aktsiisi ja/või käibemaksu mõju tõttu hindadele mõjutab see lõpptarbijate käitumist energiatõhusate tehnoloogiate suurema kasutamise ja/või ressursi säästlikuma kasutamise suunas.
A8: Seotud Euroopa Liidu energialiidu mõõtmed | B8: CO2 heite vähendamise mõõde; Energiatõhususe mõõde
A9: Asjakohased eesmärgid, sihid või panused, millele poliitikasuund või meede kaasa aitab | B9: kasvuhoonegaaside heide ja nende sidumine – liikmesriigi siduv riiklik kasvuhoonegaaside heitega seotud eesmärk ja iga-aastased siduvad riiklikud piirnormid vastavalt määrusele (EL) 2018/842; ajavahemikul 2021–2030 saavutatav kumulatiivne lõpptarbimise energiasääst kooskõlas direktiivi 2012/27/EL artikli 7 lõike 1 punktiga b energiasäästukohustuste kohta
A10: Mõjutatud sektorid | B10: energiatarbimine (sh kütuste ja elektri tarbimine lõpptarbijate, näiteks kodumajapidamiste ja ametiasutuste, teenindus-, tööstus- ja põllumajandussektori poolt)
A11: Eesmärk | B11: nõudluse juhtimine/vähendamine (energiatarbimine)
A12: Kvantitatiivne eesmärk | B12: NA
A13: Kasvuhoonegaasid, mille heitmeid otseselt mõjutatakse | B13: NA
A14: Planeeritud eelarve
A15: Oodatav mõju 2025-2030 keskmine | B15: NE
A16: Programmi või meetme tüüp | B16: Maksundus (Fiscal)
A17: Hinnang sellele, mil määral poliitikasuund või meede aitab saavutada määruse (EL) 2021/1119 artikli 2 lõikes 1 sätestatud liidu kliimaneutraalsusees märki ja täita määruse (EL) 2018/1999 artiklis 15 osutatud pikaajalist strateegiat | B17: This measure contributes to the political guidelines for the economy as a whole set in the General Principles of Climate Policy until 2050. https://kliimaministeerium.ee/sites/default/files/documents/2023-03/310022023003%20%281%29.pdf
A18: Programmi või meetme aluseks olevad Euroopa Liidu õigusaktid | B18: Energy Efficency Directive
A19: Programmi või meetme rakendamise seis | B19: Rakendatud (Implemented)
A20: Programmi või meetme rakendamise periood | B20: 1993-
A21: Stsenaarium, mille juures programmi või meedet on arvestatud | B21: WEM
A22: Programmi või meetme rakendamise eest vastutavad isikute või asutuste tüüp | B22: riigi valitsus
A23: Programmi või meetme rakendamise eest vastutavad isikud või asutused | B23: Rahandusministeerium, Maksu- ja Tolliamet
A24: Viide analüüsidele või tehnilistele aruannetele | B24: https://www.riigiteataja.ee/akt/13152698?leiaKehtiv
A25: Kommentaar

Sheet EN26
A1: https://www.riigiteataja.ee/akt/130012024003?leiaKehtiv | B1: 3.1.1.i
A2: Teised seonduvad REKK 2030 peatükid
A3: Poliitikasuuna või meetme number (PaM ID) | B3: 46
A4: Programmi või meetme number REKK2030 | B4: =MID(CELL("filename",A2),FIND("]",CELL("filename",A2))+1,255) -> EN26
A5: Programmi või meetme nimetus | B5: Tootmisettevõtete ärimudeli muutus
A6: Programmi või meetme nimetus inglise keeles | B6: A change in the business model of manufacturing companies
A7: Lühike kirjeldus | B7: Toetada kohaliku tootmise toimepidevust ja ärimudelite muutust, et Eesti tootmisettevõtete tooted vastaksid keskkonna ja kliimaneutraalsuse eesmärkidele ja oleksid konkurentsivõimelised eksporditurgudel. Meede aitab tööstusettevõtjail panustada ringmajanduse põhimõtete kasutuselevõttu ning leida lahendusi fossiilsete kütuste asendamiseks. Selleks on toetus jagatud kahte etappi: tegevussuund 1 võimaldab ettevõtja tänast olukorda kaardistada ning fokusseerida kolmele peamisele arendussuunale, mida on tegevussuunas 2 võimalik ka ellu viia (nii investeeringu kui toote- ja protsessiarendusliku tegevusena).
A8: Seotud Euroopa Liidu energialiidu mõõtmed | B8: CO2 heite vähendamise mõõde; Energiatõhususe mõõde
A9: Asjakohased eesmärgid, sihid või panused, millele poliitikasuund või meede kaasa aitab | B9: ajavahemikul 2021–2030 saavutatav kumulatiivne lõpptarbimise energiasääst kooskõlas direktiivi 2012/27/EL artikli 7 lõike 1 punktiga b energiasäästukohustuste kohta; muud eesmärgid, sh sektoripõhised ja kohanemiseesmärgid
A10: Mõjutatud sektorid | B10: energiatarbimine (sh kütuste ja elektri tarbimine lõpptarbijate, näiteks kodumajapidamiste ja ametiasutuste, teenindus-, tööstus- ja põllumajandussektori poolt)
A11: Eesmärk | B11: energiatõhususe suurendamine teenuste-/teenindussektoris (energiatarbimine); energiatõhususe suurendamine tööstusliku lõppkasutuse sektorites (energiatarbimine)
A12: Kvantitatiivne eesmärk | B12: 70 rahastatud projekti 2025. aasta lõpuks
A13: Kasvuhoonegaasid, mille heitmeid otseselt mõjutatakse | B13: CO2; CH4; N2O
A14: Planeeritud eelarve
A15: Oodatav mõju 2025-2030 keskmine | B15: NE
A16: Programmi või meetme tüüp | B16: Majanduslikud stiimulid (Economic)
A17: Hinnang sellele, mil määral poliitikasuund või meede aitab saavutada määruse (EL) 2021/1119 artikli 2 lõikes 1 sätestatud liidu kliimaneutraalsusees märki ja täita määruse (EL) 2018/1999 artiklis 15 osutatud pikaajalist strateegiat | B17: This measure contributes to the political guidelines for the economy as a whole set in the General Principles of Climate Policy until 2050. https://kliimaministeerium.ee/sites/default/files/documents/2023-03/310022023003%20%281%29.pdf
A18: Programmi või meetme aluseks olevad Euroopa Liidu õigusaktid | B18: Effort Sharing Regulation; Energy Efficency Directive
A19: Programmi või meetme rakendamise seis | B19: Rakendatud (Implemented)
A20: Programmi või meetme rakendamise periood | B20: 2022-2027
A21: Stsenaarium, mille juures programmi või meedet on arvestatud | B21: WEM
A22: Programmi või meetme rakendamise eest vastutavad isikute või asutuste tüüp | B22: riigi valitsus
A23: Programmi või meetme rakendamise eest vastutavad isikud või asutused | B23: Majandus- ja Kommunikatsiooniministeerium, Ettevõtluse ja Innovatsiooni Sihtasutus (EIS)
A24: Viide analüüsidele või tehnilistele aruannetele | B24: https://www.riigiteataja.ee/akt/130012024003?leiaKehtiv
A25: Kommentaar

Sheet EN28
A1: REKK peatükk | B1: 3.1.1.i
A2: Teised seonduvad REKK 2030 peatükid
A3: Poliitikasuuna või meetme number (PaM ID) | B3: 36
A4: Programmi või meetme number REKK2030 | B4: =MID(CELL("filename",A2),FIND("]",CELL("filename",A2))+1,255) -> EN28
A5: Programmi või meetme nimetus | B5: Ressursitõhusate rohetehnoloogiate kasutuselevõtt
A6: Programmi või meetme nimetus inglise keeles | B6: Adoption of resource-efficient green technologies
A7: Lühike kirjeldus | B7: Investeeringu abil toetatakse ettevõtete ressursitõhususe, sh energiatõhususe, suurendamist keskendudes eelkõige alakasutatud bioressursi väärindamisele. Meetme määruse eesmärk: suurendada ressursitootlikkust tööstusettevõtetes innovaatiliste rohetehnoloogiate ja lahenduste kasutuselevõtu kaudu, et aidata kaasa kliimaneutraalsele majandusele, vastupidavusele ja kliimamuutustega kohanemisele, keskendudes eelkõige alakasutatud bioressursside väärindamisele.
A8: Seotud Euroopa Liidu energialiidu mõõtmed | B8: CO2 heite vähendamise mõõde; Energiatõhususe mõõde; Teadusuuringute, innovatsiooni ja konkurentsivõime mõõde
A9: Asjakohased eesmärgid, sihid või panused, millele poliitikasuund või meede kaasa aitab | B9: seoses liidu 2030. aasta vähemalt 32,5 % energiatõhususeesmärgiga kindlaks määratud soovituslik riiklik energiatõhususpanus, millele on osutatud direktiivi 2012/27/EL artikli 1 lõikes 1 ja artikli 3 lõikes 5; ajavahemikul 2021–2030 saavutatav kumulatiivne lõpptarbimise energiasääst kooskõlas direktiivi 2012/27/EL artikli 7 lõike 1 punktiga b energiasäästukohustuste kohta; energialiiduga seotud avaliku sektori teadusuuringuid ja innovatsiooni ning asjakohasel juhul ka erasektori teadusuuringuid ja innovatsiooni käsitlevad riiklikud rahastamis- ja muud eesmärgid; muud eesmärgid, sh sektoripõhised ja kohanemiseesmärgid
A10: Mõjutatud sektorid | B10: energiatarbimine (sh kütuste ja elektri tarbimine lõpptarbijate, näiteks kodumajapidamiste ja ametiasutuste, teenindus-, tööstus- ja põllumajandussektori poolt)
A11: Eesmärk | B11: seadmete energiatõhususe suurendamine (energiatarbimine); energiatõhususe suurendamine tööstusliku lõppkasutuse sektorites (energiatarbimine)
A12: Kvantitatiivne eesmärk | B12: 2026 aasta keskpaigaks 26 projekti saanud toetust ressursitõhusate rohetehnoloogiate kasutuselevõtuks
A13: Kasvuhoonegaasid, mille heitmeid otseselt mõjutatakse | B13: CO2; CH4; N2O
A14: Planeeritud eelarve
A15: Oodatav mõju 2025-2030 keskmine | B15: NE
A16: Programmi või meetme tüüp | B16: Majanduslikud stiimulid (Economic)
A17: Hinnang sellele, mil määral poliitikasuund või meede aitab saavutada määruse (EL) 2021/1119 artikli 2 lõikes 1 sätestatud liidu kliimaneutraalsusees märki ja täita määruse (EL) 2018/1999 artiklis 15 osutatud pikaajalist strateegiat | B17: This measure contributes to the political guidelines for the economy as a whole set in the General Principles of Climate Policy until 2050. https://kliimaministeerium.ee/sites/default/files/documents/2023-03/310022023003%20%281%29.pdf
A18: Programmi või meetme aluseks olevad Euroopa Liidu õigusaktid | B18: Effort Sharing Regulation; Energy Efficency Directive
A19: Programmi või meetme rakendamise seis | B19: Rakendatud (Implemented)
A20: Programmi või meetme rakendamise periood | B20: (2021-2027), RRF 2021 - kuni 04.2026 k.a
A21: Stsenaarium, mille juures programmi või meedet on arvestatud | B21: WEM
A22: Programmi või meetme rakendamise eest vastutavad isikute või asutuste tüüp | B22: riigi valitsus
A23: Programmi või meetme rakendamise eest vastutavad isikud või asutused | B23: Kliimaministeerium; Keskkonnainvesteeringute Keskus
A24: Viide analüüsidele või tehnilistele aruannetele | B24: https://www.kik.ee/et/toetavad-tegevused/ettevotete-ressursitohusus
A25: Kommentaar

Sheet EN29
A1: REKK peatükk | B1: 3.1.1.i
A2: Teised seonduvad REKK 2030 peatükid
A3: Poliitikasuuna või meetme number (PaM ID) | B3: 59
A4: Programmi või meetme number REKK2030 | B4: =MID(CELL("filename",A2),FIND("]",CELL("filename",A2))+1,255) -> EN29
A5: Programmi või meetme nimetus | B5: Rohefond
A6: Programmi või meetme nimetus inglise keeles | B6: Green fond
A7: Lühike kirjeldus | B7: Rohefondi eesmärk on luua kapitali pakkumine uute rohetehnoloogiate arendamiseks strateegilistes valdkondades ja rahastada seeläbi innovaatilisi teadusmahukaid rohetehnoloogia ettevõtteid, mille tegevus aitab potentsiaalselt kaasa keskkonnaprobleemide lahendamise või kasvuhoonegaaside heidet vähendavate või siduvate uute toodete, teenuste või tehnoloogiate väljatöötamisele ja turule toomisele või lähtub ökodisaini nõuetest.
A8: Seotud Euroopa Liidu energialiidu mõõtmed | B8: CO2 heite vähendamise mõõde; Teadusuuringute, innovatsiooni ja konkurentsivõime mõõde
A9: Asjakohased eesmärgid, sihid või panused, millele poliitikasuund või meede kaasa aitab | B9: kasvuhoonegaaside heide ja nende sidumine – liikmesriigi siduv riiklik kasvuhoonegaaside heitega seotud eesmärk ja iga-aastased siduvad riiklikud piirnormid vastavalt määrusele (EL) 2018/842; puhta energia tehnoloogia edendamisega seotud riiklikud 2050. aasta eesmärgid ning vajaduse korral riiklikud eesmärgid, sh pikaajalised (2050), mis on seotud vähese CO2 heitega tehnoloogia kasutuselevõtuga, sh suure energiakasutusega ja rohkesti CO2 heidet tekitavate tööstussektorite CO2 heite vähendamise ning vajaduse korral seonduva CO2 transpordi ja säilitamise taristu tehnoloogia
A10: Mõjutatud sektorid | B10: energiatarbimine (sh kütuste ja elektri tarbimine lõpptarbijate, näiteks kodumajapidamiste ja ametiasutuste, teenindus-, tööstus- ja põllumajandussektori poolt)
A11: Eesmärk | B11: muu energiatarbimine (energiatarbimine)
A12: Kvantitatiivne eesmärk | B12: NA
A13: Kasvuhoonegaasid, mille heitmeid otseselt mõjutatakse | B13: CO2; CH4; N2O
A14: Planeeritud eelarve
A15: Oodatav mõju 2025-2030 keskmine | B15: NE
A16: Programmi või meetme tüüp | B16: Majanduslikud stiimulid (Economic); Teadusuuringud (Research)
A17: Hinnang sellele, mil määral poliitikasuund või meede aitab saavutada määruse (EL) 2021/1119 artikli 2 lõikes 1 sätestatud liidu kliimaneutraalsusees märki ja täita määruse (EL) 2018/1999 artiklis 15 osutatud pikaajalist strateegiat | B17: This measure contributes to the political guidelines for the economy as a whole set in the General Principles of Climate Policy until 2050. https://kliimaministeerium.ee/sites/default/files/documents/2023-03/310022023003%20%281%29.pdf
A18: Programmi või meetme aluseks olevad Euroopa Liidu õigusaktid | B18: Renewable Energy Directive
A19: Programmi või meetme rakendamise seis | B19: Rakendatud (Implemented)
A20: Programmi või meetme rakendamise periood | B20: 2021-2027
A21: Stsenaarium, mille juures programmi või meedet on arvestatud | B21: WEM
A22: Programmi või meetme rakendamise eest vastutavad isikute või asutuste tüüp | B22: riigi valitsus
A23: Programmi või meetme rakendamise eest vastutavad isikud või asutused | B23: SmartCap
A24: Viide analüüsidele või tehnilistele aruannetele | B24: https://www.rtk.ee/toetused-ja-taotlemine/taaste-ja-vastupidavusrahastu-rrf/eesti-taastekava; https://smartcap.ee/et/rohefond/
A25: Kommentaar

Sheet EN30
A1: REKK peatükk | B1: 3.1.1.i
A2: Teised seonduvad REKK 2030 peatükid
A3: Poliitikasuuna või meetme number (PaM ID) | B3: 60
A4: Programmi või meetme number REKK2030 | B4: =MID(CELL("filename",A2),FIND("]",CELL("filename",A2))+1,255) -> EN30
A5: Programmi või meetme nimetus | B5: Tööstusalades taastuvelektri tootmisseadmete kasutuselevõtu hoogustamise programm
A6: Programmi või meetme nimetus inglise keeles | B6: Program for accelerating the introduction of renewable electricity production equipment in industries
A7: Lühike kirjeldus | B7: Meetme eesmärgiks on hoogustada taastuvenergia tootmisseadmete rajamist tööstusalade juurde läbi võrguga liitumise toetamise.
A8: Seotud Euroopa Liidu energialiidu mõõtmed | B8: CO2 heite vähendamise mõõde; CO2 heite vähendamise mõõde: taastuvenergia; Energiatõhususe mõõde
A9: Asjakohased eesmärgid, sihid või panused, millele poliitikasuund või meede kaasa aitab | B9: kasvuhoonegaaside heide ja nende sidumine – liikmesriigi siduv riiklik kasvuhoonegaaside heitega seotud eesmärk ja iga-aastased siduvad riiklikud piirnormid vastavalt määrusele (EL) 2018/842; panus liidu siduvasse eesmärki saavutada 2030. aastal taastuvenergia vähemalt 32 % osakaal, nagu on osutatud direktiivi (EL) 2018/2001 artiklis 3 ; seoses liidu 2030. aasta vähemalt 32,5 % energiatõhususeesmärgiga kindlaks määratud soovituslik riiklik energiatõhususpanus, millele on osutatud direktiivi 2012/27/EL artikli 1 lõikes 1 ja artikli 3 lõikes 5
A10: Mõjutatud sektorid | B10: energiavarustus (sh kütuste ammutamine/kaevandamine, edastamine, jaotamine ja säilitamine ning energia muundamine kütteks ja jahutuseks ning elektri tootmiseks)
A11: Eesmärk | B11: taastuvate energiaallikate osakaalu suurendamine elektrisektoris (energiavarustus)
A12: Kvantitatiivne eesmärk | B12: NA
A13: Kasvuhoonegaasid, mille heitmeid otseselt mõjutatakse | B13: CO2; CH4; N2O
A14: Planeeritud eelarve
A15: Oodatav mõju 2025-2030 keskmine | B15: NE
A16: Programmi või meetme tüüp | B16: Majanduslikud stiimulid (Economic)
A17: Hinnang sellele, mil määral poliitikasuund või meede aitab saavutada määruse (EL) 2021/1119 artikli 2 lõikes 1 sätestatud liidu kliimaneutraalsusees märki ja täita määruse (EL) 2018/1999 artiklis 15 osutatud pikaajalist strateegiat | B17: This measure contributes to the political guidelines for the economy as a whole set in the General Principles of Climate Policy until 2050. https://kliimaministeerium.ee/sites/default/files/documents/2023-03/310022023003%20%281%29.pdf
A18: Programmi või meetme aluseks olevad Euroopa Liidu õigusaktid | B18: Renewable Energy Directive; Energy Efficency Directive
A19: Programmi või meetme rakendamise seis | B19: Rakendatud (Implemented)
A20: Programmi või meetme rakendamise periood | B20: 2021-2027
A21: Stsenaarium, mille juures programmi või meedet on arvestatud | B21: WEM
A22: Programmi või meetme rakendamise eest vastutavad isikute või asutuste tüüp | B22: riigi valitsus
A23: Programmi või meetme rakendamise eest vastutavad isikud või asutused | B23: Kliimaministeerium, Keskkonnainvesteeringute Keskus
A24: Viide analüüsidele või tehnilistele aruannetele | B24: https://www.rtk.ee/toetused-ja-taotlemine/taaste-ja-vastupidavusrahastu-rrf/eesti-taastekava; https://www.riigiteataja.ee/akt/103122022012?leiaKehtiv
A25: Kommentaar

Sheet HF1
A1: REKK peatükk | B1: 3.1.1.i
A2: Teised seonduvad REKK 2030 peatükid
A3: Poliitikasuuna või meetme number (PaM ID) | B3: 47
A4: Programmi või meetme number REKK2030 | B4: =MID(CELL("filename",A2),FIND("]",CELL("filename",A2))+1,255) -> HF1
A5: Programmi või meetme nimetus | B5: Kohalike omavalitsuste hoonete renoveerimine
A6: Programmi või meetme nimetus inglise keeles | B6: Energy efficiency in local government buildings
A7: Lühike kirjeldus | B7: Meetme eesmärk on tõsta avalike hoonete energiatõhusust, vähendada kasvuhoonegaaside heitkoguseid, toetada taastuvenergia kasutamist ja vähendada üldisi küttekulusid. Meede sisaldab järgnevaid alameetmeid: 1) KOV hoonete alameede (2013-2020 EL sisese KHG lubatud heitkoguse ühikutega kauplemine) 2) KOV hoonete alameede (2021-2030 EL sisese KHG lubatud heitkoguse ühikutega kauplemine) 3) KOV hoonete alameede (Moderniseerimisfond) 4) Kohaliku omavalitsuse haridushoonete energiatõhusaks muutmine
A8: Seotud Euroopa Liidu energialiidu mõõtmed | B8: Energiatõhususe mõõde; CO2 heite vähendamise mõõde
A9: Asjakohased eesmärgid, sihid või panused, millele poliitikasuund või meede kaasa aitab | B9: muud eesmärgid, sh sektoripõhised ja kohanemiseesmärgid; ajavahemikul 2021–2030 renoveeritav üldpõrandapind või võrdväärne iga-aastane energiasääst vastavalt direktiivi 2012/27/EL artiklile 5, mis käsitleb avaliku sektori asutuste hoonete eeskuju
A10: Mõjutatud sektorid | B10: energiatarbimine (sh kütuste ja elektri tarbimine lõpptarbijate, näiteks kodumajapidamiste ja ametiasutuste, teenindus-, tööstus- ja põllumajandussektori poolt)
A11: Eesmärk | B11: hoonete energiatõhususe suurendamine (energiatarbimine); energiatõhususe suurendamine teenuste-/teenindussektoris (energiatarbimine)
A12: Kvantitatiivne eesmärk | B12: 656 583 m2
A13: Kasvuhoonegaasid, mille heitmeid otseselt mõjutatakse | B13: CO2; CH4; N2O
A14: Planeeritud eelarve
A15: Oodatav mõju 2025-2030 keskmine | B15: =AVERAGE(Meetmed!H40:M40) -> 9.0717209
A16: Programmi või meetme tüüp | B16: Majanduslikud stiimulid (Economic)
A17: Hinnang sellele, mil määral poliitikasuund või meede aitab saavutada määruse (EL) 2021/1119 artikli 2 lõikes 1 sätestatud liidu kliimaneutraalsusees märki ja täita määruse (EL) 2018/1999 artiklis 15 osutatud pikaajalist strateegiat | B17: This measure contributes to the political guidelines for the economy as a whole set in the General Principles of Climate Policy until 2050. https://kliimaministeerium.ee/sites/default/files/documents/2023-03/310022023003%20%281%29.pdf
A18: Programmi või meetme aluseks olevad Euroopa Liidu õigusaktid | B18: Effort Sharing Regulation; Effort Sharing Decision; Energy Efficency Directive; Energy Performance of Buildings Directive
A19: Programmi või meetme rakendamise seis | B19: Rakendatud (Implemented)
A20: Programmi või meetme rakendamise periood | B20: 2021-2027
A21: Stsenaarium, mille juures programmi või meedet on arvestatud | B21: WEM
A22: Programmi või meetme rakendamise eest vastutavad isikute või asutuste tüüp | B22: riigi valitsus
A23: Programmi või meetme rakendamise eest vastutavad isikud või asutused | B23: Riigi Tugiteenuste Keskus, Kliimaministeerium
A24: Viide analüüsidele või tehnilistele aruannetele
A25: Kommentaar

Sheet HF2
A1: REKK peatükk | B1: 3.1.1.i
A2: Teised seonduvad REKK 2030 peatükid
A3: Poliitikasuuna või meetme number (PaM ID) | B3: 48
A4: Programmi või meetme number REKK2030 | B4: =MID(CELL("filename",A2),FIND("]",CELL("filename",A2))+1,255) -> HF2
A5: Programmi või meetme nimetus | B5: Keskvalitsuse hoonete rekonstrueerimine
A6: Programmi või meetme nimetus inglise keeles | B6: Energy efficiency in central government buildings
A7: Lühike kirjeldus | B7: Meetme eesmärk on parendada keskvalitsuse sektori hoonete energiatõhusust, vähendada kasvuhoonegaaside heidet, toetada taastuvenergia kasutamist ning vähendada üldisi küttekulusid. Meede sisaldab järgnevaid alameetmeid: 1) Keskvalitsuse hoonete alameede (2013-2020 EL sisese KHG lubatud heitkoguse ühikutega kauplemine) 2) Keskvalitsuse hoonete alameede (2021-2030 EL sisese KHG lubatud heitkoguse ühikutega kauplemine) 3) Keskvalitsuse hoonete alameede (Moderniseerimisfond) 4) Tervishoiuasutuste energiatõhususe toetamine
A8: Seotud Euroopa Liidu energialiidu mõõtmed | B8: Energiatõhususe mõõde; CO2 heite vähendamise mõõde
A9: Asjakohased eesmärgid, sihid või panused, millele poliitikasuund või meede kaasa aitab | B9: muud eesmärgid, sh sektoripõhised ja kohanemiseesmärgid; ajavahemikul 2021–2030 renoveeritav üldpõrandapind või võrdväärne iga-aastane energiasääst vastavalt direktiivi 2012/27/EL artiklile 5, mis käsitleb avaliku sektori asutuste hoonete eeskuju
A10: Mõjutatud sektorid | B10: energiatarbimine (sh kütuste ja elektri tarbimine lõpptarbijate, näiteks kodumajapidamiste ja ametiasutuste, teenindus-, tööstus- ja põllumajandussektori poolt)
A11: Eesmärk | B11: hoonete energiatõhususe suurendamine (energiatarbimine); energiatõhususe suurendamine teenuste-/teenindussektoris (energiatarbimine)
A12: Kvantitatiivne eesmärk | B12: 288 026 m2
A13: Kasvuhoonegaasid, mille heitmeid otseselt mõjutatakse | B13: CO2; CH4; N2O
A14: Planeeritud eelarve | B14: 180 460 000 eurot (periood 2021-2030, rahastus CO2 kvoodimüük + Moderniseerimisfond)
A15: Oodatav mõju 2025-2030 keskmine | B15: =AVERAGE(Meetmed!H41:M41) -> 2.475624531
A16: Programmi või meetme tüüp | B16: Majanduslikud stiimulid (Economic)
A17: Hinnang sellele, mil määral poliitikasuund või meede aitab saavutada määruse (EL) 2021/1119 artikli 2 lõikes 1 sätestatud liidu kliimaneutraalsusees märki ja täita määruse (EL) 2018/1999 artiklis 15 osutatud pikaajalist strateegiat | B17: This measure contributes to the political guidelines for the economy as a whole set in the General Principles of Climate Policy until 2050. https://kliimaministeerium.ee/sites/default/files/documents/2023-03/310022023003%20%281%29.pdf
A18: Programmi või meetme aluseks olevad Euroopa Liidu õigusaktid | B18: Effort Sharing Regulation; Effort Sharing Decision; Energy Efficency Directive; Energy Performance of Buildings Directive
A19: Programmi või meetme rakendamise seis | B19: Rakendatud (Implemented)
A20: Programmi või meetme rakendamise periood | B20: 2021-2027
A21: Stsenaarium, mille juures programmi või meedet on arvestatud | B21: WEM
A22: Programmi või meetme rakendamise eest vastutavad isikute või asutuste tüüp | B22: riigi valitsus
A23: Programmi või meetme rakendamise eest vastutavad isikud või asutused | B23: Riigi Tugiteenuste Keskus, Kliimaministeerium
A24: Viide analüüsidele või tehnilistele aruannetele | B24: https://www.riigiteataja.ee/akt/106032019020?leiaKehtiv
A25: Kommentaar

Sheet HF3
A1: REKK peatükk | B1: 3.1.1.i
A2: Teised seonduvad REKK 2030 peatükid
A3: Poliitikasuuna või meetme number (PaM ID) | B3: 61
A4: Programmi või meetme number REKK2030 | B4: =MID(CELL("filename",A2),FIND("]",CELL("filename",A2))+1,255) -> HF3
A5: Programmi või meetme nimetus | B5: Elamumajanduse hoonete renoveerimine
A6: Programmi või meetme nimetus inglise keeles | B6: Renovation of residential buildings
A7: Lühike kirjeldus | B7: Meetme eesmärk on suurendada elamumajanduse energiatõhusust ja parandada nende sisekliimat. Meede sisaldab järgnevaid alameetmeid: 1) Korterelamute rekonstrueerimise toetamine 2) Eramute rekonstrueerimise toetamine 3) Elamuinvesteeringute fond
A8: Seotud Euroopa Liidu energialiidu mõõtmed | B8: Energiatõhususe mõõde; CO2 heite vähendamise mõõde
A9: Asjakohased eesmärgid, sihid või panused, millele poliitikasuund või meede kaasa aitab | B9: muud eesmärgid, sh sektoripõhised ja kohanemiseesmärgid; ajavahemikul 2021–2030 renoveeritav üldpõrandapind või võrdväärne iga-aastane energiasääst vastavalt direktiivi 2012/27/EL artiklile 5, mis käsitleb avaliku sektori asutuste hoonete eeskuju
A10: Mõjutatud sektorid | B10: energiatarbimine (sh kütuste ja elektri tarbimine lõpptarbijate, näiteks kodumajapidamiste ja ametiasutuste, teenindus-, tööstus- ja põllumajandussektori poolt)
A11: Eesmärk | B11: hoonete energiatõhususe suurendamine (energiatarbimine)
A12: Kvantitatiivne eesmärk | B12: Primaarenergiatarbimise vähendamine - aastaks 2029 sihtväärtus 2 964 500 MWh/a
A13: Kasvuhoonegaasid, mille heitmeid otseselt mõjutatakse | B13: CO2; CH4; N2O
A14: Oodatav mõju 2025-2030 keskmine | B14: =AVERAGE(Meetmed!H43:M43) -> 17.13484334
A15: Programmi või meetme tüüp | B15: Majanduslikud stiimulid (Economic)
A16: Hinnang sellele, mil määral poliitikasuund või meede aitab saavutada määruse (EL) 2021/1119 artikli 2 lõikes 1 sätestatud liidu kliimaneutraalsusees märki ja täita määruse (EL) 2018/1999 artiklis 15 osutatud pikaajalist strateegiat | B16: This measure contributes to the political guidelines for the economy as a whole set in the General Principles of Climate Policy until 2050. https://kliimaministeerium.ee/sites/default/files/documents/2023-03/310022023003%20%281%29.pdf
A17: Programmi või meetme aluseks olevad Euroopa Liidu õigusaktid | B17: Effort Sharing Regulation
A18: Programmi või meetme rakendamise seis | B18: Rakendatud (Implemented)
A19: Programmi või meetme rakendamise periood | B19: 2023-2027
A20: Stsenaarium, mille juures programmi või meedet on arvestatud | B20: WEM
A21: Programmi või meetme rakendamise eest vastutavad isikute või asutuste tüüp | B21: riigi valitsus
A22: Programmi või meetme rakendamise eest vastutavad isikud või asutused | B22: KredEx, Kliimaministeerium
A23: Viide analüüsidele või tehnilistele aruannetele | B23: https://pilv.rtk.ee/s/dYGaDcSyyqj42di
A24: Kommentaar

Sheet HF4
A1: REKK peatükk | B1: 3.1.1.i
A2: Teised seonduvad REKK 2030 peatükid
A3: Poliitikasuuna või meetme number (PaM ID) | B3: 58
A4: Programmi või meetme number REKK2030 | B4: =MID(CELL("filename",A2),FIND("]",CELL("filename",A2))+1,255) -> HF4
A5: Programmi või meetme nimetus | B5: Investeeringud tänavavalgustuse rekonstrueerimisprogrammi
A6: Programmi või meetme nimetus inglise keeles | B6: Street lighting reconstruction programme investments
A7: Lühike kirjeldus | B7: Meede on suunatud energiatõhususe suurendamisele ja „Energiasäästu ja taastuvenergia osakaalu suurendamine“ tegevuste „Tänavavalgustuse taristu renoveerimine“ eesmärke saavutamisele. Meetme tegevuse eesmärgiks on korrastada vananenud tänavavalgustuse taristut, mille tulemusel kaasaegse valgusti ja juhtimistehnoloogi kasutamine vähendab energia kasutamist.
A8: Seotud Euroopa Liidu energialiidu mõõtmed | B8: Energiatõhususe mõõde; CO2 heite vähendamise mõõde
A9: Asjakohased eesmärgid, sihid või panused, millele poliitikasuund või meede kaasa aitab | B9: ajavahemikul 2021–2030 saavutatav kumulatiivne lõpptarbimise energiasääst kooskõlas direktiivi 2012/27/EL artikli 7 lõike 1 punktiga b energiasäästukohustuste kohta; kasvuhoonegaaside heide ja nende sidumine – liikmesriigi siduv riiklik kasvuhoonegaaside heitega seotud eesmärk ja iga-aastased siduvad riiklikud piirnormid vastavalt määrusele (EL) 2018/842
A10: Mõjutatud sektorid | B10: energiatarbimine (sh kütuste ja elektri tarbimine lõpptarbijate, näiteks kodumajapidamiste ja ametiasutuste, teenindus-, tööstus- ja põllumajandussektori poolt)
A11: Eesmärk | B11: Energiatõhususe suurendamine teenuste-/teenindussektoris (energiatarbimine)
A12: Kvantitatiivne eesmärk | B12: Meetme tegevuse tulemusena renoveeritud aastaks 2018 vähemalt 7 000 tänavavalgustuspunkti, aastaks 2020 vähemalt 14 000 tänavavalgustuspunkti ja aastaks 2023 vähemalt 22 000 tänavavalgustuspunkti.
A13: Kasvuhoonegaasid, mille heitmeid otseselt mõjutatakse | B13: CO2; CH4; N2O
A14: Oodatav mõju 2025-2030 keskmine | B14: =AVERAGE(Meetmed!H25:M25) -> 72.93304745
A15: Programmi või meetme tüüp | B15: Majanduslikud stiimulid (Economic)
A16: Hinnang sellele, mil määral poliitikasuund või meede aitab saavutada määruse (EL) 2021/1119 artikli 2 lõikes 1 sätestatud liidu kliimaneutraalsusees märki ja täita määruse (EL) 2018/1999 artiklis 15 osutatud pikaajalist strateegiat | B16: This measure contributes to the political guidelines for the economy as a whole set in the General Principles of Climate Policy until 2050. https://kliimaministeerium.ee/sites/default/files/documents/2023-03/310022023003%20%281%29.pdf
A17: Programmi või meetme aluseks olevad Euroopa Liidu õigusaktid | B17: Energy Efficency Directive
A18: Programmi või meetme rakendamise seis | B18: Rakendatud (Implemented)
A19: Programmi või meetme rakendamise periood | B19: 2007-2024
A20: Stsenaarium, mille juures programmi või meedet on arvestatud | B20: WEM
A21: Programmi või meetme rakendamise eest vastutavad isikute või asutuste tüüp | B21: riigi valitsus
A22: Programmi või meetme rakendamise eest vastutavad isikud või asutused | B22: Keskkonnainvesteeringute Keskus, Kliimaministeerium
A23: Viide analüüsidele või tehnilistele aruannetele
A24: Kommentaar

Sheet HF5
A1: REKK peatükk | B1: 3.1.1.i
A2: Teised seonduvad REKK 2030 peatükid
A3: Poliitikasuuna või meetme number (PaM ID)
A4: Programmi või meetme number REKK2030 | B4: =MID(CELL("filename",A2),FIND("]",CELL("filename",A2))+1,255) -> HF5
A5: Programmi või meetme nimetus | B5: Energiasäästlikud valgustuslahendused (sh alameede: energiasäästlikud valgustuslahendused kultuuriasutustele)
A6: Programmi või meetme nimetus inglise keeles | B6: Energy-saving lighting solutions (energy-efficient lighting solutions for cultural institutions)
A7: Lühike kirjeldus | B7: Hõõg- ja gaaslahendusega lampidel põhinevad seadmete vahetamine LED lahendustega seadmete vastu toob kaasa etendusasutustes lõppenergiasäästu.
A8: Seotud Euroopa Liidu energialiidu mõõtmed | B8: Energiatõhususe mõõde; CO2 heite vähendamise mõõde
A9: Asjakohased eesmärgid, sihid või panused, millele poliitikasuund või meede kaasa aitab | B9: kasvuhoonegaaside heide ja nende sidumine – liikmesriigi siduv riiklik kasvuhoonegaaside heitega seotud eesmärk ja iga-aastased siduvad riiklikud piirnormid vastavalt määrusele (EL) 2018/842; ajavahemikul 2021–2030 saavutatav kumulatiivne lõpptarbimise energiasääst kooskõlas direktiivi 2012/27/EL artikli 7 lõike 1 punktiga b energiasäästukohustuste kohta
A10: Mõjutatud sektorid | B10: energiatarbimine (sh kütuste ja elektri tarbimine lõpptarbijate, näiteks kodumajapidamiste ja ametiasutuste, teenindus-, tööstus- ja põllumajandussektori poolt)
A11: Eesmärk | B11: hoonete energiatõhususe suurendamine (energiatarbimine)
A12: Kvantitatiivne eesmärk | B12: Arvestuslik energia kokkuhoid aastas (baasaasta 2024, võrdlusaasta 2027) on ca 3,2 gigavatttundi (enegiatarbe sääst nimikoormustel võrdlusel x tööpäevade arv aastas x rakendatuse tundide arv päevas).
A13: Kasvuhoonegaasid, mille heitmeid otseselt mõjutatakse | B13: CO2; CH4; N2O
A14: Oodatav mõju 2025-2030 keskmine | B14: =AVERAGE(Meetmed!H26:M26) -> 2.156785434
A15: Programmi või meetme tüüp | B15: Majanduslikud stiimulid (Economic)
A16: Hinnang sellele, mil määral poliitikasuund või meede aitab saavutada määruse (EL) 2021/1119 artikli 2 lõikes 1 sätestatud liidu kliimaneutraalsusees märki ja täita määruse (EL) 2018/1999 artiklis 15 osutatud pikaajalist strateegiat | B16: This measure contributes to the political guidelines for the economy as a whole set in the General Principles of Climate Policy until 2050. https://kliimaministeerium.ee/sites/default/files/documents/2023-03/310022023003%20%281%29.pdf
A17: Programmi või meetme aluseks olevad Euroopa Liidu õigusaktid | B17: Energy Efficency Directive
A18: Programmi või meetme rakendamise seis | B18: Rakendatud (Implemented)
A19: Programmi või meetme rakendamise periood | B19: 2023-2025
A20: Stsenaarium, mille juures programmi või meedet on arvestatud | B20: WEM
A21: Programmi või meetme rakendamise eest vastutavad isikute või asutuste tüüp | B21: riigi valitsus
A22: Programmi või meetme rakendamise eest vastutavad isikud või asutused | B22: Kultuuriministeerium
A23: Viide analüüsidele või tehnilistele aruannetele | B23: https://www.riigiteataja.ee/akt/123022024008
A24: Kommentaar

Sheet TR1
A1: Vedel | B1: 3.1.1.i
A2: Teised seonduvad REKK 2030 peatükid | B2: 3.2.1.i
A3: Poliitikasuuna või meetme number (PaM ID) | B3: 24
A4: Programmi või meetme number REKK2030 | B4: =MID(CELL("filename",A2),FIND("]",CELL("filename",A2))+1,255) -> TR1
A5: Programmi või meetme nimetus | B5: Biokütuste osakaalu suurendamine transpordisektoris
A6: Programmi või meetme nimetus inglise keeles | B6: Increasing the share of biofuels in transport
A7: Lühike kirjeldus | B7: Kütuse müüjal, kelle kohta on majandustegevuse registrisse kantud kütuse tarbimisse lubamise märge või kütuse maksuladustamise lõpetamise märge, ja kütuse impordi tegevusluba omaval isikul (edaspidi koos tarnija) peab tarbimisse lubatud bensiini, diislikütuse, biokütuse ja maanteetranspordis kasutusse antud elektrienergia koguenergias biokütuse või lõpptarbimisse antud biometaani või elektrienergia koguenergia osakaal kalendriaasta kaalutud keskmise väärtusena olema kalendriaasta lõpuks vähemalt 7.5%, millest minimaalselt 0.5% peab olema täiustatud generatsioon ja I generatsioon 4.5%. Alates 2023 piiratakse I generatsiooni vedel biokütuste kasutamist (maksimaalselt 2.5% ja alates 2024 maksimaalselt 0.5%).
A8: Seotud Euroopa Liidu energialiidu mõõtmed | B8: CO2 heite vähendamise mõõde; CO2 heite vähendamise mõõde: taastuvenergia
A9: Asjakohased eesmärgid, sihid või panused, millele poliitikasuund või meede kaasa aitab | B9: kasvuhoonegaaside heide ja nende sidumine – liikmesriigi siduv riiklik kasvuhoonegaaside heitega seotud eesmärk ja iga-aastased siduvad riiklikud piirnormid vastavalt määrusele (EL) 2018/842; eeldatavad trajektoorid, mis näitavad ajavahemikul 2021–2030 elektri-, kütte- ja jahutus- ning transpordisektoris tarbitava taastuvenergia osakaalu lõppenergia tarbimises
A10: Mõjutatud sektorid | B10: transport
A11: Eesmärk | B11: vähese CO2 heitega kütused (transport)
A12: Kvantitatiivne eesmärk | B12: Kütuse müüjal taastuvenergia ja -kütuse osakaal peab olema vähemalt 7.5%
A13: Kasvuhoonegaasid, mille heitmeid otseselt mõjutatakse | B13: CO2; CH4; N2O
A14: Oodatav mõju 2025-2030 keskmine | B14: =AVERAGE(Meetmed!H60:M60) -> 71.15512603
A15: Programmi või meetme tüüp | B15: Seadusandlus (Regulatory)
A16: Hinnang sellele, mil määral poliitikasuund või meede aitab saavutada määruse (EL) 2021/1119 artikli 2 lõikes 1 sätestatud liidu kliimaneutraalsusees märki ja täita määruse (EL) 2018/1999 artiklis 15 osutatud pikaajalist strateegiat | B16: Panustab kliimapoliitika põhialuste 2050 transpordi suuna eesmärkidesse.
A17: Programmi või meetme aluseks olevad Euroopa Liidu õigusaktid | B17: Effort Sharing Regulation; xOBOSLETE Biofuels directive; Alternative Fuels Infrastructure Directive; Effort Sharing Decision; NEC Directive; Renewable Energy Directive
A18: Programmi või meetme rakendamise seis | B18: Rakendatud (Implemented)
A19: Programmi või meetme rakendamise periood | B19: 2010-
A20: Stsenaarium, mille juures programmi või meedet on arvestatud | B20: WEM
A21: Programmi või meetme rakendamise eest vastutavad isikute või asutuste tüüp | B21: riigi valitsus
A22: Programmi või meetme rakendamise eest vastutavad isikud või asutused | B22: Kliimaministeerium
A23: Viide analüüsidele või tehnilistele aruannetele | B23: https://www.riigiteataja.ee/akt/110072020083?leiaKehtiv
A24: Kommentaar

Sheet TR3
A1: REKK peatükk | B1: 3.1.1.i
A2: Teised seonduvad REKK 2030 peatükid
A3: Poliitikasuuna või meetme number (PaM ID) | B3: 27
A4: Programmi või meetme number REKK2030 | B4: =MID(CELL("filename",A2),FIND("]",CELL("filename",A2))+1,255) -> TR3
A5: Programmi või meetme nimetus | B5: Säästliku autojuhtimise edendamine
A6: Programmi või meetme nimetus inglise keeles | B6: Promotion of economical driving
A7: Lühike kirjeldus | B7: Säästlik sõiduviis (eco-driving) aitab säästa kütust, vähendada mürataset, heitgaase, õnnetusi ning kulutusi sõidukite remondile. Paljudes riikides kasutatakse säästliku sõiduviisi koolitusi liiklusohutuse programmides, sest see vähendab liiklusõnnetusi.
A8: Seotud Euroopa Liidu energialiidu mõõtmed | B8: CO2 heite vähendamise mõõde; Energiatõhususe mõõde
A9: Asjakohased eesmärgid, sihid või panused, millele poliitikasuund või meede kaasa aitab | B9: kasvuhoonegaaside heide ja nende sidumine – liikmesriigi siduv riiklik kasvuhoonegaaside heitega seotud eesmärk ja iga-aastased siduvad riiklikud piirnormid vastavalt määrusele (EL) 2018/842; seoses liidu 2030. aasta vähemalt 32,5 % energiatõhususeesmärgiga kindlaks määratud soovituslik riiklik energiatõhususpanus, millele on osutatud direktiivi 2012/27/EL artikli 1 lõikes 1 ja artikli 3 lõikes 5
A10: Mõjutatud sektorid | B10: transport
A11: Eesmärk | B11: käitumise parandamine (transport); nõudluse juhtimine/vähendamine (transport)
A12: Kvantitatiivne eesmärk | B12: NA
A13: Kasvuhoonegaasid, mille heitmeid otseselt mõjutatakse | B13: CO2; CH4; N2O
A14: Planeeritud eelarve
A15: Oodatav mõju 2025-2030 keskmine | B15: =AVERAGE(Meetmed!H49:M49) -> 13.59278783
A16: Programmi või meetme tüüp | B16: Teavitamine (Information)
A17: Hinnang sellele, mil määral poliitikasuund või meede aitab saavutada määruse (EL) 2021/1119 artikli 2 lõikes 1 sätestatud liidu kliimaneutraalsusees märki ja täita määruse (EL) 2018/1999 artiklis 15 osutatud pikaajalist strateegiat | B17: Panustab kliimapoliitika põhialuste 2050 transpordi suuna eesmärkidesse.
A18: Programmi või meetme aluseks olevad Euroopa Liidu õigusaktid | B18: Effort Sharing Regulation; Effort Sharing Decision; NEC Directive; Energy Efficency Directive
A19: Programmi või meetme rakendamise seis | B19: Rakendatud (Implemented)
A20: Programmi või meetme rakendamise periood | B20: 2002-
A21: Stsenaarium, mille juures programmi või meedet on arvestatud | B21: WEM
A22: Programmi või meetme rakendamise eest vastutavad isikute või asutuste tüüp | B22: riigi valitsus
A23: Programmi või meetme rakendamise eest vastutavad isikud või asutused | B23: Kliimaministeerium
A24: Viide analüüsidele või tehnilistele aruannetele
A25: Kommentaar

Sheet TR4
A1: REKK peatükk | B1: 3.1.1.i
A2: Teised seonduvad REKK 2030 peatükid | B2: 3.2.i
A3: Poliitikasuuna või meetme number (PaM ID) | B3: 28
A4: Programmi või meetme number REKK2030 | B4: =MID(CELL("filename",A2),FIND("]",CELL("filename",A2))+1,255) -> TR4
A5: Programmi või meetme nimetus | B5: Keskkonnahoidlikku liikuvust soodustav linnakeskkond
A6: Programmi või meetme nimetus inglise keeles | B6: An urban environment that promotes environmentally friendly movement
A7: Lühike kirjeldus | B7: Maakasutuse suunamine valglinnastumise ja autost sõltuvuse vähendamiseks (sundliikumine). Meede hõlmab telekommunikatsiooni arendamist ja ka lühiajaliste rendiautode väljatöötamist. Meede eeldab tugevamat regionaaltasandi ruumilist planeerimist, sest meetme tegevused väljuvad ühe omavalitsuse piiridest. (See meede hõlmab telekommunikatsiooni arendamist ja lühiajaliste autorendisüsteemide väljatöötamist. Meetme eesmärk on leevendada tipptundide transpordikoormust.) Meetme eesmärk on soodustada säästvat multimodaalset linnaliiklust, toetades suuremates linnapiirkondades: 1) tervikliku jalgrattataristu väljaarendamine (keskendudes linnakeskustele); 2) olemasolevate ühistranspordipeatuste ja multimodaalsete sõlmpunktide arendamine ja kvaliteedi parandamine; 3) uute trammiliinide rajamine Tallinna linnapiirkonnas.
A8: Seotud Euroopa Liidu energialiidu mõõtmed | B8: CO2 heite vähendamise mõõde; Energiatõhususe mõõde
A9: Asjakohased eesmärgid, sihid või panused, millele poliitikasuund või meede kaasa aitab | B9: kasvuhoonegaaside heide ja nende sidumine – liikmesriigi siduv riiklik kasvuhoonegaaside heitega seotud eesmärk ja iga-aastased siduvad riiklikud piirnormid vastavalt määrusele (EL) 2018/842; ajavahemikul 2021–2030 saavutatav kumulatiivne lõpptarbimise energiasääst kooskõlas direktiivi 2012/27/EL artikli 7 lõike 1 punktiga b energiasäästukohustuste kohta
A10: Mõjutatud sektorid | B10: transport
A11: Eesmärk | B11: ühistranspordile või mootorita transpordivahenditele ülemineku edendamine (transport); nõudluse juhtimine/vähendamine (transport); käitumise parandamine (transport); transporditaristu tõhustamine (transport)
A12: Kvantitatiivne eesmärk | B12: 5,50 km ehitatud uusi trammiradu, 10 km jalgrattateid, vähemalt 1 multimodaalne ühendus
A13: Kasvuhoonegaasid, mille heitmeid otseselt mõjutatakse | B13: CO2; CH4; N2O
A14: Planeeritud eelarve
A15: Oodatav mõju 2025-2030 keskmine | B15: =AVERAGE(Meetmed!H47:M47) -> 16.79566151
A16: Programmi või meetme tüüp | B16: Planeerimine (Planning); Majanduslikud stiimulid (Economic)
A17: Hinnang sellele, mil määral poliitikasuund või meede aitab saavutada määruse (EL) 2021/1119 artikli 2 lõikes 1 sätestatud liidu kliimaneutraalsusees märki ja täita määruse (EL) 2018/1999 artiklis 15 osutatud pikaajalist strateegiat | B17: Panustab kliimapoliitika põhialuste 2050 transpordi suuna eesmärkidesse.
A18: Programmi või meetme aluseks olevad Euroopa Liidu õigusaktid | B18: Effort Sharing Regulation; Effort Sharing Decision; NEC Directive; Energy Efficency Directive
A19: Programmi või meetme rakendamise seis | B19: Rakendatud (Implemented)
A20: Programmi või meetme rakendamise periood | B20: 2021-2030
A21: Stsenaarium, mille juures programmi või meedet on arvestatud | B21: WEM
A22: Programmi või meetme rakendamise eest vastutavad isikute või asutuste tüüp | B22: riigi valitsus
A23: Programmi või meetme rakendamise eest vastutavad isikud või asutused | B23: Kliimaministeerium
A24: Viide analüüsidele või tehnilistele aruannetele
A25: Kommentaar

Sheet TR5
A1: REKK peatükk | B1: 3.1.1.i
A2: Teised seonduvad REKK 2030 peatükid
A3: Poliitikasuuna või meetme number (PaM ID) | B3: 30
A4: Programmi või meetme number REKK2030 | B4: =MID(CELL("filename",A2),FIND("]",CELL("filename",A2))+1,255) -> TR5
A5: Programmi või meetme nimetus | B5: Kestliku ühistranspordi arendamine
A6: Programmi või meetme nimetus inglise keeles | B6: Development of sustainable public transport
A7: Lühike kirjeldus | B7: Mugava ja kaasaegse ühistranspordi arendamine, piletisüsteemide ja uute teenuste väljatöötamine – meede hõlmab ühistranspordi kättesaadavuse parandamist, piletisüsteemide ja uute teenuste arendamist. Meede eeldab tugevamat regionaalset ruumilist planeerimist, kuna meetme tegevused ületavad ühe omavalitsuse piire. Investeeringuid tehakse kohalike omavalitsuste ühistranspordipargi ja -taristu uuendamisse. Lisaks parendatakse reisirongiliikluse taktpõhise graafiku juurutamise ettevalmistava tegevusena raudteetaristut.
A8: Seotud Euroopa Liidu energialiidu mõõtmed | B8: CO2 heite vähendamise mõõde; Energiatõhususe mõõde
A9: Asjakohased eesmärgid, sihid või panused, millele poliitikasuund või meede kaasa aitab | B9: kasvuhoonegaaside heide ja nende sidumine – liikmesriigi siduv riiklik kasvuhoonegaaside heitega seotud eesmärk ja iga-aastased siduvad riiklikud piirnormid vastavalt määrusele (EL) 2018/842; ajavahemikul 2021–2030 saavutatav kumulatiivne lõpptarbimise energiasääst kooskõlas direktiivi 2012/27/EL artikli 7 lõike 1 punktiga b energiasäästukohustuste kohta
A10: Mõjutatud sektorid | B10: transport
A11: Eesmärk | B11: ühistranspordile või mootorita transpordivahenditele ülemineku edendamine (transport); nõudluse juhtimine/vähendamine (transport)
A12: Kvantitatiivne eesmärk | B12: NA
A13: Kasvuhoonegaasid, mille heitmeid otseselt mõjutatakse | B13: CO2; CH4; N2O
A14: Planeeritud eelarve
A15: Oodatav mõju 2025-2030 keskmine | B15: NE
A16: Programmi või meetme tüüp | B16: Planeerimine (Planning)
A17: Hinnang sellele, mil määral poliitikasuund või meede aitab saavutada määruse (EL) 2021/1119 artikli 2 lõikes 1 sätestatud liidu kliimaneutraalsusees märki ja täita määruse (EL) 2018/1999 artiklis 15 osutatud pikaajalist strateegiat | B17: Panustab kliimapoliitika põhialuste 2050 transpordi suuna eesmärkidesse.
A18: Programmi või meetme aluseks olevad Euroopa Liidu õigusaktid | B18: Effort Sharing Regulation; Effort Sharing Decision; NEC Directive
A19: Programmi või meetme rakendamise seis | B19: Rakendatud (Implemented)
A20: Programmi või meetme rakendamise periood | B20: 2015-
A21: Stsenaarium, mille juures programmi või meedet on arvestatud | B21: NIP
A22: Programmi või meetme rakendamise eest vastutavad isikute või asutuste tüüp | B22: riigi valitsus
A23: Programmi või meetme rakendamise eest vastutavad isikud või asutused | B23: Kliimaministeerium
A24: Viide analüüsidele või tehnilistele aruannetele
A25: Kommentaar

Sheet TR6
A1: REKK peatükk | B1: 3.1.1.i
A2: Teised seonduvad REKK 2030 peatükid
A3: Poliitikasuuna või meetme number (PaM ID) | B3: 31
A4: Programmi või meetme number REKK2030 | B4: =MID(CELL("filename",A2),FIND("]",CELL("filename",A2))+1,255) -> TR6
A5: Programmi või meetme nimetus | B5: Raskeveokite ajapõhine teekasutustasu
A6: Programmi või meetme nimetus inglise keeles | B6: Road usage fees for heavy duty vehicles based on time
A7: Lühike kirjeldus | B7: Meede hõlmab teekasutustasu kehtestamist aja, asukoha, keskkonnaaspektide jms alusel. 2017. aasta juunis kiitis Riigikogu heaks teekasutustasu sõidukitele, mille täismass ületab 3500 kg (raskeveokid).
A8: Seotud Euroopa Liidu energialiidu mõõtmed | B8: CO2 heite vähendamise mõõde
A9: Asjakohased eesmärgid, sihid või panused, millele poliitikasuund või meede kaasa aitab | B9: kasvuhoonegaaside heide ja nende sidumine – liikmesriigi siduv riiklik kasvuhoonegaaside heitega seotud eesmärk ja iga-aastased siduvad riiklikud piirnormid vastavalt määrusele (EL) 2018/842
A10: Mõjutatud sektorid | B10: transport
A11: Eesmärk | B11: muu transport (transport)
A12: Kvantitatiivne eesmärk
A13: Kasvuhoonegaasid, mille heitmeid otseselt mõjutatakse | B13: CO2; CH4; N2O
A14: Oodatav mõju 2025-2030 keskmine | B14: =AVERAGE(Meetmed!H53:M53) -> 13.91066567
A15: Programmi või meetme tüüp | B15: Maksundus (Fiscal)
A16: Hinnang sellele, mil määral poliitikasuund või meede aitab saavutada määruse (EL) 2021/1119 artikli 2 lõikes 1 sätestatud liidu kliimaneutraalsusees märki ja täita määruse (EL) 2018/1999 artiklis 15 osutatud pikaajalist strateegiat | B16: Panustab kliimapoliitika põhialuste 2050 transpordi suuna eesmärkidesse.
A17: Programmi või meetme aluseks olevad Euroopa Liidu õigusaktid | B17: Effort Sharing Regulation; Eurovignette Directive; Effort Sharing Decision; NEC Directive; Energy Efficency Directive
A18: Programmi või meetme rakendamise seis | B18: Rakendatud (Implemented)
A19: Programmi või meetme rakendamise periood | B19: 2018-
A20: Stsenaarium, mille juures programmi või meedet on arvestatud | B20: WEM
A21: Programmi või meetme rakendamise eest vastutavad isikute või asutuste tüüp | B21: riigi valitsus
A22: Programmi või meetme rakendamise eest vastutavad isikud või asutused | B22: Estonian Tax and Customs Board
A23: Viide analüüsidele või tehnilistele aruannetele
A24: Kommentaar

Sheet TR7
A1: REKK peatükk | B1: 3.1.1.i
A2: Teised seonduvad REKK 2030 peatükid | B2: 3.2.1.i
A3: Poliitikasuuna või meetme number (PaM ID) | B3: 32
A4: Programmi või meetme number REKK2030 | B4: =MID(CELL("filename",A2),FIND("]",CELL("filename",A2))+1,255) -> TR7
A5: Programmi või meetme nimetus | B5: Nullheitega sõidukite ostutoetus
A6: Programmi või meetme nimetus inglise keeles | B6: Support for the purchase of zero-emission vehicles
A7: Lühike kirjeldus | B7: Elektriautode ostutoetus on suunatud suure transpordivajadusega äriühingutele ning füüsilistele isikutele. Toetuse saamise tingimuseks on, et sõidukiga läbitakse nelja aasta jooksul toetuse väljamaksmisest 80 000 kilomeetrit. See tähendab, et keskmiselt läbitakse aastas 20 000 km. Sellest vähemalt 80% ehk 16 000 km tuleb läbida Eestis, et tagada kütuste kokkuhoid Eesti transpordisektoris ning vähendada õhusaastet Eesti territooriumil.
A8: Seotud Euroopa Liidu energialiidu mõõtmed | B8: CO2 heite vähendamise mõõde; CO2 heite vähendamise mõõde: taastuvenergia; Energiatõhususe mõõde
A9: Asjakohased eesmärgid, sihid või panused, millele poliitikasuund või meede kaasa aitab | B9: kasvuhoonegaaside heide ja nende sidumine – liikmesriigi siduv riiklik kasvuhoonegaaside heitega seotud eesmärk ja iga-aastased siduvad riiklikud piirnormid vastavalt määrusele (EL) 2018/842; eeldatavad trajektoorid, mis näitavad ajavahemikul 2021–2030 elektri-, kütte- ja jahutus- ning transpordisektoris tarbitava taastuvenergia osakaalu lõppenergia tarbimises; ajavahemikul 2021–2030 saavutatav kumulatiivne lõpptarbimise energiasääst kooskõlas direktiivi 2012/27/EL artikli 7 lõike 1 punktiga b energiasäästukohustuste kohta
A10: Mõjutatud sektorid | B10: transport
A11: Eesmärk | B11: vähese CO2 heitega kütused (transport); elektriline maanteetransport (transport)
A12: Kvantitatiivne eesmärk | B12: Toetud sõidukite arv: 2021- 2025 - 12 500 tk
A13: Kasvuhoonegaasid, mille heitmeid otseselt mõjutatakse | B13: CO2; CH4; N2O
A14: Planeeritud eelarve
A15: Oodatav mõju 2025-2030 keskmine | B15: =AVERAGE(Meetmed!H54:M54) -> 35.73752769
A16: Programmi või meetme tüüp | B16: Majanduslikud stiimulid (Economic)
A17: Hinnang sellele, mil määral poliitikasuund või meede aitab saavutada määruse (EL) 2021/1119 artikli 2 lõikes 1 sätestatud liidu kliimaneutraalsusees märki ja täita määruse (EL) 2018/1999 artiklis 15 osutatud pikaajalist strateegiat | B17: Panustab kliimapoliitika põhialuste 2050 transpordi suuna eesmärkidesse.
A18: Programmi või meetme aluseks olevad Euroopa Liidu õigusaktid | B18: Effort Sharing Regulation; Alternative Fuels Infrastructure Directive; Clean Vehicles Directive; Effort Sharing Decision; NEC Directive; Renewable Energy Directive; Energy Efficency Directive
A19: Programmi või meetme rakendamise seis | B19: Rakendatud (Implemented)
A20: Programmi või meetme rakendamise periood | B20: 2020-2025
A21: Stsenaarium, mille juures programmi või meedet on arvestatud | B21: WEM
A22: Programmi või meetme rakendamise eest vastutavad isikute või asutuste tüüp | B22: riigi valitsus
A23: Programmi või meetme rakendamise eest vastutavad isikud või asutused | B23: Keskkonnainvesteeringute Keskus, Kliimaministeerium
A24: Viide analüüsidele või tehnilistele aruannetele
A25: Kommentaar

Sheet TR13
A1: REKK peatükk | B1: 3.1.1.i
A2: Teised seonduvad REKK 2030 peatükid | B2: 3.2.1.i
A3: Poliitikasuuna või meetme number (PaM ID) | B3: 37
A4: Programmi või meetme number REKK2030 | B4: =MID(CELL("filename",A2),FIND("]",CELL("filename",A2))+1,255) -> TR13
A5: Programmi või meetme nimetus | B5: Kestliku raudteetranspordi arendamine
A6: Programmi või meetme nimetus inglise keeles | B6: Development of sustainable rail transport
A7: Lühike kirjeldus | B7: Selle meetme eesmärk on arendada säästvat raudteetransporti mitmete alltegevuste kaupa, sealhulgas: a) olemasoleva raudtee elektrifitseerimine ja kasutuse laiendamine. Plaanis on elektrifitseerida Tallinn-Tartu, Tartu-Koidula ja Tapa-Narva raudteelõigud. Praegu mahuvad need liinid peamiselt diislikütust kasutavad rongid. Pärast nende liinide elektrifitseerimist on võimalik vastu võtta peamiselt elektrit kasutavaid ronge; b) Rail Balticu arendamine; c) raudteeinfrastruktuuri arendamine – kiiruse tõstmine 160 km/h-ni Tallinn-Narva ja Tapa-Tartu liinidel; ja d) uute reisirongide soetamine (16 tk).
A8: Seotud Euroopa Liidu energialiidu mõõtmed | B8: CO2 heite vähendamise mõõde; CO2 heite vähendamise mõõde: taastuvenergia; Energiatõhususe mõõde
A9: Asjakohased eesmärgid, sihid või panused, millele poliitikasuund või meede kaasa aitab | B9: kasvuhoonegaaside heide ja nende sidumine – liikmesriigi siduv riiklik kasvuhoonegaaside heitega seotud eesmärk ja iga-aastased siduvad riiklikud piirnormid vastavalt määrusele (EL) 2018/842; eeldatavad trajektoorid, mis näitavad ajavahemikul 2021–2030 elektri-, kütte- ja jahutus- ning transpordisektoris tarbitava taastuvenergia osakaalu lõppenergia tarbimises; ajavahemikul 2021–2030 saavutatav kumulatiivne lõpptarbimise energiasääst kooskõlas direktiivi 2012/27/EL artikli 7 lõike 1 punktiga b energiasäästukohustuste kohta
A10: Mõjutatud sektorid | B10: transport
A11: Eesmärk | B11: ühistranspordile või mootorita transpordivahenditele ülemineku edendamine (transport); vähese CO2 heitega kütused (transport); nõudluse juhtimine/vähendamine (transport); transporditaristu tõhustamine (transport); muu transport (transport)
A12: Kvantitatiivne eesmärk | B12: 500 km elektrifitseeritud raudteed (I etapis), uued reisirongid 16 tk
A13: Kasvuhoonegaasid, mille heitmeid otseselt mõjutatakse | B13: CO2; CH4; N2O
A14: Planeeritud eelarve
A15: Oodatav mõju 2025-2030 keskmine | B15: =AVERAGE(Meetmed!H51:M51) -> 24.91145451
A16: Programmi või meetme tüüp | B16: Majanduslikud stiimulid (Economic)
A17: Hinnang sellele, mil määral poliitikasuund või meede aitab saavutada määruse (EL) 2021/1119 artikli 2 lõikes 1 sätestatud liidu kliimaneutraalsusees märki ja täita määruse (EL) 2018/1999 artiklis 15 osutatud pikaajalist strateegiat | B17: Panustab kliimapoliitika põhialuste 2050 transpordi suuna eesmärkidesse.
A18: Programmi või meetme aluseks olevad Euroopa Liidu õigusaktid | B18: Effort Sharing Regulation; NEC Directive; Renewable Energy Directive; Energy Efficency Directive; Alternative Fuels Infrastructure Directive
A19: Programmi või meetme rakendamise seis | B19: Rakendatud (Implemented)
A20: Programmi või meetme rakendamise periood | B20: 2024-2027
A21: Stsenaarium, mille juures programmi või meedet on arvestatud | B21: WEM
A22: Programmi või meetme rakendamise eest vastutavad isikute või asutuste tüüp | B22: riigi valitsus
A23: Programmi või meetme rakendamise eest vastutavad isikud või asutused | B23: Kliimaministeerium
A24: Viide analüüsidele või tehnilistele aruannetele | B24: https://www.mkm.ee/sites/default/files/180917_energiatohusus_2030_aruanne.pdf; https://www.mkm.ee/media/143/download
A25: Kommentaar

Sheet TR15
A1: REKK peatükk | B1: 3.1.1.i
A2: Teised seonduvad REKK 2030 peatükid | B2: 3.2.1.i
A3: Poliitikasuuna või meetme number (PaM ID) | B3: 39
A4: Programmi või meetme number REKK2030 | B4: =MID(CELL("filename",A2),FIND("]",CELL("filename",A2))+1,255) -> TR15
A5: Programmi või meetme nimetus | B5: Siseriikliku parvlaeva muutmine kliimaneutraalseks
A6: Programmi või meetme nimetus inglise keeles | B6: Making a domestic ferry climate neutral
A7: Lühike kirjeldus | B7: Üks Saaremaa mandri vaheline parvlaev töötab elektril. Selle meetme rakendamine hõlmab mandri-Eesti ja saarte vahelise parvlaeva elektrifitseerimist. Praegu teenindab mandrit kaks diiselkütusel töötavat parvlaeva. Plaanis on asendada üks diiselkütusel töötav parvlaev elektriga töötava parvlaevaga, millel on parvlaeva laadimiseks vajalik taristu.
A8: Seotud Euroopa Liidu energialiidu mõõtmed | B8: CO2 heite vähendamise mõõde; CO2 heite vähendamise mõõde: taastuvenergia; Energiatõhususe mõõde
A9: Asjakohased eesmärgid, sihid või panused, millele poliitikasuund või meede kaasa aitab | B9: kasvuhoonegaaside heide ja nende sidumine – liikmesriigi siduv riiklik kasvuhoonegaaside heitega seotud eesmärk ja iga-aastased siduvad riiklikud piirnormid vastavalt määrusele (EL) 2018/842; eeldatavad trajektoorid, mis näitavad ajavahemikul 2021–2030 elektri-, kütte- ja jahutus- ning transpordisektoris tarbitava taastuvenergia osakaalu lõppenergia tarbimises; ajavahemikul 2021–2030 saavutatav kumulatiivne lõpptarbimise energiasääst kooskõlas direktiivi 2012/27/EL artikli 7 lõike 1 punktiga b energiasäästukohustuste kohta
A10: Mõjutatud sektorid | B10: transport
A11: Eesmärk | B11: sõidukite energiatõhususe suurendamine (transport); transporditaristu tõhustamine (transport)
A12: Kvantitatiivne eesmärk | B12: Üks elektriline parvlaev
A13: Kasvuhoonegaasid, mille heitmeid otseselt mõjutatakse | B13: CO2; CH4; N2O
A14: Planeeritud eelarve
A15: Oodatav mõju 2025-2030 keskmine | B15: =AVERAGE(Meetmed!H55:M55) -> 8.126166326
A16: Programmi või meetme tüüp | B16: Majanduslikud stiimulid (Economic)
A17: Hinnang sellele, mil määral poliitikasuund või meede aitab saavutada määruse (EL) 2021/1119 artikli 2 lõikes 1 sätestatud liidu kliimaneutraalsusees märki ja täita määruse (EL) 2018/1999 artiklis 15 osutatud pikaajalist strateegiat | B17: Panustab kliimapoliitika põhialuste 2050 transpordi suuna eesmärkidesse.
A18: Programmi või meetme aluseks olevad Euroopa Liidu õigusaktid | B18: Effort Sharing Regulation; Clean Vehicles Directive; Effort Sharing Decision; NEC Directive; Renewable Energy Directive; Effort Sharing Regulation; Clean Vehicles Directive; Renewable Energy Directive
A19: Programmi või meetme rakendamise seis | B19: Vastuvõetud (Adopted)
A20: Programmi või meetme rakendamise periood | B20: 2027-
A21: Stsenaarium, mille juures programmi või meedet on arvestatud | B21: WEM
A22: Programmi või meetme rakendamise eest vastutavad isikute või asutuste tüüp | B22: riigi valitsus
A23: Programmi või meetme rakendamise eest vastutavad isikud või asutused | B23: Kliimaministeerium
A24: Viide analüüsidele või tehnilistele aruannetele
A25: Kommentaar

Sheet TR16a
A1: REKK peatükk | B1: 3.1.1.i
A2: Teised seonduvad REKK 2030 peatükid | B2: 3.2.1.i
A3: Poliitikasuuna või meetme number (PaM ID) | B3: 40
A4: Programmi või meetme number REKK2030 | B4: =MID(CELL("filename",A2),FIND("]",CELL("filename",A2))+1,255) -> TR16a
A5: Programmi või meetme nimetus | B5: Biometaani kasutamise soodustamine bussides
A6: Programmi või meetme nimetus inglise keeles | B6: Promoting the use of biomethane in busses
A7: Lühike kirjeldus | B7: Toetuse eesmärk on suurendada biometaani pakkumist turul, tekitades nõudlust taastuvatest energiaallikatest toodetud kütuste järele ja toetades tanklate rajamist.
A8: Seotud Euroopa Liidu energialiidu mõõtmed | B8: CO2 heite vähendamise mõõde; CO2 heite vähendamise mõõde: taastuvenergia
A9: Asjakohased eesmärgid, sihid või panused, millele poliitikasuund või meede kaasa aitab | B9: kasvuhoonegaaside heide ja nende sidumine – liikmesriigi siduv riiklik kasvuhoonegaaside heitega seotud eesmärk ja iga-aastased siduvad riiklikud piirnormid vastavalt määrusele (EL) 2018/842; eeldatavad trajektoorid, mis näitavad ajavahemikul 2021–2030 elektri-, kütte- ja jahutus- ning transpordisektoris tarbitava taastuvenergia osakaalu lõppenergia tarbimises
A10: Mõjutatud sektorid | B10: transport
A11: Eesmärk | B11: vähese CO2 heitega kütused (transport); sõidukite energiatõhususe suurendamine (transport)
A12: Kvantitatiivne eesmärk | B12: Bussid 100% biometaanil 2030.aastaks
A13: Kasvuhoonegaasid, mille heitmeid otseselt mõjutatakse | B13: CO2; CH4; N2O
A14: Planeeritud eelarve
A15: Oodatav mõju 2025-2030 keskmine | B15: =AVERAGE(Meetmed!H61:M61) -> 74.00616698
A16: Programmi või meetme tüüp | B16: Majanduslikud stiimulid (Economic)
A17: Hinnang sellele, mil määral poliitikasuund või meede aitab saavutada määruse (EL) 2021/1119 artikli 2 lõikes 1 sätestatud liidu kliimaneutraalsusees märki ja täita määruse (EL) 2018/1999 artiklis 15 osutatud pikaajalist strateegiat | B17: Panustab kliimapoliitika põhialuste 2050 transpordi suuna eesmärkidesse.
A18: Programmi või meetme aluseks olevad Euroopa Liidu õigusaktid | B18: Effort Sharing Regulation; Effort Sharing Decision; Renewable Energy Directive
A19: Programmi või meetme rakendamise seis | B19: Rakendatud (Implemented)
A20: Programmi või meetme rakendamise periood | B20: 2014-…
A21: Stsenaarium, mille juures programmi või meedet on arvestatud | B21: WEM
A22: Programmi või meetme rakendamise eest vastutavad isikute või asutuste tüüp | B22: riigi valitsus
A23: Programmi või meetme rakendamise eest vastutavad isikud või asutused | B23: Keskkonnainvesteeringute Keskus, Kliimaministeerium
A24: Viide analüüsidele või tehnilistele aruannetele | B24: https://www.riigiteataja.ee/akt/125112015009?leiaKehtiv
A25: Kommentaar

Sheet TR16b
A1: REKK peatükk | B1: 3.1.1.i
A2: Teised seonduvad REKK 2030 peatükid | B2: 3.2.1.i
A3: Poliitikasuuna või meetme number (PaM ID) | B3: 41
A4: Programmi või meetme number REKK2030 | B4: =MID(CELL("filename",A2),FIND("]",CELL("filename",A2))+1,255) -> TR16b
A5: Programmi või meetme nimetus | B5: Elektri kasutamise soodustamine bussides
A6: Programmi või meetme nimetus inglise keeles | B6: Promoting the use of electricity in busses
A7: Lühike kirjeldus | B7: See meede hõlmab elektribussidele ülemineku (ka trollide) infrastruktuuri tugisüsteemi väljatöötamist. Toetuse eesmärk oli vähendada süsihappegaasi emissiooni elektribusside kasutuselevõtuga Eesti transpordisektoris ning koguda ja analüüsida elektribusside tarbimis- ja laadimisandmeid, et aidata kaasa elektritranspordi arengule.
A8: Seotud Euroopa Liidu energialiidu mõõtmed | B8: CO2 heite vähendamise mõõde; CO2 heite vähendamise mõõde: taastuvenergia; Energiatõhususe mõõde
A9: Asjakohased eesmärgid, sihid või panused, millele poliitikasuund või meede kaasa aitab | B9: kasvuhoonegaaside heide ja nende sidumine – liikmesriigi siduv riiklik kasvuhoonegaaside heitega seotud eesmärk ja iga-aastased siduvad riiklikud piirnormid vastavalt määrusele (EL) 2018/842; eeldatavad trajektoorid, mis näitavad ajavahemikul 2021–2030 elektri-, kütte- ja jahutus- ning transpordisektoris tarbitava taastuvenergia osakaalu lõppenergia tarbimises; ajavahemikul 2021–2030 saavutatav kumulatiivne lõpptarbimise energiasääst kooskõlas direktiivi 2012/27/EL artikli 7 lõike 1 punktiga b energiasäästukohustuste kohta
A10: Mõjutatud sektorid | B10: transport
A11: Eesmärk | B11: elektriline maanteetransport (transport); ühistranspordile või mootorita transpordivahenditele ülemineku edendamine (transport)
A12: Kvantitatiivne eesmärk | B12: 8 laadimisinfrastruktuuriga elektribussi (aeglased ja kiirlaadijad)
A13: Kasvuhoonegaasid, mille heitmeid otseselt mõjutatakse | B13: CO2; CH4; N2O
A14: Planeeritud eelarve
A15: Oodatav mõju 2025-2030 keskmine | B15: =AVERAGE(Meetmed!H56:M56) -> 16.16422277
A16: Programmi või meetme tüüp | B16: Majanduslikud stiimulid (Economic)
A17: Hinnang sellele, mil määral poliitikasuund või meede aitab saavutada määruse (EL) 2021/1119 artikli 2 lõikes 1 sätestatud liidu kliimaneutraalsusees märki ja täita määruse (EL) 2018/1999 artiklis 15 osutatud pikaajalist strateegiat | B17: Panustab kliimapoliitika põhialuste 2050 transpordi suuna eesmärkidesse.
A18: Programmi või meetme aluseks olevad Euroopa Liidu õigusaktid | B18: Effort Sharing Regulation; Energy Efficency Directive; Renewable Energy Directive; NEC Directive
A19: Programmi või meetme rakendamise seis | B19: Rakendatud (Implemented)
A20: Programmi või meetme rakendamise periood | B20: 2020-…
A21: Stsenaarium, mille juures programmi või meedet on arvestatud | B21: WEM
A22: Programmi või meetme rakendamise eest vastutavad isikute või asutuste tüüp | B22: riigi valitsus
A23: Programmi või meetme rakendamise eest vastutavad isikud või asutused | B23: Kliimaministeerium
A24: Viide analüüsidele või tehnilistele aruannetele | B24: https://www.riigiteataja.ee/akt/105072023320?leiaKehtiv
A25: Kommentaar

Sheet TR17
A1: REKK peatükk | B1: 3.1.1.i
A2: Teised seonduvad REKK 2030 peatükid
A3: Poliitikasuuna või meetme number (PaM ID) | B3: 42
A4: Programmi või meetme number REKK2030 | B4: =MID(CELL("filename",A2),FIND("]",CELL("filename",A2))+1,255) -> TR17
A5: Programmi või meetme nimetus | B5: KHS direktiivi ülevõtmine ning riigisektori sõidukipargi keskkonnasõbralikuks muutmine
A6: Programmi või meetme nimetus inglise keeles | B6: Promotion of clean and energy efficient road transport vehicles in public procurement
A7: Lühike kirjeldus | B7: Keskkonnasõbralike ja energiatõhusate maanteetranspordivahendite edendamine avalikus sektoris. Valitsus peab keskkonnasõbralike sõidukite direktiivis 2009/33/EÜ sätestatud süsteemi rakendama 24 kuu jooksul, s.o alates augustist 2021.
A8: Seotud Euroopa Liidu energialiidu mõõtmed | B8: CO2 heite vähendamise mõõde; Energiatõhususe mõõde; CO2 heite vähendamise mõõde: taastuvenergia
A9: Asjakohased eesmärgid, sihid või panused, millele poliitikasuund või meede kaasa aitab | B9: kasvuhoonegaaside heide ja nende sidumine – liikmesriigi siduv riiklik kasvuhoonegaaside heitega seotud eesmärk ja iga-aastased siduvad riiklikud piirnormid vastavalt määrusele (EL) 2018/842; eeldatavad trajektoorid, mis näitavad ajavahemikul 2021–2030 elektri-, kütte- ja jahutus- ning transpordisektoris tarbitava taastuvenergia osakaalu lõppenergia tarbimises; ajavahemikul 2021–2030 saavutatav kumulatiivne lõpptarbimise energiasääst kooskõlas direktiivi 2012/27/EL artikli 7 lõike 1 punktiga b energiasäästukohustuste kohta
A10: Mõjutatud sektorid | B10: transport
A11: Eesmärk | B11: sõidukite energiatõhususe suurendamine (transport); vähese CO2 heitega kütused (transport); elektriline maanteetransport (transport)
A12: Kvantitatiivne eesmärk | B12: NA
A13: Kasvuhoonegaasid, mille heitmeid otseselt mõjutatakse | B13: CO2; CH4; N2O
A14: Planeeritud eelarve
A15: Oodatav mõju 2025-2030 keskmine | B15: =AVERAGE(Meetmed!H57:M57) -> 14.99480329
A16: Programmi või meetme tüüp | B16: Seadusandlus (Regulatory)
A17: Hinnang sellele, mil määral poliitikasuund või meede aitab saavutada määruse (EL) 2021/1119 artikli 2 lõikes 1 sätestatud liidu kliimaneutraalsusees märki ja täita määruse (EL) 2018/1999 artiklis 15 osutatud pikaajalist strateegiat | B17: Panustab kliimapoliitika põhialuste 2050 transpordi suuna eesmärkidesse.
A18: Programmi või meetme aluseks olevad Euroopa Liidu õigusaktid | B18: Effort Sharing Regulation; NEC Directive; Energy Efficency Directive; Renewable Energy Directive
A19: Programmi või meetme rakendamise seis | B19: Rakendatud (Implemented)
A20: Programmi või meetme rakendamise periood | B20: 2021-2030
A21: Stsenaarium, mille juures programmi või meedet on arvestatud | B21: WEM
A22: Programmi või meetme rakendamise eest vastutavad isikute või asutuste tüüp | B22: riigi valitsus
A23: Programmi või meetme rakendamise eest vastutavad isikud või asutused | B23: Kliimaministeerium
A24: Viide analüüsidele või tehnilistele aruannetele
A25: Kommentaar

Sheet TR19
A1: REKK peatükk | B1: 3.1.1.i
A2: Teised seonduvad REKK 2030 peatükid
A3: Poliitikasuuna või meetme number (PaM ID) | B3: 44
A4: Programmi või meetme number REKK2030 | B4: =MID(CELL("filename",A2),FIND("]",CELL("filename",A2))+1,255) -> TR19
A5: Programmi või meetme nimetus | B5: Vesiniku pilootprojekt
A6: Programmi või meetme nimetus inglise keeles | B6: Pilot project for hydrogen
A7: Lühike kirjeldus | B7: Pilootprojekt hõlmab kogu vesiniku kasutusahelat, st tootmisest, transpordist, ladustamisest kuni transpordis (taksoga) tarbimiseni. Plaanis on asendada 30 bensiini või diisliga sõitvat taksot vesinikuga. Takso aastane läbisõit on ligikaudu 100 000 kilomeetrit. IPPU sektorit mõjutab maanteetranspordi ja diislikütuse lõppnõudluse vähenemise kaudu (Ad Blue kasutamine on kajastatud IPPU sektori all).
A8: Seotud Euroopa Liidu energialiidu mõõtmed | B8: CO2 heite vähendamise mõõde; CO2 heite vähendamise mõõde: taastuvenergia; Teadusuuringute, innovatsiooni ja konkurentsivõime mõõde
A9: Asjakohased eesmärgid, sihid või panused, millele poliitikasuund või meede kaasa aitab | B9: kasvuhoonegaaside heide ja nende sidumine – liikmesriigi siduv riiklik kasvuhoonegaaside heitega seotud eesmärk ja iga-aastased siduvad riiklikud piirnormid vastavalt määrusele (EL) 2018/842; eeldatavad trajektoorid taastuvenergiatehnoloogia lahenduste kaupa; puhta energia tehnoloogia edendamisega seotud riiklikud 2050. aasta eesmärgid ning vajaduse korral riiklikud eesmärgid, sh pikaajalised (2050), mis on seotud vähese CO2 heitega tehnoloogia kasutuselevõtuga, sh suure energiakasutusega ja rohkesti CO2 heidet tekitavate tööstussektorite CO2 heite vähendamise ning vajaduse korral seonduva CO2 transpordi ja säilitamise taristu tehnoloogia
A10: Mõjutatud sektorid | B10: transport
A11: Eesmärk | B11: vähese CO2 heitega kütused (transport); sõidukite energiatõhususe suurendamine (transport)
A12: Kvantitatiivne eesmärk | B12: Vesiniku tootmine, kasutatakse ühistranspordis (taksod)
A13: Kasvuhoonegaasid, mille heitmeid otseselt mõjutatakse | B13: CO2; CH4; N2O
A14: Planeeritud eelarve
A15: Oodatav mõju 2025-2030 keskmine | B15: =AVERAGE(Meetmed!H62:M62) -> 0.9119855166
A16: Programmi või meetme tüüp | B16: Majanduslikud stiimulid (Economic); Teadusuuringud (Research)
A17: Hinnang sellele, mil määral poliitikasuund või meede aitab saavutada määruse (EL) 2021/1119 artikli 2 lõikes 1 sätestatud liidu kliimaneutraalsusees märki ja täita määruse (EL) 2018/1999 artiklis 15 osutatud pikaajalist strateegiat | B17: Panustab kliimapoliitika põhialuste 2050 transpordi suuna eesmärkidesse.
A18: Programmi või meetme aluseks olevad Euroopa Liidu õigusaktid | B18: Effort Sharing Regulation; Renewable Energy Directive
A19: Programmi või meetme rakendamise seis | B19: Rakendatud (Implemented)
A20: Programmi või meetme rakendamise periood | B20: 2021-2025
A21: Stsenaarium, mille juures programmi või meedet on arvestatud | B21: WEM
A22: Programmi või meetme rakendamise eest vastutavad isikute või asutuste tüüp | B22: riigi valitsus
A23: Programmi või meetme rakendamise eest vastutavad isikud või asutused | B23: Keskkonnainvesteeringute Keskus, Kliimaministeerium
A24: Viide analüüsidele või tehnilistele aruannetele | B24: https://www.riigiteataja.ee/akt/102072021012?leiaKehtiv
A25: Kommentaar

Sheet TR21
A1: REKK peatükk | B1: 3.1.1.i
A2: Teised seonduvad REKK 2030 peatükid
A3: Poliitikasuuna või meetme number (PaM ID) | B3: 124
A4: Programmi või meetme number REKK2030 | B4: =MID(CELL("filename",A2),FIND("]",CELL("filename",A2))+1,255) -> TR21
A5: Programmi või meetme nimetus | B5: Mootorsõidukite registreerimis- ja aastamaks
A6: Programmi või meetme nimetus inglise keeles | B6: Vehicle registration and annual tax
A7: Lühike kirjeldus | B7: Mootorsõiduki aast- ja registreerimismaks vastavalt vanuse, keskkonnaaspektidele (CO2) jne. Maksu eesmärk ei ole auto kui sellise maksustamine ja riigi maksutulude suurendamine, vaid tarbijate valikute mõjutamine ning ökonoomsema sõidukipargi kujundamine.
A8: Seotud Euroopa Liidu energialiidu mõõtmed | B8: CO2 heite vähendamise mõõde; Energiatõhususe mõõde
A9: Asjakohased eesmärgid, sihid või panused, millele poliitikasuund või meede kaasa aitab | B9: kasvuhoonegaaside heide ja nende sidumine – liikmesriigi siduv riiklik kasvuhoonegaaside heitega seotud eesmärk ja iga-aastased siduvad riiklikud piirnormid vastavalt määrusele (EL) 2018/842; ajavahemikul 2021–2030 saavutatav kumulatiivne lõpptarbimise energiasääst kooskõlas direktiivi 2012/27/EL artikli 7 lõike 1 punktiga b energiasäästukohustuste kohta
A10: Mõjutatud sektorid | B10: transport
A11: Eesmärk | B11: ühistranspordile või mootorita transpordivahenditele ülemineku edendamine (transport); nõudluse juhtimine/vähendamine (transport); käitumise parandamine (transport)
A12: Kvantitatiivne eesmärk | B12: NA
A13: Kasvuhoonegaasid, mille heitmeid otseselt mõjutatakse | B13: CO2; CH4; N2O
A14: Planeeritud eelarve
A15: Oodatav mõju 2025-2030 keskmine | B15: =AVERAGE(Meetmed!H58:M58) -> 38.43363398
A16: Programmi või meetme tüüp | B16: Maksundus (Fiscal)
A17: Hinnang sellele, mil määral poliitikasuund või meede aitab saavutada määruse (EL) 2021/1119 artikli 2 lõikes 1 sätestatud liidu kliimaneutraalsusees märki ja täita määruse (EL) 2018/1999 artiklis 15 osutatud pikaajalist strateegiat | B17: Panustab kliimapoliitika põhialuste 2050 transpordi suuna eesmärkidesse.
A18: Programmi või meetme aluseks olevad Euroopa Liidu õigusaktid | B18: Effort Sharing Regulation; Energy Efficency Directive
A19: Programmi või meetme rakendamise seis | B19: Rakendatud (Implemented)
A20: Programmi või meetme rakendamise periood | B20: 2025-
A21: Stsenaarium, mille juures programmi või meedet on arvestatud | B21: WEM
A22: Programmi või meetme rakendamise eest vastutavad isikute või asutuste tüüp | B22: riigi valitsus
A23: Programmi või meetme rakendamise eest vastutavad isikud või asutused | B23: Rahandusministeerium, Maksu- ja Tolliamet
A24: Viide analüüsidele või tehnilistele aruannetele
A25: Kommentaar

Sheet TR25
A1: REKK peatükk | B1: 3.1.1.i
A2: Teised seonduvad REKK 2030 peatükid
A3: Poliitikasuuna või meetme number (PaM ID) | B3: 63
A4: Programmi või meetme number REKK2030 | B4: =MID(CELL("filename",A2),FIND("]",CELL("filename",A2))+1,255) -> TR25
A5: Programmi või meetme nimetus | B5: Alternatiivkütustuste taristu arendamine transpordis (elektri- ja vesiniku laadimistaristu loomine)
A6: Programmi või meetme nimetus inglise keeles | B6: Development of infrastructure for alternative fuels in transport ()
A7: Lühike kirjeldus | B7: Meetme eesmärk on tagada piisavalt ja omavahel ühilduvad laadimis- ja tankimisvõrgustikud transpordisektori jaoks, toetades üleminekut heitmevabale liikumisele ning täites ELi alternatiivkütuste taristu määruse (AFIR) nõudeid.
A8: Seotud Euroopa Liidu energialiidu mõõtmed | B8: CO2 heite vähendamise mõõde: taastuvenergia; CO2 heite vähendamise mõõde
A9: Asjakohased eesmärgid, sihid või panused, millele poliitikasuund või meede kaasa aitab | B9: eeldatavad trajektoorid, mis näitavad ajavahemikul 2021–2030 elektri-, kütte- ja jahutus- ning transpordisektoris tarbitava taastuvenergia osakaalu lõppenergia tarbimises; kasvuhoonegaaside heide ja nende sidumine – liikmesriigi siduv riiklik kasvuhoonegaaside heitega seotud eesmärk ja iga-aastased siduvad riiklikud piirnormid vastavalt määrusele (EL) 2018/842
A10: Mõjutatud sektorid | B10: transport
A11: Eesmärk | B11: transporditaristu tõhustamine (transport)
A12: Kvantitatiivne eesmärk | B12: AFIRi määruse nõuete täitmine
A13: Kasvuhoonegaasid, mille heitmeid otseselt mõjutatakse | B13: CO2; CH4; N2O
A14: Planeeritud eelarve
A15: Oodatav mõju 2025-2030 keskmine | B15: NE
A16: Programmi või meetme tüüp | B16: Majanduslikud stiimulid (Economic); Seadusandlus (Regulatory)
A17: Hinnang sellele, mil määral poliitikasuund või meede aitab saavutada määruse (EL) 2021/1119 artikli 2 lõikes 1 sätestatud liidu kliimaneutraalsusees märki ja täita määruse (EL) 2018/1999 artiklis 15 osutatud pikaajalist strateegiat | B17: Panustab kliimapoliitika põhialuste 2050 transpordi suuna eesmärkidesse.
A18: Programmi või meetme aluseks olevad Euroopa Liidu õigusaktid | B18: Alternative Fuels Infrastructure Directive; Renewable Energy Directive; Effort Sharing Regulation
A19: Programmi või meetme rakendamise seis | B19: Rakendatud (Implemented)
A20: Programmi või meetme rakendamise periood | B20: 2024-2027
A21: Stsenaarium, mille juures programmi või meedet on arvestatud | B21: WEM
A22: Programmi või meetme rakendamise eest vastutavad isikute või asutuste tüüp | B22: riigi valitsus
A23: Programmi või meetme rakendamise eest vastutavad isikud või asutused | B23: Kliimaministeerium
A24: Viide analüüsidele või tehnilistele aruannetele
A25: Kommentaar

Sheet PM4
A1: REKK peatükk | B1: 3.1.1.i
A2: Teised seonduvad REKK 2030 peatükid
A3: Poliitikasuuna või meetme number (PaM ID) | B3: 70
A4: Programmi või meetme number REKK2030 | B4: =MID(CELL("filename",A2),FIND("]",CELL("filename",A2))+1,255) -> PM4
A5: Programmi või meetme nimetus | B5: Teadmussiire ja teavitus
A6: Programmi või meetme nimetus inglise keeles | B6: Knowledge transfer and awareness
A7: Lühike kirjeldus | B7: Meetme eesmärgiks on põllumajandus-, toidu- ja metsandussektori ettevõtjate ning nende töötajate arendamine. Uute teadmiste leviku soodustamisega aidatakse kaasa biomajanduse arengule ja kohanemisele uute väljakutsetega ressursside säästlikuks kasutamiseks. Meetmega soovitakse edendada koolituste/esitluste ja teadlikkuse tõstmise tegevuste korraldamist ning töötubade või ettevõtete külastuste korraldamist ning pikaajalisi programme.
A8: Seotud Euroopa Liidu energialiidu mõõtmed | B8: CO2 heite vähendamise mõõde
A9: Asjakohased eesmärgid, sihid või panused, millele poliitikasuund või meede kaasa aitab | B9: Teadusuuringute, innovatsiooni ja konkurentsivõime mõõde; kasvuhoonegaaside heide ja nende sidumine – liikmesriigi siduv riiklik kasvuhoonegaaside heitega seotud eesmärk ja iga-aastased siduvad riiklikud piirnormid vastavalt määrusele (EL) 2018/842
A10: Mõjutatud sektorid | B10: põllumajandus
A11: Eesmärk | B11: muu põllumajandus (põllumajandus)
A12: Kvantitatiivne eesmärk | B12: Nõustatuid kokku 2025 a lõpuks ca 8000.
A13: Kasvuhoonegaasid, mille heitmeid otseselt mõjutatakse | B13: CH4, CO2, N2O
A14: Oodatav mõju 2025-2030 keskmine | B14: NE
A15: Programmi või meetme tüüp | B15: Haridus (Education); Teavitamine (Information)
A16: Hinnang sellele, mil määral poliitikasuund või meede aitab saavutada määruse (EL) 2021/1119 artikli 2 lõikes 1 sätestatud liidu kliimaneutraalsusees märki ja täita määruse (EL) 2018/1999 artiklis 15 osutatud pikaajalist strateegiat | B16: Meede aitab kaasa KPP2050 järgmistele suunistele: Põllumajandussektori kasvuhoonegaaside heite piiramisel eelistatakse teadus-, arendus- ja innovatsioonisuundi, mis suurendavad põllumajanduse kestlikkust. Innovatsiooni edendamiseks seotakse teadustöö tihedalt põllumajandustootmisega hariduse, teavituse ja nõustamise kaudu. Uuringute abil suurendatakse põllumajanduses keskkonna- ja kliimamuutustega seotud teadus-, arendus- ja innovatsioonitegevuste mahtu.
A17: Programmi või meetme aluseks olevad Euroopa Liidu õigusaktid | B17: Effort Sharing Regulation; Common Agricultural Policy; Effort Sharing Decision; European Structural and Investment Funds
A18: Programmi või meetme rakendamise seis | B18: Rakendatud (Implemented)
A19: Programmi või meetme rakendamise periood | B19: 2015-2025
A20: Stsenaarium, mille juures programmi või meedet on arvestatud | B20: WEM
A21: Programmi või meetme rakendamise eest vastutavad isikute või asutuste tüüp | B21: piirkondlikud üksused; riigi valitsus
B22: Põllumajanduse Registrite ja Informatiooni Amet; Regionaal -ja Põllumajandusministeerium
A23: Viide analüüsidele või tehnilistele aruannetele | B23: https://www.agri.ee/eesti-maaelu-arengukava-2014-2020
A24: Kommentaar

Sheet PM7
A1: REKK peatükk | B1: 3.1.1.i
A2: Teised seonduvad REKK 2030 peatükid
A3: Poliitikasuuna või meetme number (PaM ID) | B3: 76
A4: Programmi või meetme number REKK2030 | B4: =MID(CELL("filename",A2),FIND("]",CELL("filename",A2))+1,255) -> PM7
A5: Programmi või meetme nimetus | B5: Kliima- ja keskkonnakava: mahepõllumajanduse ökokava (ÖK2)
A6: Programmi või meetme nimetus inglise keeles | B6: Eco-scheme for organic farming
A7: Lühike kirjeldus | B7: Toetust antakse mahepõllumajandusele üleminekut alustavatele ja mahepõllumajandusega tegelevatele ettevõtjatele ning toetuse maksmise aluseks on nende mahepõllumajanduslikus kasutuses oleva põllumajandusmaa pind.
A8: Seotud Euroopa Liidu energialiidu mõõtmed | B8: CO2 heite vähendamise mõõde
A9: Asjakohased eesmärgid, sihid või panused, millele poliitikasuund või meede kaasa aitab | B9: kasvuhoonegaaside heide ja nende sidumine – liikmesriigi siduv riiklik kasvuhoonegaaside heitega seotud eesmärk ja iga-aastased siduvad riiklikud piirnormid vastavalt määrusele (EL) 2018/842
A10: Mõjutatud sektorid | B10: põllumajandus
A11: Eesmärk | B11: väetiste/sõnniku kasutamise vähendamine põllumaal (põllumajandus); orgaaniliste muldade parem majandamine (põllumajandus)
A12: Kvantitatiivne eesmärk | B12: 230 000 ha mahemaa pindala kokku aastaks 2027
A13: Kasvuhoonegaasid, mille heitmeid otseselt mõjutatakse | B13: N2O; CO2
A14: Oodatav mõju 2025-2030 keskmine | B14: =AVERAGE(Meetmed!H66:M66) -> 27.01363843
A15: Programmi või meetme tüüp | B15: Majanuduslikud stiimulid (Economic); Seadusandlus (Regulatory)
A16: Hinnang sellele, mil määral poliitikasuund või meede aitab saavutada määruse (EL) 2021/1119 artikli 2 lõikes 1 sätestatud liidu kliimaneutraalsusees märki ja täita määruse (EL) 2018/1999 artiklis 15 osutatud pikaajalist strateegiat | B16: Meede aitab kaasa KPP2050 järgmistele suunistele: 1) Suurendatakse ja säilitatakse muldade süsinikuvaru ning kujundatakse ja säilitatakse olulise süsinikuvaruga maa-alasid; 2) Soodustatakse põllumajandusmaa tõhusat ja keskkonnasõbralikku kasutust ning välditakse selle põllumajanduslikust kasutusest väljalangemist. Säilitatakse põllumajandusmaa tootmispotentsiaal ja väärtusliku mullastikuga põllumaa pindala. Praktiseeritakse keskkonna- ja kliimasõbralikke viljelusviise ja tavasid ning rakendatakse tõhusaid põllumajandustehnoloogiaid ja -praktikaid, et säilitada ja suurendada põllumaade viljakust ning tagada sealne elurikkus. 2) Tõhustatakse taimetoitainete kasutamist ning soodustatakse mineraalväetiste asendamist orgaaniliste väetiste ja keskkonnasõbralike mullaparandajatega. Välditakse orgaanilise aine vajaduseta põllult minemaviimist. Meede aitab eesmärkide saavutamisele kaasa, toetades mahepõllumajandusliku tootmise arengut ja vähendades kasvuhoonegaaside heitkoguseid, kasutades sünteetiliste väetiste asemel orgaanilisi väetisi.
A17: Programmi või meetme aluseks olevad Euroopa Liidu õigusaktid | B17: Common Agricultural Policy; Effort Sharing Regulation
A18: Programmi või meetme rakendamise seis | B18: Rakendatud (Implemented)
A19: Programmi või meetme rakendamise periood | B19: 2023-2027
A20: Stsenaarium, mille juures programmi või meedet on arvestatud | B20: WEM
A21: Programmi või meetme rakendamise eest vastutavad isikute või asutuste tüüp | B21: piirkondlikud üksused; riigi valitsus
A22: Programmi või meetme rakendamise eest vastutavad isikud või asutused | B22: Põllumajanduse Registrite ja Informatiooni Amet; Regionaal -ja Põllumajandusministeerium
A23: Viide analüüsidele või tehnilistele aruannetele | B23: https://www.agri.ee/euroopa-liidu-uhise-pollumajanduspoliitika-strateegiakava-2023-2027
A24: Kommentaar

Sheet PM9
A1: REKK peatükk | B1: 3.1.1.i
A2: Teised seonduvad REKK 2030 peatükid
A3: Poliitikasuuna või meetme number (PaM ID) | B3: 82
A4: Programmi või meetme number REKK2030 | B4: =MID(CELL("filename",A2),FIND("]",CELL("filename",A2))+1,255) -> PM9
A5: Programmi või meetme nimetus | B5: Loomade heaolu toetus
A6: Programmi või meetme nimetus inglise keeles | B6: Animal welfare support
A7: Lühike kirjeldus | B7: Sekkumise üldeesmärgiks on tõsta loomakasvatajate teadlikkust loomade heaolust ja toetada põllumajandustootjaid, kes täidavad loomade heaolu kõrgemaid nõudeid ning parandavad sellega loomade heaolu ja tervist. Lisaks aitab toetus vähendada loomakasvatuse negatiivset keskkonnamõju õhule ja mullale ning suurendada rohumaade elurikkuse säilitamiseks ekstensiivselt karjatatavate loomade hulka seejuures loomade üldarvu ja loomkoormuse tõusu soodustamata. Sekkumise abil toetatakse: - piimaveiste ja hobuste keskkonnahoidlikku karjatamist; - suuremat pidamispinda sea kohta, sigade söötmisplaani koostamist ja söödalisandite kasutamist ning põrsaste kastreerimise korral anesteesia ja analgeesia kasutamist; - alternatiivsüsteemide rakendamist linnukasvatuses, suuremat pidamispinda munakana ja vuti kohta.
A8: Seotud Euroopa Liidu energialiidu mõõtmed | B8: CO2 heite vähendamise mõõde
A9: Asjakohased eesmärgid, sihid või panused, millele poliitikasuund või meede kaasa aitab | B9: kasvuhoonegaaside heide ja nende sidumine – liikmesriigi siduv riiklik kasvuhoonegaaside heitega seotud eesmärk ja iga-aastased siduvad riiklikud piirnormid vastavalt määrusele (EL) 2018/842
A10: Mõjutatud sektorid | B10: põllumajandus
A11: Eesmärk | B11: tõhusam loomakasvatus (põllumajandus); karja- või rohumaade parema majandamise meetmed (põllumajandus)
A12: Kvantitatiivne eesmärk | B12: 65 128 loomühikut toetatud aastaks 2027
A13: Kasvuhoonegaasid, mille heitmeid otseselt mõjutatakse | B13: CH4; N2O
A14: Oodatav mõju 2025-2030 keskmine | B14: =AVERAGE(Meetmed!H68:M68) -> 13.39918432
A15: Programmi või meetme tüüp | B15: Majanuduslikud stiimulid (Economic)
A16: Hinnang sellele, mil määral poliitikasuund või meede aitab saavutada määruse (EL) 2021/1119 artikli 2 lõikes 1 sätestatud liidu kliimaneutraalsusees märki ja täita määruse (EL) 2018/1999 artiklis 15 osutatud pikaajalist strateegiat | B16: Meede aitab kaasa KPP2050-s olevatele järgmistele suunistele: Suurendatakse põllumajandussektori tootlikkust ja ressursikasutuse tõhusust, et vähendada kasvuhoonegaaside heidet toodangu ühiku kohta. Meede aitab kaasa eesmärgi saavutamisele, toetades loomade stressitaseme alandamist, nt. kuna looma kohta on rohkem ruumi. Väiksem stress võimaldab loomadel saavutada parema sööda seeduvuse, mis vähendab soolesisese fermentatsiooni heitkoguseid.
A17: Programmi või meetme aluseks olevad Euroopa Liidu õigusaktid | B17: Common Agricultural Policy; European Structural and Investment Funds
A18: Programmi või meetme rakendamise seis | B18: Rakendatud (Implemented)
A19: Programmi või meetme rakendamise periood | B19: 2023-2027
A20: Stsenaarium, mille juures programmi või meedet on arvestatud | B20: WEM
A21: Programmi või meetme rakendamise eest vastutavad isikute või asutuste tüüp | B21: piirkondlikud üksused; riigi valitsus
A22: Programmi või meetme rakendamise eest vastutavad isikud või asutused | B22: Põllumajanduse Registrite ja Informatiooni Amet; Regionaal -ja Põllumajandusministeerium
A23: Viide analüüsidele või tehnilistele aruannetele | B23: https://www.agri.ee/euroopa-liidu-uhise-pollumajanduspoliitika-strateegiakava-2023-2027
A24: Kommentaar

Sheet PM11
A1: REKK peatükk | B1: 3.1.1.i
A2: Teised seonduvad REKK 2030 peatükid
A3: Poliitikasuuna või meetme number (PaM ID) | B3: 86
A4: Programmi või meetme number REKK2030 | B4: =MID(CELL("filename",A2),FIND("]",CELL("filename",A2))+1,255) -> PM11
A5: Programmi või meetme nimetus | B5: Investeeringud bioressursside väärindamisse
A6: Programmi või meetme nimetus inglise keeles | B6: Investments in expoitation bioresources
A7: Lühike kirjeldus | B7: Sekkumise eesmärk on aidata kaasa bioressurssidele suurema majandusliku lisandväärtuse loomisele, teadus- ja arendustegevuse ning innovatsioonivõimekuse suurendamisele ning kasvuhoonegaaside heitkoguste vähendamisele. Bioressursile kõrgema lisandväärtuse andmine kasvatab ettevõtete positsiooni väärtusahelas, aitab vähendada sõltuvust kodu- ja välismaistest taastumatutest ressurssidestning kiirendab taastumatute ressursside asendamist kooskõlas ELi kliimaeesmärkidega. Tekivad uued töökohad, mis edendavad maapiirkondade majandust, sh äärealadel. Sekkumisega soodustatakse ka (sektoritevahelist) koostööd, ühistute ja klastrite teket ning tutvustatakse biomajanduse võimalusi laiemale sihtgrupile.
A8: Seotud Euroopa Liidu energialiidu mõõtmed | B8: CO2 heite vähendamise mõõde; CO2 heite vähendamise mõõde: taastuvenergia
A9: Asjakohased eesmärgid, sihid või panused, millele poliitikasuund või meede kaasa aitab | B9: kasvuhoonegaaside heide ja nende sidumine – liikmesriigi siduv riiklik kasvuhoonegaaside heitega seotud eesmärk ja iga-aastased siduvad riiklikud piirnormid vastavalt määrusele (EL) 2018/842; eeldatavad trajektoorid taastuvenergiatehnoloogia lahenduste kaupa
A10: Mõjutatud sektorid | B10: energiatarbimine (sh kütuste ja elektri tarbimine lõpptarbijate, näiteks kodumajapidamiste ja ametiasutuste, teenindus-, tööstus- ja põllumajandussektori poolt); põllumajandus
A11: Eesmärk | B11: muu põllumajandus (põllumajandus); muu energiatarbimine (energiatarbimine)
A12: Kvantitatiivne eesmärk | B12: Toetatud kuni 15 projekti hiljemalt aastaks 2027
A13: Kasvuhoonegaasid, mille heitmeid otseselt mõjutatakse | B13: CH4
A14: Oodatav mõju 2025-2030 keskmine | B14: NE
A15: Programmi või meetme tüüp | B15: Majanuduslikud stiimulid (Economic)
A16: Hinnang sellele, mil määral poliitikasuund või meede aitab saavutada määruse (EL) 2021/1119 artikli 2 lõikes 1 sätestatud liidu kliimaneutraalsusees märki ja täita määruse (EL) 2018/1999 artiklis 15 osutatud pikaajalist strateegiat | B16: Meede aitab kaasa KPP2050 järgmistele suunistele: Edendatakse säästlikkuse kriteeriumitele vastavast biomassist bioenergia tootmist, et seda kasutada taastumatute kütuste asemel, kahjustamata sealjuures elurikkust ja kliimaeesmärkide saavutamist. Bioenergia tootmisel soodustatakse suuremat tõhusust ja ressursside väärindamist. Meede aitab kaasa eesmärgi saavutamisele, toetades bioenergia tootmist. Bioenergia tootmise sisend võib olla põllumajanduslikku päritolu, nt. sõnnik või põllukultuuride jäägid.
A17: Programmi või meetme aluseks olevad Euroopa Liidu õigusaktid | B17: Effort Sharing Regulation; Common Agricultural Policy
A18: Programmi või meetme rakendamise seis | B18: Rakendatud (Implemented)
A19: Programmi või meetme rakendamise periood | B19: 2023-2027
A20: Stsenaarium, mille juures programmi või meedet on arvestatud | B20: WEM
A21: Programmi või meetme rakendamise eest vastutavad isikute või asutuste tüüp | B21: piirkondlikud üksused; riigi valitsus
A22: Programmi või meetme rakendamise eest vastutavad isikud või asutused | B22: Põllumajanduse Registrite ja Informatiooni Amet; Regionaal -ja Põllumajandusministeerium
A23: Viide analüüsidele või tehnilistele aruannetele | B23: https://www.agri.ee/euroopa-liidu-uhise-pollumajanduspoliitika-strateegiakava-2023-2027
A24: Kommentaar

Sheet PM13
A1: REKK peatükk | B1: 3.1.1.i
A2: Teised seonduvad REKK 2030 peatükid
A3: Poliitikasuuna või meetme number (PaM ID) | B3: 78
A4: Programmi või meetme number REKK2030 | B4: =MID(CELL("filename",A2),FIND("]",CELL("filename",A2))+1,255) -> PM13
A5: Programmi või meetme nimetus | B5: Kliima- ja keskkonnakava: ökosüsteemiteenuste säilitamine põllumaal (ÖK4)
A6: Programmi või meetme nimetus inglise keeles | B6: Support for maintenance of ecosystem services on agricultural land
A7: Lühike kirjeldus | B7: Sekkumisega toetatakse mitmekesist põllumajandusmaastikku, maastikuelementide ja looduslike alade säilitamist eesmärgiga tagada põllumaal põllukahjurite looduslikud vaenlased, kes osutavad looduslikku kahjuritõrje ökosüsteemi teenust.
A8: Seotud Euroopa Liidu energialiidu mõõtmed | B8: CO2 heite vähendamise mõõde
A9: Asjakohased eesmärgid, sihid või panused, millele poliitikasuund või meede kaasa aitab | B9: kasvuhoonegaaside heide ja nende sidumine – liikmesriigi siduv riiklik kasvuhoonegaaside heitega seotud eesmärk ja iga-aastased siduvad riiklikud piirnormid vastavalt määrusele (EL) 2018/842
A10: Mõjutatud sektorid | B10: põllumajandus
A11: Eesmärk | B11: karja- või rohumaade parema majandamise meetmed (põllumajandus); muud põllumaa parema majandamise meetmed (põllumajandus); orgaaniliste muldade parem majandamine (põllumajandus); karja- või rohumaade parema majandamise meetmed (põllumajandus); orgaaniliste muldade parem majandamine (põllumajandus); degradeerunud maa taastamine; muu LULUCFi sektoriga seotud eesmärk (LULUCF)
A12: Kvantitatiivne eesmärk | B12: 90 000 ha põllumajandusmaastike, maastikuelemente või looduslikke alasi säilitatud aastaks 2027 läbi põllukahjurite looduslike vaenlaste tagamise põllumaal
A13: Kasvuhoonegaasid, mille heitmeid otseselt mõjutatakse | B13: N20
A14: Oodatav mõju 2025-2030 keskmine | B14: NE
A15: Programmi või meetme tüüp | B15: Majanuduslikud stiimulid (Economic)
A16: Hinnang sellele, mil määral poliitikasuund või meede aitab saavutada määruse (EL) 2021/1119 artikli 2 lõikes 1 sätestatud liidu kliimaneutraalsusees märki ja täita määruse (EL) 2018/1999 artiklis 15 osutatud pikaajalist strateegiat | B16: Meede aitab kaasa KPP2050 järgmistele suunistele: Tõhustatakse taimetoitainete kasutamist ning soodustatakse mineraalväetiste asendamist orgaaniliste väetiste ja keskkonnasõbralike mullaparandajatega. Välditakse orgaanilise aine vajaduseta põllult minemaviimist. Meede aitab kaasa eesmärgi saavutamisele, toetades kohaspetsiifilise väetamise seadmete (nt GPS, sõnniku ja mineraalväetiste lisamise seadmed) ostmist, et vähendada lämmastikväetiste kasutamist ja toitainete leostumist.
A17: Programmi või meetme aluseks olevad Euroopa Liidu õigusaktid | B17: Effort Sharing Regulation; Common Agricultural Policy
A18: Programmi või meetme rakendamise seis | B18: Rakendatud (Implemented)
A19: Programmi või meetme rakendamise periood | B19: 2023-2027
A20: Stsenaarium, mille juures programmi või meedet on arvestatud | B20: WEM
A21: Programmi või meetme rakendamise eest vastutavad isikute või asutuste tüüp | B21: piirkondlikud üksused; riigi valitsus
A22: Programmi või meetme rakendamise eest vastutavad isikud või asutused | B22: Põllumajanduse Registrite ja Informatiooni Amet; Regionaal -ja Põllumajandusministeerium
A23: Viide analüüsidele või tehnilistele aruannetele | B23: https://www.agri.ee/euroopa-liidu-uhise-pollumajanduspoliitika-strateegiakava-2023-2027
A24: Kommentaar

Sheet PM19
A1: REKK peatükk | B1: 3.1.1.i
A2: Teised seonduvad REKK 2030 peatükid
A3: Poliitikasuuna või meetme number (PaM ID) | B3: 84
A4: Programmi või meetme number REKK2030 | B4: =MID(CELL("filename",A2),FIND("]",CELL("filename",A2))+1,255) -> PM19
A5: Programmi või meetme nimetus | B5: Teadmussiirde- ja innovatsioonisüsteemi (AKIS) arendamise toetus
A6: Programmi või meetme nimetus inglise keeles | B6: Support for the development of knowledge transfer and advisory services (AKIS)
A7: Lühike kirjeldus | B7: Sidusa teadmussiirde- ja innovatsioonisüsteemi (AKIS) keskmes olev kvaliteetne teadmussiire ja nõuandeteenus on oluline põllumajanduse ja toidusektori jätkusuutlikuks arenguks ja aitab tõsta sektori ettevõtete konkurentsivõimet, luues täiendavaid võimalusi põllumajanduse ja maapiirkondade elu kaasajastamiseks, edendades ja jagades teadmisi, toetades innovatsiooni ja digiüleminekut ning ergutades nende kasutuselevõttu. Toetatakse tegevusi, mis on seotud põllumajanduse, toidu käitlemise (sh töötlemise), metsanduse, maapiirkonna ettevõtluse ja kogukondadega ning tõstavad inimeste teadlikkust tööõiguse ja -ohutuse temaatikast, kestlikust toidusüsteemist, keskkonnasäästlikkusest, ressursi- ja energiatõhususest, innovatiivsete lahenduste kasutamise võimalustest, loodushoiust ja loodusvarade kestlikust kasutamisest, kliimaneutraalsuse saavutamise vajadusest ja võimalustest, kliimamuutustega kohanemisest ning (ring)biomajandusest, jne. Teadlikkuse tõstmine omakorda loob pinnase rohelisemate ärimudelite kasutamiseks.
A8: Seotud Euroopa Liidu energialiidu mõõtmed | B8: CO2 heite vähendamise mõõde
A9: Asjakohased eesmärgid, sihid või panused, millele poliitikasuund või meede kaasa aitab | B9: Teadusuuringute, innovatsiooni ja konkurentsivõime mõõde; kasvuhoonegaaside heide ja nende sidumine – liikmesriigi siduv riiklik kasvuhoonegaaside heitega seotud eesmärk ja iga-aastased siduvad riiklikud piirnormid vastavalt määrusele (EL) 2018/842
A10: Mõjutatud sektorid | B10: põllumajandus
A11: Eesmärk | B11: muu põllumajandus (põllumajandus)
A12: Kvantitatiivne eesmärk | B12: 1800 nõuannet/koolitust/teadusekspertiisi läbi viidud, mis hõlmavad sektorit laiemalt kui vaid kliima, aastatel 2023-2029
A13: Kasvuhoonegaasid, mille heitmeid otseselt mõjutatakse | B13: CH4, CO2, N2O
A14: Oodatav mõju 2025-2030 keskmine | B14: NE
A15: Programmi või meetme tüüp | B15: Haridus (Education); Teavitamine (Information)
A16: Hinnang sellele, mil määral poliitikasuund või meede aitab saavutada määruse (EL) 2021/1119 artikli 2 lõikes 1 sätestatud liidu kliimaneutraalsusees märki ja täita määruse (EL) 2018/1999 artiklis 15 osutatud pikaajalist strateegiat | B16: Meede aitab kaasa KPP2050 järgmistele suunistele: Põllumajandussektori kasvuhoonegaaside heite piiramisel eelistatakse teadus-, arendus- ja innovatsioonisuundi, mis suurendavad põllumajanduse kestlikkust. Innovatsiooni edendamiseks seotakse teadustöö tihedalt põllumajandustootmisega hariduse, teavituse ja nõustamise kaudu. Uuringute abil suurendatakse põllumajanduses keskkonna- ja kliimamuutustega seotud teadus-, arendus- ja innovatsioonitegevuste mahtu. Meede aitab kaasa eesmärgi saavutamisele, toetades hariduslike koolituste, ettekannete, teadlikkuse tõstmise tegevuste korraldamist, töötubade või ettevõtete visiitide korraldamist ning pikaajalisi programme ettevõtjate ja nende töötajate tehniliste, majandus- ja keskkonnaalaste teadmiste arendamiseks ja täiendamiseks. põllumajandussektoris, et parandada biomajandust ja kohandada uusi väljakutseid ressursside säästlikuks kasutamiseks.
A17: Programmi või meetme aluseks olevad Euroopa Liidu õigusaktid | B17: Common Agricultural Policy
A18: Programmi või meetme rakendamise seis | B18: Rakendatud (Implemented)
A19: Programmi või meetme rakendamise periood | B19: 2023-2029
A20: Stsenaarium, mille juures programmi või meedet on arvestatud | B20: WEM
A21: Programmi või meetme rakendamise eest vastutavad isikute või asutuste tüüp | B21: piirkondlikud üksused; riigi valitsus
A22: Programmi või meetme rakendamise eest vastutavad isikud või asutused | B22: Põllumajanduse Registrite ja Informatiooni Amet; Regionaal -ja Põllumajandusministeerium
A23: Viide analüüsidele või tehnilistele aruannetele | B23: https://www.agri.ee/euroopa-liidu-uhise-pollumajanduspoliitika-strateegiakava-2023-2027
A24: Kommentaar

Sheet PM23
A1: REKK peatükk | B1: 3.1.1.i
A2: Teised seonduvad REKK 2030 peatükid
A3: Poliitikasuuna või meetme number (PaM ID) | B3: 85
A4: Programmi või meetme number REKK2030 | B4: =MID(CELL("filename",A2),FIND("]",CELL("filename",A2))+1,255) -> PM23
A5: Programmi või meetme nimetus | B5: Nõuandetoetus
A6: Programmi või meetme nimetus inglise keeles | B6: Support for Advisory services
A7: Lühike kirjeldus | B7: Meede aitab suurendada teadlikkust kliima, selle muutuste ja põllumajanduse vastastikusest mõjust. Eesmärk on toetada põllumajandusettevõtete elujõulisust tagavat sissetulekut ja põllumajandussektori vastupanuvõimet kogu liidus, et parandada pikaajalist toiduga kindlustatust ja põllumajanduse mitmekesisust ning tagada põllumajandusliku tootmise majanduslik kestlikkus liidus.
A8: Seotud Euroopa Liidu energialiidu mõõtmed | B8: CO2 heite vähendamise mõõde
A9: Asjakohased eesmärgid, sihid või panused, millele poliitikasuund või meede kaasa aitab | B9: Teadusuuringute, innovatsiooni ja konkurentsivõime mõõde; kasvuhoonegaaside heide ja nende sidumine – liikmesriigi siduv riiklik kasvuhoonegaaside heitega seotud eesmärk ja iga-aastased siduvad riiklikud piirnormid vastavalt määrusele (EL) 2018/842
A10: Mõjutatud sektorid | B10: põllumajandus
A11: Eesmärk | B11: muu põllumajandus (põllumajandus)
A12: Kvantitatiivne eesmärk | B12: 6000 põllumajandusettevõtet toetatud või koolitatud selle toetusega 2023–2029
A13: Kasvuhoonegaasid, mille heitmeid otseselt mõjutatakse | B13: CH4, CO2, N2O
A14: Oodatav mõju 2025-2030 keskmine | B14: NE
A15: Programmi või meetme tüüp | B15: Majanuduslikud stiimulid (Economic); Haridus (Education); Teavitamine (Information)
A16: Hinnang sellele, mil määral poliitikasuund või meede aitab saavutada määruse (EL) 2021/1119 artikli 2 lõikes 1 sätestatud liidu kliimaneutraalsusees märki ja täita määruse (EL) 2018/1999 artiklis 15 osutatud pikaajalist strateegiat | B16: Meede aitab kaasa KPP2050 järgmistele suunistele: Põllumajandussektori kasvuhoonegaaside heite piiramisel eelistatakse teadus-, arendus- ja innovatsioonisuundi, mis suurendavad põllumajanduse kestlikkust. Innovatsiooni edendamiseks seotakse teadustöö tihedalt põllumajandustootmisega hariduse, teavituse ja nõustamise kaudu. Uuringute abil suurendatakse põllumajanduses keskkonna- ja kliimamuutustega seotud teadus-, arendus- ja innovatsioonitegevuste mahtu. Meede aitab kaasa eesmärgi saavutamisele, toetades hariduslike koolituste, ettekannete, teadlikkuse tõstmise tegevuste korraldamist, töötubade või ettevõtete visiitide korraldamist ning pikaajalisi programme ettevõtjate ja nende töötajate tehniliste, majandus- ja keskkonnaalaste teadmiste arendamiseks ja täiendamiseks. põllumajandussektoris, et parandada biomajandust ja kohandada uusi väljakutseid ressursside säästlikuks kasutamiseks.
A17: Programmi või meetme aluseks olevad Euroopa Liidu õigusaktid | B17: Common Agricultural Policy
A18: Programmi või meetme rakendamise seis | B18: Rakendatud (Implemented)
A19: Programmi või meetme rakendamise periood | B19: 2024-2029
A20: Stsenaarium, mille juures programmi või meedet on arvestatud | B20: WEM
A21: Programmi või meetme rakendamise eest vastutavad isikute või asutuste tüüp | B21: piirkondlikud üksused; riigi valitsus
A22: Programmi või meetme rakendamise eest vastutavad isikud või asutused | B22: Põllumajanduse Registrite ja Informatiooni Amet; Regionaal -ja Põllumajandusministeerium
A23: Viide analüüsidele või tehnilistele aruannetele | B23: https://www.agri.ee/euroopa-liidu-uhise-pollumajanduspoliitika-strateegiakava-2023-2027
A24: Kommentaar

Sheet PM24
A1: REKK peatükk | B1: 3.1.1.i
A2: Teised seonduvad REKK 2030 peatükid
A3: Poliitikasuuna või meetme number (PaM ID) | B3: 132
A4: Programmi või meetme number REKK2030 | B4: =MID(CELL("filename",A1),FIND("]",CELL("filename",A1))+1,255) -> PM24
A5: Programmi või meetme nimetus | B5: Investeering: Biogaasi ja biometaani tootmise ja kasutamise suurendamine
A6: Programmi või meetme nimetus inglise keeles | B6: Increasing the production and uptake of biomethane
A7: Lühike kirjeldus | B7: Investeering on seotud REPowerEU eesmärkidega: (b) jätkusuutliku biometaani kasutuselevõtu suurendamine kooskõlas taastuvenergiadirektiiviga (RED II), (e) taastuvenergiaallikate võrku integreerimise kiirendamine.
A8: Seotud Euroopa Liidu energialiidu mõõtmed | B8: CO2 heite vähendamise mõõde; CO2 heite vähendamise mõõde: taastuvenergia
A9: Asjakohased eesmärgid, sihid või panused, millele poliitikasuund või meede kaasa aitab | B9: kasvuhoonegaaside heide ja nende sidumine – liikmesriigi siduv riiklik kasvuhoonegaaside heitega seotud eesmärk ja iga-aastased siduvad riiklikud piirnormid vastavalt määrusele (EL) 2018/842; panus liidu siduvasse eesmärki saavutada 2030. aastal taastuvenergia vähemalt 32 % osakaal, nagu on osutatud direktiivi (EL) 2018/2001 artiklis 3
A10: Mõjutatud sektorid | B10: põllumajandus; energiatarbimine (sh kütuste ja elektri tarbimine lõpptarbijate, näiteks kodumajapidamiste ja ametiasutuste, teenindus-, tööstus- ja põllumajandussektori poolt); energiatarbimine (sh kütuste ja elektri tarbimine lõpptarbijate, näiteks kodumajapidamiste ja ametiasutuste, teenindus-, tööstus- ja põllumajandussektori poolt)
A11: Eesmärk | B11: muu energiatarbimine (energiatarbimine); muu põllumajandus (põllumajandus)
A12: Kvantitatiivne eesmärk | B12: Suurendada biogaasi tootmisvõimekust vähemalt 4 000 000 m3 võrra hiljemalt 2030 aastaks.
A13: Kasvuhoonegaasid, mille heitmeid otseselt mõjutatakse | B13: CH4, N2O
A14: Oodatav mõju 2025-2030 keskmine | B14: =AVERAGE(Meetmed!H72:M72) -> 3.766657518
A15: Programmi või meetme tüüp | B15: Majanuduslikud stiimulid (Economic)
A16: Hinnang sellele, mil määral poliitikasuund või meede aitab saavutada määruse (EL) 2021/1119 artikli 2 lõikes 1 sätestatud liidu kliimaneutraalsusees märki ja täita määruse (EL) 2018/1999 artiklis 15 osutatud pikaajalist strateegiat | B16: Panustab sektori kliimaeesmärkide saavutamisse, sest sõnniku ladestamisel lenduv metaan (ja muud KHGd) püütakse kinni ja seda saab kasutada eelkõige transpordis, aga ka fossiilse maagaasi asemel gaasivõrgus
A17: Programmi või meetme aluseks olevad Euroopa Liidu õigusaktid | B17: Recovery and Resielience Facility Rregulation
A18: Programmi või meetme rakendamise seis | B18: Rakendatud (Implemented)
A19: Programmi või meetme rakendamise periood | B19: 2023-2026
A20: Stsenaarium, mille juures programmi või meedet on arvestatud | B20: WEM
A21: Programmi või meetme rakendamise eest vastutavad isikute või asutuste tüüp | B21: riigi valitsus
A22: Programmi või meetme rakendamise eest vastutavad isikud või asutused | B22: Keskkonnainvensteeringute Keskus
A23: Viide analüüsidele või tehnilistele aruannetele | B23: https://www.rtk.ee/toetusfondid-ja-programmid/taaste-ja-vastupidavusrahastu-rrf/eesti-taastekava
A24: Kommentaar

Sheet JM1
A1: REKK peatükk | B1: 3.1.1.i
A2: Teised seonduvad REKK 2030 peatükid
A3: Poliitikasuuna või meetme number (PaM ID) | B3: 89
A4: Programmi või meetme number REKK2030 | B4: JM1
A5: Programmi või meetme nimetus | B5: Ladestatavate biolagunevate jäätmete koguse protsendiline piiramine ja jäätmematerjalide korduskasutusse ja ringlusse võtmise mahu suurendamine
A6: Programmi või meetme nimetus inglise keeles | B6: Limiting the percentage of biodegradable waste landfilled and increasing the reuse and recycling of waste materials.
A7: Lühike kirjeldus | B7: Meetme keskpunktiks on ringlusse võetavate olmejäätmete mahu suurendamine sealhulgas biolagunevate jäätmete osakaalu vähendamine ning välja töötada üleriigiline jäätmete kogumisvõrgustik koos tõhusama aruandluse infosüsteemiga. Järjekindel jäätmete ringlusse ja korduvkasutusse võtmise alaste suuniste andmine ning lihtne laienev jäätmekäitlussüsteem aitavad suurendada eraldi kogutavate jäätmete hulka ja vähendada bioloogiliselt lagunevate jäätmete osakaalu ladestatavas prügis. Riikliku biolagunevate jäätmete kogumise ja töötlemise võrgustiku loomine on eriti tähtis tahkete jäätmete ladestamisega kaasnevate KHG-de heitkoguste vähendamiseks.
A8: Seotud Euroopa Liidu energialiidu mõõtmed | B8: CO2 heite vähendamise mõõde
A9: Asjakohased eesmärgid, sihid või panused, millele poliitikasuund või meede kaasa aitab | B9: kasvuhoonegaaside heide ja nende sidumine – liikmesriigi siduv riiklik kasvuhoonegaaside heitega seotud eesmärk ja iga-aastased siduvad riiklikud piirnormid vastavalt määrusele (EL) 2018/842
A10: Mõjutatud sektorid | B10: jäätmekäitlus/jäätmed
A11: Eesmärk | B11: prügilasse ladestamise vähendamine (jäätmekäitlus/jäätmed); tõhusam ringlussevõtt (jäätmekäitlus/jäätmed)
A12: Kvantitatiivne eesmärk | B12: 2020-aastaks moodustavad biojäätmed ladestatavatest olmejäätmetest maksimaalselt 20%, 2035 aastaks tuleb ringlusse võtta 65% olmejäätmetest. Ladestatavate biolagunevate jäätmete maht väheneb igal aastal. (Liigiti kogutud biojäätmeid ei tohi prügilasse ladestada Jäätmeseaduse kohaselt juba praegu.)
A13: Kasvuhoonegaasid, mille heitmeid otseselt mõjutatakse | B13: CH4; N2O
A14: Planeeritud eelarve
A15: Oodatav mõju 2025-2030 keskmine | B15: NE
A16: Programmi või meetme tüüp | B16: Seadusandlus (Regulatory); Planeerimine (Planning)
A17: Hinnang sellele, mil määral poliitikasuund või meede aitab saavutada määruse (EL) 2021/1119 artikli 2 lõikes 1 sätestatud liidu kliimaneutraalsusees märki ja täita määruse (EL) 2018/1999 artiklis 15 osutatud pikaajalist strateegiat | B17: Aitab kaasa kasvuhoonegaaside vähendamisele, ringlussevõtu suurendamisele
A18: Programmi või meetme aluseks olevad Euroopa Liidu õigusaktid | B18: Waste Management Framework Directive
A19: Programmi või meetme rakendamise seis | B19: Rakendatud (Implemented)
A20: Programmi või meetme rakendamise periood | B20: 2014-2028 (riigi jäätmekava periood)
A21: Stsenaarium, mille juures programmi või meedet on arvestatud | B21: WEM
A22: Programmi või meetme rakendamise eest vastutavad isikute või asutuste tüüp | B22: riigi valitsus
A23: Programmi või meetme rakendamise eest vastutavad isikud või asutused | B23: Kliimaministeerium
A24: Viide analüüsidele või tehnilistele aruannetele | B24: Jäätmekava 2023-2028: https://kliimaministeerium.ee/jaatmekava
A25: Kommentaar

Sheet JM2
A1: REKK peatükk | B1: 3.1.1.i
A2: Teised seonduvad REKK 2030 peatükid
A3: Poliitikasuuna või meetme number (PaM ID) | B3: 92
A4: Programmi või meetme number REKK2030 | B4: JM2
A5: Programmi või meetme nimetus | B5: Ohutu materjaliringluse suurendamine
A6: Programmi või meetme nimetus inglise keeles | B6: Circular material use rate
A7: Lühike kirjeldus | B7: Erinevate materjalide ringlussevõtu ja sekundaarse toorme kasutamise suurendamiseks edendame säästvate tootmis- ja tarbimismudelite kasutuselevõttu. Ettevõtetes tuleb parandada ressursitõhusust, sealhulgas energiatõhusust, näiteks tööstussümbioosi, digitaliseerimise ja ressursitõhusamate tehnoloogiate toetamise kaudu. Jäätmemajandus korraldatakse ümber jäätmehierarhia alusel, suurendatakse materjalide ringlussevõtu ja jäätmete liigiti kogumist.
A8: Seotud Euroopa Liidu energialiidu mõõtmed | B8: CO2 heite vähendamise mõõde
A9: Asjakohased eesmärgid, sihid või panused, millele poliitikasuund või meede kaasa aitab | B9: kasvuhoonegaaside heide ja nende sidumine – liikmesriigi siduv riiklik kasvuhoonegaaside heitega seotud eesmärk ja iga-aastased siduvad riiklikud piirnormid vastavalt määrusele (EL) 2018/842
A10: Mõjutatud sektorid | B10: jäätmekäitlus/jäätmed
A11: Eesmärk | B11: Ringlussevõtu laiendamine, tõhusam prügilate haldamine, väiksem prügilates ladestatavate jäätmete hulk
A12: Kvantitatiivne eesmärk | B12: Ringleva materjali määr 2035. aastaks: 30%
A13: Kasvuhoonegaasid, mille heitmeid otseselt mõjutatakse | B13: CH4
A14: Planeeritud eelarve
A15: Oodatav mõju 2025-2030 keskmine | B15: NE
A16: Programmi või meetme tüüp | B16: Seadusandlus (Regulatory)
A17: Hinnang sellele, mil määral poliitikasuund või meede aitab saavutada määruse (EL) 2021/1119 artikli 2 lõikes 1 sätestatud liidu kliimaneutraalsusees märki ja täita määruse (EL) 2018/1999 artiklis 15 osutatud pikaajalist strateegiat
A18: Programmi või meetme aluseks olevad Euroopa Liidu õigusaktid | B18: Effort Sharing Regulation EU 2018/842 and implementing decision on ESR Annual Emission Allocations; Waste Management Framework Directive 2008/98/EC, amended by Directive 2018/851
A19: Programmi või meetme rakendamise seis | B19: Rakendatud (Implemented)
A20: Programmi või meetme rakendamise periood | B20: 2021-2035
A21: Stsenaarium, mille juures programmi või meedet on arvestatud | B21: WEM
A22: Programmi või meetme rakendamise eest vastutavad isikute või asutuste tüüp | B22: riigi valitsus
A23: Programmi või meetme rakendamise eest vastutavad isikud või asutused | B23: Kliimaministeerium
A24: Viide analüüsidele või tehnilistele aruannetele | B24: Eesti 2035 https://www.valitsus.ee/strateegia-eesti-2035-arengukavad-ja-planeering/strateegia
A25: Kommentaar

Sheet JM3
A1: REKK peatükk | B1: 3.1.1.i | E1: Küsimused/märkused
A2: Teised seonduvad REKK 2030 peatükid
A3: Poliitikasuuna või meetme number (PaM ID) | B3: 90
A4: Programmi või meetme number REKK2030 | B4: JM3
A5: Programmi või meetme nimetus | B5: Jäätmetekke ennetamise ja vähendamise propageerimine, sh jäätmete ohtlikkuse vähendamine
A6: Programmi või meetme nimetus inglise keeles | B6: Promotion of waste prevention and reduction, including the reduction of hazardous waste.
A7: Lühike kirjeldus | B7: Meetme üldeesmärk on parandada Eesti majanduse ressursitõhusust ja edendada jäätmetekke vältimist, et vähendada negatiivseid mõjusid keskkonnale ja inimeste tervisele. Riik toetab ettevõttete tootmisprotsesside ressursitõhusamaks muutmist, et väheneks jäätmeteket tootmisprotsessides. Lisaks toetatakse jäätmetekke vältimist informatsiooni levitamise teel. Meetme rakendamiseks kasutatakse mitmesuguseid algatusi, rakendatakse keskkonnajuhtimismeetmeid, viiakse läbi täiendavaid uuringuid, tehakse investeeringuid ning täiendatakse vajalikke õigusakte.
A8: Seotud Euroopa Liidu energialiidu mõõtmed | B8: CO2 heite vähendamise mõõde
A9: Asjakohased eesmärgid, sihid või panused, millele poliitikasuund või meede kaasa aitab | B9: kasvuhoonegaaside heide ja nende sidumine – liikmesriigi siduv riiklik kasvuhoonegaaside heitega seotud eesmärk ja iga-aastased siduvad riiklikud piirnormid vastavalt määrusele (EL) 2018/842
A10: Mõjutatud sektorid | B10: jäätmekäitlus/jäätmed
A11: Eesmärk | B11: tõhusam jäätmekäitlustehnoloogia (jäätmekäitlus/jäätmed); nõudluse juhtimine/vähendamine (jäätmekäitlus/jäätmed); tõhusam ringlussevõtt (jäätmekäitlus/jäätmed)
A12: Kvantitatiivne eesmärk | B12: Jäätmeteke inimese kohta (va põlevkivijäätmed) –algtase 4151 kg/in (2020), sihttase 4000 kg/in(2028) Korduskasutatava pakendi osakaal turule lastud pakenditest –algtase 0% (2020), sihttase 10% (2028) Olmejäätmete ringlussevõtt – algtase 29% (2020), sihttase 58% (2028) Pakendijäätmete ringlussevõtt–algtase 66% (2019), sihttase 70% (2028)
A13: Kasvuhoonegaasid, mille heitmeid otseselt mõjutatakse | B13: CH4, N2O
A14: Planeeritud eelarve
A15: Oodatav mõju 2025-2030 keskmine | B15: NE
A16: Programmi või meetme tüüp | B16: Seadusandlus (Regulatory); Teavitamine (Information)
A17: Hinnang sellele, mil määral poliitikasuund või meede aitab saavutada määruse (EL) 2021/1119 artikli 2 lõikes 1 sätestatud liidu kliimaneutraalsusees märki ja täita määruse (EL) 2018/1999 artiklis 15 osutatud pikaajalist strateegiat | B17: Jäätmetekke vältimine tähendab muuhulgas kvaliteetsemate ja pikaealisemate toodete osakaalu suurenemist. Selle arvelt väheneb uute toodete tootmine ja käitlemine eluea lõpus, sh ka tootmise ja käitlemisega seotud KHG-de teke.
A18: Programmi või meetme aluseks olevad Euroopa Liidu õigusaktid | B18: Waste Management Framework Directive
A19: Programmi või meetme rakendamise seis | B19: Rakendatud (Implemented)
A20: Programmi või meetme rakendamise periood | B20: 2014-2028 (riigi jäätmekava periood)
A21: Stsenaarium, mille juures programmi või meedet on arvestatud | B21: WEM
A22: Programmi või meetme rakendamise eest vastutavad isikute või asutuste tüüp | B22: riigi valitsus
A23: Programmi või meetme rakendamise eest vastutavad isikud või asutused | B23: Kliimaministeerium
A24: Viide analüüsidele või tehnilistele aruannetele | B24: Jäätmekava 2023-2028: https://kliimaministeerium.ee/jaatmekava
A25: Kommentaar

Sheet JM4
A1: REKK peatükk | B1: 3.1.1.i
A2: Teised seonduvad REKK 2030 peatükid
A3: Poliitikasuuna või meetme number (PaM ID) | B3: 91
A4: Programmi või meetme number REKK2030 | B4: JM4
A5: Programmi või meetme nimetus | B5: Jäätmetest tingitud keskkonnaohtude vähendamine, seire ja järelvalve tõhustamine
A6: Programmi või meetme nimetus inglise keeles | B6: Reducing environmental risks arising from waste, improvement of monitoring and supervision
A7: Lühike kirjeldus | B7: Meetme üldine eesmärk on täiendada ohtlike jäätmete käitlemiseks kasutatavate meetodite valikut ning vähendada jäätmete ladestamisega kaasnevaid keskkonnariske. Suletud prügilaid tuleb nõuete kohaselt korrastada. Järelevalve tugevdamine jäätmekäitluse üle aitab vähendada ebaseaduslikku jäätmete ladestamist.
A8: Seotud Euroopa Liidu energialiidu mõõtmed | B8: CO2 heite vähendamise mõõde
A9: Asjakohased eesmärgid, sihid või panused, millele poliitikasuund või meede kaasa aitab | B9: kasvuhoonegaaside heide ja nende sidumine – liikmesriigi siduv riiklik kasvuhoonegaaside heitega seotud eesmärk ja iga-aastased siduvad riiklikud piirnormid vastavalt määrusele (EL) 2018/842
A10: Mõjutatud sektorid | B10: jäätmekäitlus/jäätmed
A11: Eesmärk | B11: tõhusam jäätmekäitlustehnoloogia (jäätmekäitlus/jäätmed); prügilate tõhusam haldamine (jäätmekäitlus/jäätmed)
A12: Kvantitatiivne eesmärk | B12: Hinnatakse Riigi jäätmekava III eesmärgi alaeesmärkide täitmist ja mõõdikute täitmist, eelkõige võiksid panustada III eesmärgi täitmisesse mõõdikud 7. Ohtlike jäätmete taaskasutus – algtase 48% (2020), sihttase 55% (2028) 8. Elektri ja elektroonikajäätmete kogumise määr - algtase 64% (2019), sihttase 85% (2028) 9. Patarei- ja akujäätmete kogumise määr - algtase 29% (2019) , sihttase 65% (2028)
A13: Kasvuhoonegaasid, mille heitmeid otseselt mõjutatakse | B13: CH4
A14: Oodatav mõju 2025-2030 keskmine | B14: NE
A15: Programmi või meetme tüüp | B15: Teavitamine (Information)
A16: Hinnang sellele, mil määral poliitikasuund või meede aitab saavutada määruse (EL) 2021/1119 artikli 2 lõikes 1 sätestatud liidu kliimaneutraalsusees märki ja täita määruse (EL) 2018/1999 artiklis 15 osutatud pikaajalist strateegiat | B16: Tõhus järelevalve aitab vähendada ebaseaduslikke jäätmekäitlusalaseid tegevusi, mis omakorda aitab kaasa ka kasvuhoonegaaside vähendamisele
A17: Programmi või meetme aluseks olevad Euroopa Liidu õigusaktid | B17: Waste Management Framework Directive
A18: Programmi või meetme rakendamise seis | B18: Rakendatud (Implemented)
A19: Programmi või meetme rakendamise periood | B19: 2014-
A20: Stsenaarium, mille juures programmi või meedet on arvestatud | B20: WEM
A21: Programmi või meetme rakendamise eest vastutavad isikute või asutuste tüüp | B21: riigi valitsus
A22: Programmi või meetme rakendamise eest vastutavad isikud või asutused | B22: Kliimaministeerium
A23: Viide analüüsidele või tehnilistele aruannetele | B23: Jäätmekava 2023-2028: https://kliimaministeerium.ee/jaatmekava
A24: Kommentaar

Sheet JM5
A1: REKK peatükk | B1: 3.1.1.i
A2: Teised seonduvad REKK 2030 peatükid
A3: Poliitikasuuna või meetme number (PaM ID) | B3: 133
A4: Programmi või meetme number REKK2030 | B4: JM5
A5: Programmi või meetme nimetus | B5: Toidujäätmete tekke vähendamine
A6: Programmi või meetme nimetus inglise keeles | B6: Reduction of food waste
A7: Lühike kirjeldus | B7: Eesti toidujäätmete tekke vältimise kava esmärk on vähendada toidujäätmete ja toidukao teket kogu toidu tarnimise ahelas ehk esmatootmises, toidu töötlemisel ja valmistamisel, toidu jae- ja hulgimüügi ja muul viisil tarnimise käigus, samuti toitlustamisel ning kodumajapidamistes. See tagab kokkuhoiu loodusressurssidelt, majanduslikelt ressurssidelt ja sotsiaalsüsteemi koormamiselt.
A8: Seotud Euroopa Liidu energialiidu mõõtmed | B8: CO2 heite vähendamise mõõde
A9: Asjakohased eesmärgid, sihid või panused, millele poliitikasuund või meede kaasa aitab | B9: kasvuhoonegaaside heide ja nende sidumine – liikmesriigi siduv riiklik kasvuhoonegaaside heitega seotud eesmärk ja iga-aastased siduvad riiklikud piirnormid vastavalt määrusele (EL) 2018/842
A10: Mõjutatud sektorid | B10: jäätmekäitlus/jäätmed
A11: Eesmärk | B11: nõudluse juhtimine/vähendamine (jäätmekäitlus/jäätmed)
A12: Kvantitatiivne eesmärk | B12: Lähtuvalt ÜRO kestliku arengu eesmärgile 12.3 tuleb vähendada 2030. aastaks jaekaubanduse ja tarbijate tekitatud toidujäätmeid 50% elaniku kohta. Vähendada toidu kadu tootmis- ja tarneahelas, kaasa arvatud saagikoristusjärgsed kaod. Selleks, et EL liikmesriigid liiguksid eelpool nimetatud eesmärgi poole, esitas EL komisjon 5.juuli 2023 ettepaneku jäätmete raamdirektiivi muudatsuteks, kus muu hulgas on tehtud konkreetne ettepanek toidujäätmete tekke koguste vähendamiseks. Ettepanek vähendada aastaks 2030 toidujäätmete teket toidutööstuses ja - tootmises 10% võrreldes 2020 aastal tekkinud kogustega ning toitlustuses, jaekaubanduses ning kaubanduses 30% inimese kohta.
A13: Kasvuhoonegaasid, mille heitmeid otseselt mõjutatakse | B13: CH4, N2O
A14: Oodatav mõju 2025-2030 keskmine | B14: NE
A15: Programmi või meetme tüüp | B15: Seadusandlus (Regulatory)
A16: Hinnang sellele, mil määral poliitikasuund või meede aitab saavutada määruse (EL) 2021/1119 artikli 2 lõikes 1 sätestatud liidu kliimaneutraalsusees märki ja täita määruse (EL) 2018/1999 artiklis 15 osutatud pikaajalist strateegiat | B16: This measure contributes to the political guidelines for the economy as a whole set in the General Principles of Climate Policy until 2050. https://kliimaministeerium.ee/sites/default/files/documents/2023-03/310022023003%20%281%29.pdfToidujäätmete tekke vähendamine aitab vähendada KHG heitkoguse vähendamisele EL-is eelduslikult kuni 16,5-62 miljoni tonni võrra.
A17: Programmi või meetme aluseks olevad Euroopa Liidu õigusaktid | B17: Waste Management Framework Directive
A18: Programmi või meetme rakendamise seis | B18: Rakendatud (Implemented)
A19: Programmi või meetme rakendamise periood | B19: 2021-
A20: Stsenaarium, mille juures programmi või meedet on arvestatud | B20: WEM
A21: Programmi või meetme rakendamise eest vastutavad isikute või asutuste tüüp | B21: riigi valitsus
A22: Programmi või meetme rakendamise eest vastutavad isikud või asutused | B22: Kliimaministeerium
A23: Viide analüüsidele või tehnilistele aruannetele | B23: Toidujäätmete tekke vältimise kava: https://kliimaministeerium.ee/elukeskkond-ringmajandus/jaatmed/toidujaatmed
A24: Kommentaar

Sheet MM1
A1: REKK peatükk | B1: 3.1.1.i
A2: Teised seonduvad REKK 2030 peatükid
A3: Poliitikasuuna või meetme number (PaM ID) | B3: 96
A4: Programmi või meetme number REKK2030 | B4: MM1
A5: Programmi või meetme nimetus | B5: Väljaspool Natura 2000 võrgustiku ala asuvate erametsaalade looduskaitseliste piirangute hüvitamine
A6: Programmi või meetme nimetus inglise keeles | B6: Compensation for nature conservation restrictions on private forest areas outside the Natura 2000 network
A7: Lühike kirjeldus | B7: Toetusi makstakse erametsaomanikele väljaspool Natura 2000 alasid piiranguvööndis, hoiualadel ja aladel, kus on algatatud kaitsemenetlus. Metsamaal asuvad kaitsealad aitavad säilitada metsa süsinikuvaru. Subsidies are paid to owners of private forests outside Natura 2000 areas in limited management zones, limited-conservation areas and in areas where protection proceedings have been initiated. Protected areas on forest land help to preserve the forest carbon stock.
A8: Seotud Euroopa Liidu energialiidu mõõtmed | B8: CO2 heite vähendamise mõõde
A9: Asjakohased eesmärgid, sihid või panused, millele poliitikasuund või meede kaasa aitab | B9: liikmesriigi kohustused vastavalt määrusele (EL) 2018/841
A10: Mõjutatud sektorid | B10: LULUCF
A11: Eesmärk | B11: süsiniku säilitamine olemasolevates metsades (LULUCF)
A12: Kvantitatiivne eesmärk | B12: NA
A13: Kasvuhoonegaasid, mille heitmeid otseselt mõjutatakse | B13: CO2; CH4; N2O
A14: Planeeritud eelarve
A15: Oodatav mõju 2025-2030 keskmine | B15: NE
A16: Programmi või meetme tüüp | B16: Majanduslikud stiimulid (Economic)
A17: Hinnang sellele, mil määral poliitikasuund või meede aitab saavutada määruse (EL) 2021/1119 artikli 2 lõikes 1 sätestatud liidu kliimaneutraalsusees märki ja täita määruse (EL) 2018/1999 artiklis 15 osutatud pikaajalist strateegiat | B17: The measure contributes to the following policy guidline of the General Principles of Climate Policy until 2050: Preservation of the current area under forest land will be facilitated, and in other categories of land use, techniques of increasing carbon sequestration and reducing emissions will be preferred. Trends in the land use sector will be monitored and considered in planning. https://envir.ee/kliimapoliitika-pohialused-aastani-2050
A18: Programmi või meetme aluseks olevad Euroopa Liidu õigusaktid | B18: New EU Forest Strategy (COM(2013)659); New EU Forest Strategy for 2030 (COM(2021) 572)
A19: Programmi või meetme rakendamise seis | B19: Rakendatud (Implemented)
A20: Programmi või meetme rakendamise periood | B20: 2022-
A21: Stsenaarium, mille juures programmi või meedet on arvestatud | B21: WEM
A22: Programmi või meetme rakendamise eest vastutavad isikute või asutuste tüüp | B22: riigi valitsus
A23: Programmi või meetme rakendamise eest vastutavad isikud või asutused | B23: Kliimaministeerium
A24: Viide analüüsidele või tehnilistele aruannetele | B24: https://kliimaministeerium.ee/sites/default/files/documents/2024-02/Keskkonnakaitse%20ja%20-kasutuse%20programm%202024-2027.pdf https://www.riigiteataja.ee/akt/106012017005?leiaKehtiv
A25: Kommentaar

Sheet MM2
A1: REKK peatükk | B1: 3.1.1.i
A2: Teised seonduvad REKK 2030 peatükid
A3: Poliitikasuuna või meetme number (PaM ID) | B3: 95
A4: Programmi või meetme number REKK2030 | B4: MM2
A5: Programmi või meetme nimetus | B5: Erametsade uuendamine võimalikult heade pärilike omaduste ja kasvukohale sobivamate kodumaiste puuliikidega
A6: Programmi või meetme nimetus inglise keeles | B6: Supporting the reforestation in private forests with native tree species of best possible hereditary characteristics suitable for the site
A7: Lühike kirjeldus | B7: Meetme eesmärgiks on toetada metsade õigeaegse uuenemisega seotud tegevusi, et parandada metsaressursi kvaliteeti ja tagada metsamaa tootmispotentsiaali tõhus kasutamine. Meetmel on positiivne mõju uue metsapõlve kasvule, mis aitab suurendada süsiniku sidumist. The overall objective of the measure is to support activities related to the timely regeneration of forests in order to improve the quality of forest resources and ensure the efficient use of forest land production potential. The measure has a positive effect on the growth of a new forest which helps to increase carbon uptake.
A8: Seotud Euroopa Liidu energialiidu mõõtmed | B8: CO2 heite vähendamise mõõde
A9: Asjakohased eesmärgid, sihid või panused, millele poliitikasuund või meede kaasa aitab | B9: liikmesriigi kohustused vastavalt määrusele (EL) 2018/841
A10: Mõjutatud sektorid | B10: LULUCF
A11: Eesmärk | B11: olemasolevate metsade tootmisvõime suurendamine (LULUCF) ; metsade tõhusam majandamine (LULUCF); tugevam kaitse looduslike häiringute eest (LULUCF)
A12: Kvantitatiivne eesmärk | B12: NA
A13: Kasvuhoonegaasid, mille heitmeid otseselt mõjutatakse | B13: CO2
A14: Oodatav mõju | B14: NE
A15: Programmi või meetme tüüp | B15: Majanduslikud stiimulid (Economic)
A16: Hinnang sellele, mil määral poliitikasuund või meede aitab saavutada määruse (EL) 2021/1119 artikli 2 lõikes 1 sätestatud liidu kliimaneutraalsusees märki ja täita määruse (EL) 2018/1999 artiklis 15 osutatud pikaajalist strateegiat | B16: The measure contributes to the following policy guidline of the General Principles of Climate Policy until 2050: Forest growth and the carbon sequestration ability will be increased through productive and sustainable forest management, and the carbon stock of forests will be maintained in the longer perspective. The productivity of managed forest land will be mainly increased through improvement cutting, timely cutting of forest stands and fast renewal of forests with tree species appropriate for the habitat type. Flexible rotation ages considering the growth potential of forest stands will be implemented in managed forests, and the principles of sustainable forestry and the maintenance of biodiversity will be taken into account. https://envir.ee/kliimapoliitika-pohialused-aastani-2050
A17: Programmi või meetme aluseks olevad Euroopa Liidu õigusaktid | B17: New EU Forest Strategy (COM(2013)659); New EU Forest Strategy for 2030 (COM(2021) 572)
A18: Programmi või meetme rakendamise seis | B18: Rakendatud (Implemented)
A19: Programmi või meetme rakendamise periood | B19: 2012-
A20: Stsenaarium, mille juures programmi või meedet on arvestatud | B20: WEM
A21: Programmi või meetme rakendamise eest vastutavad isikute või asutuste tüüp | B21: riigi valitsus
A22: Programmi või meetme rakendamise eest vastutavad isikud või asutused | B22: Kliimaministeerium
A23: Viide analüüsidele või tehnilistele aruannetele | B23: https://kliimaministeerium.ee/sites/default/files/documents/2024-02/Keskkonnakaitse%20ja%20-kasutuse%20programm%202024-2027.pdf https://envir.ee/elusloodus-looduskaitse/metsandus/metsanduse-arengukava-2011-2020 https://www.riigiteataja.ee/akt/106012017005?leiaKehtiv
A24: Kommentaar

Sheet MM3
A1: REKK peatükk | B1: 3.1.1.i
A2: Teised seonduvad REKK 2030 peatükid
A3: Poliitikasuuna või meetme number (PaM ID) | B3: 97
A4: Programmi või meetme number REKK2030 | B4: MM3
A5: Programmi või meetme nimetus | B5: Elurikkuse kaitse tagamine
A6: Programmi või meetme nimetus inglise keeles | B6: Ensuring the protection of biodiversity
A7: Lühike kirjeldus | B7: Meetme eesmärk on tagada liikide ja elupaikade soodne seisund ning maastike mitmekesisus, et elupaigad toimiksid ühtse ökoloogilise võrgustikuna ja elurikkuse poolt pakutavad ökosüsteemiteenused oleksid jätkusuutlikud. Meede hõlmab ka elupaikade (soode, pärandniitude) taastamist, et saavutada nende soodne seisund. The objective of the measure is to ensure favourable condition of species and habitats, and the diversity of landscape so that the habitats function as a single ecological network and the ecosystem services provided by biodiversity are sustainable. The measure also includes restoration of habitats (mires, semi-natural communities) to achieve their favourable status.
A8: Seotud Euroopa Liidu energialiidu mõõtmed | B8: CO2 heite vähendamise mõõde
A9: Asjakohased eesmärgid, sihid või panused, millele poliitikasuund või meede kaasa aitab | B9: liikmesriigi kohustused vastavalt määrusele (EL) 2018/841
A10: Mõjutatud sektorid | B10: LULUCF
A11: Eesmärk | B11: sookuivendamise ärahoidmine või taassoostamine (LULUCF); degradeerunud maa taastamine; muu LULUCFi sektoriga seotud eesmärk (LULUCF); tugevam kaitse looduslike häiringute eest (LULUCF)
A12: Kvantitatiivne eesmärk | B12: Eesmärgid aastaks 2027: taastatavate elupaikade pindala aastas 4 000 ha; kaitstavate alade pindala osakaal maismaast vähemalt 20.6%; rangelt kaitstavate metsade osakaal vähemalt 10%; asjakohaste kaitsekorralduskavadega kaetud Natura loodusalade osakaal vähemalt 86% pindalast.
A13: Kasvuhoonegaasid, mille heitmeid otseselt mõjutatakse | B13: CO2; CH4; N2O
A14: Oodatav mõju 2025-2030 keskmine | B14: NE
A15: Programmi või meetme tüüp | B15: Majanduslikud stiimulid (Economic); Teavitamine (Information); Seadusandlus (Regulatory); Teadusuuringud (Research)
A16: Hinnang sellele, mil määral poliitikasuund või meede aitab saavutada määruse (EL) 2021/1119 artikli 2 lõikes 1 sätestatud liidu kliimaneutraalsusees märki ja täita määruse (EL) 2018/1999 artiklis 15 osutatud pikaajalist strateegiat | B16: The measure contributes to the following targets in General Principles of Climate Policy until 2050: 1) efficient and ecological use of agricultural land will be encouraged while the falling out of agricultural use of such land will be avoided. The production potential of agricultural land and the area of cropland with valuable soil will be maintained. Eco-friendly and climate-friendly cultivation styles and practices and efficient agricultural technologies and practices will be implemented for ensuring and increasing the fertility and biodiversity of agricultural land; 2) the soil’s carbon stock will be increased and maintained, and land areas of significant carbon stock will be developed and maintained; 3) further drainage of mires will be avoided and near-natural water regimes will be restored in drained peat lands, if possible, or the further degradation of such areas will be avoided. https://envir.ee/kliimapoliitika-pohialused-aastani-2050
A17: Programmi või meetme aluseks olevad Euroopa Liidu õigusaktid | B17: Water Framework Directive; European Structural and Investment Funds; Council Directive 92/43/EEC of 21 May 1992 on the conservation of natural habitats and of wild fauna and flora;
A18: Programmi või meetme rakendamise seis | B18: Rakendatud (Implemented)
A19: Programmi või meetme rakendamise periood | B19: 2020-
A20: Stsenaarium, mille juures programmi või meedet on arvestatud | B20: WEM
A21: Programmi või meetme rakendamise eest vastutavad isikute või asutuste tüüp | B21: riigi valitsus
A22: Programmi või meetme rakendamise eest vastutavad isikud või asutused | B22: Kliimaministeerium
A23: Viide analüüsidele või tehnilistele aruannetele | B23: https://envir.ee/media/5809/download https://keskkonnaamet.ee/en/media/5321/download https://envir.ee/media/1755/download
A24: Kommentaar

Sheet MM4
A1: REKK peatükk | B1: 3.1.1.i
A2: Teised seonduvad REKK 2030 peatükid
A3: Poliitikasuuna või meetme number (PaM ID) | B3: 93
A4: Programmi või meetme number REKK2030 | B4: MM4
A5: Programmi või meetme nimetus | B5: Fossiilsete kütuste ja mittetaastuvate loodusvarade kasutamisega seotud keskkonnamõjude vähendamine Eesti puidutootmise ja -kasutamise suurendamise läbi
A6: Programmi või meetme nimetus inglise keeles | B6: Reduction of environmental impacts related to the use of fossil fuels and non-renewable natural resources by increasing the Estonian timber production and use
A7: Lühike kirjeldus | B7: Meede aitab vähendada fossiilkütuste kasutamisest tulenevaid kasvuhoonegaaside heitkoguseid ja talletada puittoodetes süsinikku. Konkreetsed tegevused hõlmavad teabekampaaniaid, et edendada puidukasutust, ning puidu kasutamise ergutamine roheliste riigihangete kaudu (avalikes ehitistes, energeetikas jm). Planeeritud on puidust referentshoone rajamine eesmärgiga luua suurte puitehitiste ehitamise kogemus ja suurendada sellega Eesti puidusektori ekspordipotentsiaali ning edendada kohaliku tooraine väärindamist. The measure helps to reduce GHG emissions of fossil fuels and deposit carbon in harvested wood products. Specific activities include information campaigns to promote the use of wood and encouraging the use of wood through green public procurement (public buildings, energy, etc.). The construction of a wooden reference building is planned with the aim of creating experience in the construction of large wooden buildings and thereby increasing the export potential of the Estonian wood sector and promoting the valorization of local raw materials.
A8: Seotud Euroopa Liidu energialiidu mõõtmed | B8: CO2 heite vähendamise mõõde
A9: Asjakohased eesmärgid, sihid või panused, millele poliitikasuund või meede kaasa aitab | B9: liikmesriigi kohustused vastavalt määrusele (EL) 2018/841
A10: Mõjutatud sektorid | B10: LULUCF
A11: Eesmärk | B11: puittoodete süsiniku talletaja suurendamine (LULUCF); suure kasvuhoonegaaside heitemahukusega lähteainete ja materjalide asendamine puittoodetega (LULUCF)
A12: Kvantitatiivne eesmärk | B12: NA
A13: Kasvuhoonegaasid, mille heitmeid otseselt mõjutatakse | B13: CO2
A14: Oodatav mõju 2025-2030 keskmine | B14: NE
A15: Programmi või meetme tüüp | B15: Majanduslikud stiimulid (Economic); Teavitamine (Information)
A16: Hinnang sellele, mil määral poliitikasuund või meede aitab saavutada määruse (EL) 2021/1119 artikli 2 lõikes 1 sätestatud liidu kliimaneutraalsusees märki ja täita määruse (EL) 2018/1999 artiklis 15 osutatud pikaajalist strateegiat | B16: The measure contributes to the following policy guidline of the General Principles of Climate Policy until 2050: Timber use will be consistently enhanced and the carbon stock in timber products and buildings will be increased, thus replacing the use of non-renewable natural resources. The use and production of domestic timber will be developed, e.g., the use of timber in construction will be increased. https://envir.ee/kliimapoliitika-pohialused-aastani-2050
A17: Programmi või meetme aluseks olevad Euroopa Liidu õigusaktid | B17: New EU Forest Strategy (COM(2013)659); New EU Forest Strategy for 2030 (COM(2021) 572)
A18: Programmi või meetme rakendamise seis | B18: Rakendatud (Implemented)
A19: Programmi või meetme rakendamise periood | B19: 2012-
A20: Stsenaarium, mille juures programmi või meedet on arvestatud | B20: WEM
A21: Programmi või meetme rakendamise eest vastutavad isikute või asutuste tüüp | B21: riigi valitsus
A22: Programmi või meetme rakendamise eest vastutavad isikud või asutused | B22: Kliimaministeerium
A23: Viide analüüsidele või tehnilistele aruannetele | B23: https://kliimaministeerium.ee/sites/default/files/documents/2024-02/Keskkonnakaitse%20ja%20-kasutuse%20programm%202024-2027.pdf https://envir.ee/elusloodus-looduskaitse/metsandus/metsanduse-arengukava-2011-2020
A24: Kommentaar

Sheet MM5
A1: REKK peatükk | B1: 3.1.1.i
A2: Teised seonduvad REKK 2030 peatükid
A3: Poliitikasuuna või meetme number (PaM ID) | B3: 94
A4: Programmi või meetme number REKK2030 | B4: MM5
A5: Programmi või meetme nimetus | B5: Elurikkuse soodustamine Natura 2000 erametsades
A6: Programmi või meetme nimetus inglise keeles | B6: Promoting biodiversity in Natura 2000 private forests
A7: Lühike kirjeldus | B7: Toetus suunatakse erametsamaale, mis paikneb Natura 2000 võrgustiku alal ning sihtkaitsevööndis väljapool Natura 2000 ala. Keskkonnakaitseliste eesmärkide ning bioloogilise ja maastikulise mitmekesisuse säilitamise tagamiseks tuleb erametsaomanikul osaliselt või täielikult loobuda raietest või muudest tulutoovatest tegevustest metsas vastavalt kaitsekorrale. The measure aims to maintain biological and landscape diversity in Natura 2000 areas and outside the Natura 2000 protected areas in the conservation zone, covered with forests. In order to ensure the preservation of environmental protection goals and biological and landscape diversity, the private forest owner must partially or completely stop fellings or other profitable activities in the forest in accordance with the protection order.
A8: Seotud Euroopa Liidu energialiidu mõõtmed | B8: CO2 heite vähendamise mõõde
A9: Asjakohased eesmärgid, sihid või panused, millele poliitikasuund või meede kaasa aitab | B9: liikmesriigi kohustused vastavalt määrusele (EL) 2018/841
A10: Mõjutatud sektorid | B10: LULUCF
A11: Eesmärk | B11: süsiniku säilitamine olemasolevates metsades (LULUCF)
A12: Kvantitatiivne eesmärk | B12: Natura 2000 või direktiivi 2000/60/EÜ alusel toetust saavate hektarite arv - 339 084 ha (2024 - 2028 kokku)
A13: Kasvuhoonegaasid, mille heitmeid otseselt mõjutatakse | B13: CO2; CH4; N2O
A14: Oodatav mõju 2025-2030 keskmine | B14: NE
A15: Programmi või meetme tüüp | B15: Majanduslikud stiimulid (Economic)
A16: Hinnang sellele, mil määral poliitikasuund või meede aitab saavutada määruse (EL) 2021/1119 artikli 2 lõikes 1 sätestatud liidu kliimaneutraalsusees märki ja täita määruse (EL) 2018/1999 artiklis 15 osutatud pikaajalist strateegiat | B16: The measure contributes to the following policy guidline of the General Principles of Climate Policy until 2050: Preservation of the current area under forest land will be facilitated, and in other categories of land use, techniques of increasing carbon sequestration and reducing emissions will be preferred. Trends in the land use sector will be monitored and considered in planning. https://envir.ee/kliimapoliitika-pohialused-aastani-2050
A17: Programmi või meetme aluseks olevad Euroopa Liidu õigusaktid | B17: Common Agricultural Policy; Water Framework Directive; Directive 2009/147/EC of the European Parliament and of the Council of 30 November 2009 on the conservation of wild birds; Council Directive 92/43/EEC of 21 May 1992 on the conservation of natural habitats and of wild fauna and flora
A18: Programmi või meetme rakendamise seis | B18: Rakendatud (Implemented)
A19: Programmi või meetme rakendamise periood | B19: 2023-2027
A20: Stsenaarium, mille juures programmi või meedet on arvestatud | B20: WEM
A21: Programmi või meetme rakendamise eest vastutavad isikute või asutuste tüüp | B21: riigi valitsus
A22: Programmi või meetme rakendamise eest vastutavad isikud või asutused | B22: Regionaal- ja Põllumajandusministeerium
A23: Viide analüüsidele või tehnilistele aruannetele | B23: https://www.agri.ee/euroopa-liidu-uhise-pollumajanduspoliitika-strateegiakava-2023-2027
A24: Kommentaar

Sheet MM6
A1: REKK peatükk | B1: 3.1.1.i
A2: Teised seonduvad REKK 2030 peatükid
A3: Poliitikasuuna või meetme number (PaM ID) | B3: 98
A4: Programmi või meetme number REKK2030 | B4: MM6
A5: Programmi või meetme nimetus | B5: Investeeringud metsa kliimamuutustega kohanemiseks
A6: Programmi või meetme nimetus inglise keeles | B6: Investments to support forest adaptation to climate change
A7: Lühike kirjeldus | B7: Metsainvesteeringud aitavad kaasa kliimamuutuste leevendamisele ja nendega kohanemisele, sest heas tervislikus seisundis mets seob rohkem süsinikku. Toetatakse hooldusraiet kuni 30 aasta vanustes puistutes ja aidatakse teha investeeringuid kodumaise taimlaemajanduse arendamiseks. Meetmega toetatakse ka tulekahju, kahjurite ja tormi põhjustatud kahjude ennetamist ja kõrvaldamist. Forest investments contribute to mitigating and adapting to climate change, as a growing forest, in particular, accumulates carbon. Maintenance felling in stands up to 30 years old is supported and investments are made for the development of nurseries. The measure also provides support for preventing and eliminating damage caused by fire, pests and storms.
A8: Seotud Euroopa Liidu energialiidu mõõtmed | B8: CO2 heite vähendamise mõõde
A9: Asjakohased eesmärgid, sihid või panused, millele poliitikasuund või meede kaasa aitab | B9: liikmesriigi kohustused vastavalt määrusele (EL) 2018/841
A10: Mõjutatud sektorid | B10: LULUCF
A11: Eesmärk | B11: süsiniku säilitamine olemasolevates metsades (LULUCF) ; olemasolevate metsade tootmisvõime suurendamine (LULUCF) ; metsade tõhusam majandamine (LULUCF); tugevam kaitse looduslike häiringute eest (LULUCF)
A12: Kvantitatiivne eesmärk | B12: Väljaspool põllumajandusettevõtet tootlikeks investeeringuteks toetust saavate tegevuste või ühikute arv - 1 724 ( 2024 - 2028 kokku); Väljaspool põllumajandusettevõtet mittetootlikeks investeeringuteks toetust saavate tegevuste või ühikute arv - 125 ( 2024 - 2028 kokku)
A13: Kasvuhoonegaasid, mille heitmeid otseselt mõjutatakse | B13: CO2; CH4; N2O
A14: Oodatav mõju 2025-2030 keskmine | B14: NE
A15: Programmi või meetme tüüp | B15: Majanduslikud stiimulid (Economic)
A16: Hinnang sellele, mil määral poliitikasuund või meede aitab saavutada määruse (EL) 2021/1119 artikli 2 lõikes 1 sätestatud liidu kliimaneutraalsusees märki ja täita määruse (EL) 2018/1999 artiklis 15 osutatud pikaajalist strateegiat | B16: The measure contributes to the following policy guidline of the General Principles of Climate Policy until 2050: Forest growth and the carbon sequestration ability will be increased through productive and sustainable forest management, and the carbon stock of forests will be maintained in the longer perspective. The productivity of managed forest land will be mainly increased through improvement cutting, timely cutting of forest stands and fast renewal of forests with tree species appropriate for the habitat type. Flexible rotation ages considering the growth potential of forest stands will be implemented in managed forests, and the principles of sustainable forestry and the maintenance of biodiversity will be taken into account. https://envir.ee/kliimapoliitika-pohialused-aastani-2050
A17: Programmi või meetme aluseks olevad Euroopa Liidu õigusaktid | B17: Common Agricultural Policy
A18: Programmi või meetme rakendamise seis | B18: Rakendatud (Implemented)
A19: Programmi või meetme rakendamise periood | B19: 2023-2027
A20: Stsenaarium, mille juures programmi või meedet on arvestatud | B20: WEM
A21: Programmi või meetme rakendamise eest vastutavad isikute või asutuste tüüp | B21: riigi valitsus
A22: Programmi või meetme rakendamise eest vastutavad isikud või asutused | B22: Regionaal- ja Põllumajandusministeerium
A23: Viide analüüsidele või tehnilistele aruannetele | B23: https://www.agri.ee/euroopa-liidu-uhise-pollumajanduspoliitika-strateegiakava-2023-2027
A24: Kommentaar

Sheet MM7
A1: REKK peatükk | B1: 3.1.1.i | E1: Küsimused/märkused
A2: Teised seonduvad REKK 2030 peatükid
A3: Poliitikasuuna või meetme number (PaM ID) | B3: 99
A4: Programmi või meetme number REKK2030 | B4: MM7
A5: Programmi või meetme nimetus | B5: Vääriselupaikade kaitse
A6: Programmi või meetme nimetus inglise keeles | B6: Protection of woodland key habitats
A7: Lühike kirjeldus | B7: Riigimetsades korraldab vääriselupaikade kaitset Riigimetsa Majandamise Keskus. Erametsaomanikud saavad sõlmida 20 aastaks lepingu vääriselupaiga kaitseks. Meede hõlmab ka vääriselupaikade inventuuri. In state forests, the conservation of woodland key habitats is organised by the State Forest Service. Private forest owners may conclude a contract for the protection of a key habitat for 20 years. The measure also includes inventory of key habitats.
A8: Seotud Euroopa Liidu energialiidu mõõtmed | B8: CO2 heite vähendamise mõõde
A9: Asjakohased eesmärgid, sihid või panused, millele poliitikasuund või meede kaasa aitab | B9: liikmesriigi kohustused vastavalt määrusele (EL) 2018/841
A10: Mõjutatud sektorid | B10: LULUCF
A11: Eesmärk | B11: süsiniku säilitamine olemasolevates metsades (LULUCF)
A12: Kvantitatiivne eesmärk | B12: NA
A13: Kasvuhoonegaasid, mille heitmeid otseselt mõjutatakse | B13: CO2; CH4; N2O
A14: Oodatav mõju 2025-2030 keskmine | B14: NE
A15: Programmi või meetme tüüp | B15: Majanduslikud stiimulid (Economic); Seadusandlus (Regulatory); Vabatahtlikud/läbiräägitud kokkulepped (Voluntary)
A16: Hinnang sellele, mil määral poliitikasuund või meede aitab saavutada määruse (EL) 2021/1119 artikli 2 lõikes 1 sätestatud liidu kliimaneutraalsusees märki ja täita määruse (EL) 2018/1999 artiklis 15 osutatud pikaajalist strateegiat | B16: The measure contributes to the following policy guidline of the General Principles of Climate Policy until 2050: Preservation of the current area under forest land will be facilitated, and in other categories of land use, techniques of increasing carbon sequestration and reducing emissions will be preferred. Trends in the land use sector will be monitored and considered in planning. https://envir.ee/kliimapoliitika-pohialused-aastani-2050
A17: Programmi või meetme aluseks olevad Euroopa Liidu õigusaktid | B17: New EU Forest Strategy (COM(2013)659); New EU Forest Strategy for 2030 (COM(2021) 572)
A18: Programmi või meetme rakendamise seis | B18: Rakendatud (Implemented)
A19: Programmi või meetme rakendamise periood | B19: 2009-
A20: Stsenaarium, mille juures programmi või meedet on arvestatud | B20: WEM
A21: Programmi või meetme rakendamise eest vastutavad isikute või asutuste tüüp | B21: riigi valitsus
A22: Programmi või meetme rakendamise eest vastutavad isikud või asutused | B22: Kliimaministeerium
A23: Viide analüüsidele või tehnilistele aruannetele | B23: https://envir.ee/media/5809/download https://www.riigiteataja.ee/akt/MS https://www.riigiteataja.ee/akt/116122010003?leiaKehtiv
A24: Kommentaar

Sheet MM8
A1: REKK peatükk | B1: 3.1.1.i
A2: Teised seonduvad REKK 2030 peatükid
A3: Poliitikasuuna või meetme number (PaM ID) | B3: 100
A4: Programmi või meetme number REKK2030 | B4: MM8
A5: Programmi või meetme nimetus | B5: Üraskikahjustuste ennetamise toetamine
A6: Programmi või meetme nimetus inglise keeles | B6: Prevention of bark beetle damage
A7: Lühike kirjeldus | B7: Toetuse eesmärk on ennetada kahjustusi erametsades. Toetatavate tegevuste hulka kuuluvad püünispuude kasutamine, feromoonpüüniste soetamine ja paigaldamine ning värskete tormikahjustuste likvideerimine. The aim of the aid is to prevent damage to private forests. Supported activities include the use of trapping trees, the acquisition and installation of pheromone traps and elimination of fresh storm damage.
A8: Seotud Euroopa Liidu energialiidu mõõtmed | B8: CO2 heite vähendamise mõõde
A9: Asjakohased eesmärgid, sihid või panused, millele poliitikasuund või meede kaasa aitab | B9: liikmesriigi kohustused vastavalt määrusele (EL) 2018/841
A10: Mõjutatud sektorid | B10: LULUCF
A11: Eesmärk | B11: süsiniku säilitamine olemasolevates metsades (LULUCF) ; tugevam kaitse looduslike häiringute eest (LULUCF)
A12: Kvantitatiivne eesmärk | B12: NA
A13: Kasvuhoonegaasid, mille heitmeid otseselt mõjutatakse | B13: CO2
A14: Planeeritud eelarve
A15: Oodatav mõju 2025-2030 keskmine | B15: NE
A16: Programmi või meetme tüüp | B16: Majanduslikud stiimulid (Economic)
A17: Hinnang sellele, mil määral poliitikasuund või meede aitab saavutada määruse (EL) 2021/1119 artikli 2 lõikes 1 sätestatud liidu kliimaneutraalsusees märki ja täita määruse (EL) 2018/1999 artiklis 15 osutatud pikaajalist strateegiat | B17: The measure contributes to the following policy guidline of the General Principles of Climate Policy until 2050: Forest growth and the carbon sequestration ability will be increased through productive and sustainable forest management, and the carbon stock of forests will be maintained in the longer perspective. The productivity of managed forest land will be mainly increased through improvement cutting, timely cutting of forest stands and fast renewal of forests with tree species appropriate for the habitat type. Flexible rotation ages considering the growth potential of forest stands will be implemented in managed forests, and the principles of sustainable forestry and the maintenance of biodiversity will be taken into account. https://envir.ee/kliimapoliitika-pohialused-aastani-2050
A18: Programmi või meetme aluseks olevad Euroopa Liidu õigusaktid | B18: LULUCF Regulation; New EU Forest Strategy (COM(2013)659); New EU Forest Strategy for 2030 (COM(2021) 572)
A19: Programmi või meetme rakendamise seis | B19: Rakendatud (Implemented)
A20: Programmi või meetme rakendamise periood | B20: 2021
A21: Stsenaarium, mille juures programmi või meedet on arvestatud | B21: WEM
A22: Programmi või meetme rakendamise eest vastutavad isikute või asutuste tüüp | B22: riigi valitsus
A23: Programmi või meetme rakendamise eest vastutavad isikud või asutused | B23: Kliimaministeerium
A24: Viide analüüsidele või tehnilistele aruannetele | B24: https://www.riigiteataja.ee/akt/106012017005?leiaKehtiv
A25: Kommentaar

Sheet MM9
A1: REKK peatükk | B1: 3.1.1.i
A2: Teised seonduvad REKK 2030 peatükid
